{"text_format":"1","workbook":"xlsx","n_sheets":19,"sheets":["C Data","PS data","Proxy List","SVT Calculator","Social Value Summary","Social Value Proxies","Pricing Table","Lists","Main Contractor","Consultant 1","Consultant 2","Consultant 3","Consultant 4","Consultant 5","C8 - C9 (1)","C8 - C9 (2)","Day Rates (1)","Day Rates (2)","Pricing Schedules"],"not_rendered":{"charts":0,"images":1,"macros":1,"external_links":0,"defined_names":51,"comments":3,"pivot_tables":0},"unopened":[],"bounds":{"document_bytes":16777216,"sheet_cells":100000,"rows_first":2000,"rows_last":500,"rows_between":2000,"halvings":0,"cell_chars":16384,"cell_head_chars":4096},"cells_cut":0,"cells_raw":0,"read":"whole","date_system":"1900"}

{"sheet":"C Data","index":0,"n_rows":30,"n_cols":32,"rows_kept":30,"cut":false,"hidden":true,"merged":[]}
["Action","New jobs (6 months)","Work placements","Careers IAG","£ - community projects","Spend with local suppliers","Spend with VCSE","Hours - community project","Hours - specialist advice for VCSE or SME","% Waste diverted from landfill","Carbon Literacy training ","£ - poverty initiatives","New jobs targeted","Hours - promoting healthy living","Hours - Homelessness projects ","Hours - Digital Inclusion","£ - Digital equipment","Total staff","Procontract staff","If - SME","L1 - Greater Manchester and Merseyside ","L2 - Cheshire, Derbyshire West and Staffordshire","L3 - Lancashire and Cumbria","L4 -Northumberland, Tyne & Wear and Durham","L5 - North Yorkshire, West Yorkshire & East Yorkshire","South L6 - Yorkshire, Derbyshire East, North Nottinghamshire & Lincolnshire","H1 - West","H2 - East","G1 Mod -West","G2 Mod -East","P1 - West","2 - East"]
["A Connolly Ltd",1,2,32,null,0.85,2.5000000000000001E-2,null,null,0.25,null,null,1,null,null,null,null,120,250,{"$f":"IF(S2<=249,\"Yes\",\"No\")","v":"No"},"x","x","x",null,null,null,null,null,"x",null,"x"]
["Caddick Construction Ltd",2.625,1.875,2.5,2.25,0.35,0.05,2.25,2.25,0.11874999999999999,18.75,2.25,1.25,2.25,2.25,2.25,1.125,118,150,"Yes",null,null,null,null,null,null,"x","x"]
["Carroll Build Ltd",2.5,4,8,2.5,0.05,0.05,8,8,1,1,2.5,1,8,12,4,3,60,60,"Yes","x","x","x",null,null,null,"x"]
["Crossfield Construction LTD",2,10,16,10,0.85,0.05,20,16,0.89,2,5,1,16,16,4,4,47,47,"Yes","x","x","x",null,null,null,"x"]
["ENGIE Regeneration Ltd",3,24,60,10,0.05,0,64,null,0.95,6,10,2,6,24,16,null,3500,3500,"No","x","x","x","x",null,null,"x","x"]
["Esh Construction Ltd",0.5,2,50,5,0.45,0.05,48,null,0.95,1,5,0.5,8,8,null,null,1000,1000,"No",null,null,null,"x","x","x",null,"x"]
["Gelder Ltd",2,20,10,5,0.35,0.01,10,60,0.95,1,20,1,10,50,40,10,247,273,"No",null,null,null,null,null,"x"]
["Hargreaves Contracting Ltd",5,6,8,5,0.75,0,5,5,0.15,2,1,1,5,5,5,2.5,15,15,"Yes","x",null,"x",null,null,null,"x"]
["J Greenwood (Builders) Ltd",4,2,10,2,0.1,0.01,10,10,0.9,5,2,2,10,10,10,2,70,70,"Yes","x","x","x",null,"x"]
["John Southworth Builders Ltd",2.5,32,40,7,0.625,0.01,8,40,0.99,9,3,1.5,null,20,null,null,22,30,"Yes","x","x","x",null,"x"]
["Karmo Ltd",2,20,8,2,0.9,0,8,8,0.9,4,8,2,8,8,8,2,10,20,"Yes","x","x","x",null,null,null,null,null,"x"]
["Lovell Partnerships Ltd",2,4,6,5,0.05,0,16,24,0.96,null,null,0.5,16,null,null,null,120,980,"No","x","x","x","x","x","x","x","x"]
["M&Y Maintenance & Construction Ltd",3,null,5,20,0,0,null,null,0,1,null,null,null,10,null,10,219,300,"No","x","x","x"]
["Mears Limited",1,2,2,2.5,0.3,0.03,25,2,0.99,1,2,1,4,4,5,1,100,4555,"No","x","x","x","x","x","x","x","x"]
["Novus Property Solutions Limited",1,4,10,5,1,0.01,100,50,0.97,5,5,1,50,25,25,5,1060,1060,"No","x","x",null,null,null,"x","x"]
["PP O’Connor Group Limited",null,1,2,2,0.1,0.02,1,1,0.9,1,1,1,10,5,1,1,237,184,"Yes",null,null,null,null,null,null,null,null,"x"]
["PLP Construction Ltd",2,4,16,10,0.6,0.1,32,8,0.95,40,10,2,16,16,8,5,31,30,"Yes","x","x","x",null,"x","x",null,null,"x","x","x","x"]
["Ring Stones Maintenance and Construction LLP",2,3,3,2,0.33,0.03,10,1,0.96,4,1,1,3,2,2,1,58,78,"Yes","x",null,"x"]
["Rowlinson Construction Limited",1,5,8,10,0.25,0.01,8,8,0.95,1,10,1,8,8,8,5,48,54,"Yes","x","x","x",null,null,null,"x"]
["RP Tyson Construction Ltd",0.5,1,3,5,0.6,0,8,null,0.93,2,5,0.25,10,8,null,1,90,90,"Yes","x",null,"x",null,null,null,"x"]
["S&I Groundworks Ltd",2,null,null,10,0.05,0.05,null,null,0,null,5,null,null,null,null,2,180,180,"Yes",null,null,null,null,null,null,null,null,"x","x"]
["Seddon Construction Ltd",1,10,10,5,0.1,0,10,20,0.85,null,null,1,10,10,null,null,700,700,"No",null,null,null,null,null,null,"x","x"]
["Space Modular Ltd",2,8,12,10,0.35,0.05,15,15,0.95,10,5,1,16,16,4,6,18,18,"Yes",null,null,null,null,null,null,null,null,null,null,"x","x"]
["Termrim Construction Ltd",0.5,2,8,5,0.1,0,8,null,0.95,1,2,null,null,null,null,5,26,150,"Yes","x",null,null,null,"x","x","x","x"]
["The Casey Group Ltd",2,6,8,10,0.8,0.05,8,8,0.99,4,2,4,8,2,2,2,252,320,"No","x","x","x",null,"x","x","x","x"]
["United Living (North) Limited",1,10,4,10,0.8,0,16,40,0.97,2,10,0.5,32,32,8,10,530,342,"No",null,null,null,null,null,null,"x","x"]
["Vistry Partnerships North West",6,12,5,2.5,0.2,0.02,10,5,0.95,5,3,0.5,20,5,10,5,1083,150,"Yes",null,null,null,null,null,null,"x","x"]
["Whitfield & Brown (Developments) Ltd",1.5,2,8,1,0.75,0.05,3,5,1,2,1,null,null,2,null,null,34,40,"Yes","x","x",null,null,null,null,"x",null,null,null,"x"]
["Wiggett Construction Ltd",5,20,5,10,0.3,0.01,20,5,0.99,2,10,2,5,5,5,10,31,150,"Yes","x","x",null,null,"x"]

{"sheet":"PS data","index":1,"n_rows":182,"n_cols":37,"rows_kept":182,"cut":false,"hidden":true,"merged":[[0,0,0,13]]}
["Professional Services - All Data",null,null,null,null,null,null,null,null,null,null,null,null,null,null,"C1a - Employers Agent, Cost Consultancy and related Services",null,"C1b -Combined Employers Agent and Principal Designer",null,"C2 - Engineering Consultancy",null,"C3 -Building Surveying",null,"C4a -Architectural Services",null,"C4b - Combined Architectural Services and Principal Designer",null,"C5 - Clerk of Works",null,"C6 - Purchasers Agent",null,"C7 - Principal Designer and H&S Advisor",null,"C8 - Planning Consultancy",null,"C9 - Site Investigation"]
["Action","Work placements","Careers IAG","£ - community projects","Spend with VCSE","Hours - community project","Hours - specialist advice for VCSE or SME","Carbon Literacy training ","£ - poverty initiatives","Hours - promoting healthy living","Hours - Homelessness projects ","Hours - Digital Inclusion","£ - Digital equipment","Total staff","SIZE","West","East","West","East","West","East","West","East","West","East","West","East","West","East","West","East","West","East","West","East","West","East"]
["AA Projects Ltd",4,3.3,2,0,null,null,null,null,null,5,null,null,140,{"$f":"IF(N3<=249,\"Yes\",\"No\")","v":"Yes"},"x","x","x","x",null,null,null,null,null,null,null,null,null,null,"x","x","x","x"]
["Acanthus WSM Architects",4,1,1.5,0,null,null,null,1.5,null,null,null,1,13,{"$f":"IF(N4<=249,\"Yes\",\"No\")","v":"Yes"},null,null,null,null,null,null,null,null,null,"x"]
["AECOM",0.13,0.52200000000000002,0.5,0,0.52,7.0000000000000007E-2,0.13,0.13,null,1.04,0.19500000000000001,0.16,null,null,null,null,"x","x"]
["Aegis Services Ltd",1,1,2,1E-3,1,0.1,2,1,5,0.1,0.1,0.1,null,null,null,null,null,null,null,null,null,null,null,null,null,null,"x",null,null,null,"x"]
["AEW Architects",1,4,null,0,null,4,2,null,null,null,4,2,null,null,null,null,null,null,null,null,null,null,"x"]
["AHR Building Consultancy",1,4,null,0,null,4,null,null,null,null,null,2,300,{"$f":"IF(N8<=249,\"Yes\",\"No\")","v":"No"}]
["Ainsley Gommon Architects",0.6,2,0.5,5.0000000000000001E-3,1,2,0.5,null,null,2,null,0.5,19,{"$f":"IF(N9<=249,\"Yes\",\"No\")","v":"Yes"},null,null,null,null,null,null,null,null,null,null,null,"x"]
["Alan Johnston Partnership",null,1,1.25,0,null,null,null,1.25,null,null,null,1.25,23,{"$f":"IF(N10<=249,\"Yes\",\"No\")","v":"Yes"},null,null,null,null,"x"]
["Align Property Partners",1,1,1,5.0000000000000001E-3,0.5,0.25,0.25,0.25,0.25,0.5,0.5,0.25,65,{"$f":"IF(N11<=249,\"Yes\",\"No\")","v":"Yes"},null,null,null,null,"x","x","x","x"]
["Amrin Resources Ltd",null,null,3,0,null,null,null,2,null,null,null,null,4,{"$f":"IF(N12<=249,\"Yes\",\"No\")","v":"Yes"},null,null,null,null,null,null,null,null,null,null,null,null,"x","x"]
["Anderton Gables",null,null,0.5,0,4,null,null,0.5,null,2,null,null,null,null,null,null,"x","x",null,null,"x","x"]
["Appleyard & Trew LLP",1,null,1,0,null,null,1,1,null,null,null,1,38,{"$f":"IF(N14<=249,\"Yes\",\"No\")","v":"Yes"},"x","x"]
["Arcus Consulting LLP",0.25,null,1,0,1,null,0.25,0.75,null,1,1,0.5,50,{"$f":"IF(N15<=249,\"Yes\",\"No\")","v":"Yes"},null,null,"x","x",null,null,null,null,null,null,null,null,null,null,"x","x","x","x"]
["Bernard Taylor Partnership",4,5,1,0.02,4,5,2,1,2,2,3,null,14,{"$f":"IF(N16<=249,\"Yes\",\"No\")","v":"Yes"},null,null,null,null,null,null,null,null,"x","x","x","x"]
["Bowker Sadler Partnership",0.5,1,0.5,0.01,2,2,0.5,0.5,null,null,null,0.5,null,null,null,null,null,null,null,null,null,null,"x",null,"x","x"]
["Bradshaw Gass & Hope LLP",1,5,null,0,null,null,null,null,null,null,null,null,17,{"$f":"IF(N18<=249,\"Yes\",\"No\")","v":"Yes"},null,null,"x",null,"x"]
["Brennan Consult",1,3,1,0,3,null,1,null,null,2,null,1,null,null,null,null,null,null,"x"]
["Brewster Bye Architects",0.08,null,1,0,null,null,null,1,null,null,null,0.5,27,{"$f":"IF(N20<=249,\"Yes\",\"No\")","v":"Yes"},null,null,null,null,null,null,null,null,"x","x"]
["Brock Carmichael Architects",2,10,null,0,null,null,null,null,null,null,null,null,null,null,null,null,null,null,null,null,null,null,"x"]
["Buttress Architects Ltd",1,5,1,0.05,2,2,1,1,1,1,1,1,44.2,{"$f":"IF(N22<=249,\"Yes\",\"No\")","v":"Yes"},null,null,null,null,null,null,null,null,null,null,"x","x"]
["BWA",1.5,null,0.5,0,null,null,null,0.5,null,null,null,null,24,null,"x"]
["BYA Architects",2,0.5,1,0.05,2,null,0.5,null,null,4,null,null,1,{"$f":"IF(N24<=249,\"Yes\",\"No\")","v":"Yes"},null,null,null,null,null,null,null,null,null,null,"x"]
["Campbell Reith Hill LLP",1,7.5,null,0,null,null,null,null,null,null,null,null,150,{"$f":"IF(N25<=249,\"Yes\",\"No\")","v":"Yes"},null,null,null,null,"x","x",null,null,null,null,null,null,null,null,null,null,null,null,null,null,"x","x"]
["Carley Daines & Partners",1,null,2.5,0,null,null,2,2.5,null,null,null,2.5,5,{"$f":"IF(N26<=249,\"Yes\",\"No\")","v":"Yes"},null,null,null,null,"x","x",null,null,null,null,null,null,null,null,null,null,null,null,null,null,"x","x"]
["Cass Associates",3,2,null,0,12,null,null,null,null,null,null,1,null,null,null,null,null,null,null,null,null,null,null,null,null,null,null,null,null,null,null,null,"x","x"]
["Cassidy & Ashton",null,null,1,0,null,null,null,1,null,null,null,3]
["Condy & Lofthouse Ltd",3,1,4,0.02,0.5,3,0.25,2,2,0.5,0.5,0.5,null,null,null,null,null,null,null,null,null,null,"x","x"]
["CPC Project Services LLP",0.1,3,0.75,0,null,3,null,0.75,null,null,null,null,190,{"$f":"IF(N30<=249,\"Yes\",\"No\")","v":"Yes"},"x","x","x","x",null,null,null,null,null,null,null,null,null,null,"x","x"]
["Currie & Brown UK Ltd",null,5,null,0,null,null,null,null,null,null,null,null,532,{"$f":"IF(N31<=249,\"Yes\",\"No\")","v":"No"},"x","x",null,null,null,null,null,null,null,null,null,null,"x","x"]
["Curtins Consulting Ltd",0.2,1,0.1,0,1,0.1,1,0.1,1,0.1,0.1,0.1,null,null,null,null,null,null,null,null,null,null,null,null,null,null,null,null,null,null,"x","x",null,null,"x","x"]
["Cushman & Wakefield",1,2,null,0,5,2,null,null,null,null,null,null,2234,{"$f":"IF(N33<=249,\"Yes\",\"No\")","v":"No"},null,null,null,null,null,null,null,null,null,null,null,null,null,null,null,null,null,null,null,"x"]
["Darnton B3 Architecture",0.5,0.5,0.5,5.0000000000000001E-3,0.5,0.5,0.5,0.5,0.5,null,null,0.5,80,{"$f":"IF(N34<=249,\"Yes\",\"No\")","v":"Yes"},null,null,null,null,null,null,null,null,null,null,null,"x"]
["DK Architects",1,4,null,0,2,2,1,0.5,null,null,null,null,20,{"$f":"IF(N35<=249,\"Yes\",\"No\")","v":"Yes"},null,null,null,null,null,null,null,null,"x","x"]
["DPP One Ltd",0.5,3,null,0,1,1,null,null,null,1,null,null,null,null,null,null,null,null,null,null,null,null,null,null,null,null,null,null,null,null,null,null,"x","x"]
["ECD Architects",1,4,1,0,6,4,null,1,4,4,4,null,36,{"$f":"IF(N37<=249,\"Yes\",\"No\")","v":"Yes"}]
["Edge Property Solutions",0.5,null,1,0,2,1,0.1,null,1,null,null,null,50,"Yes","x","x","x","x"]
["Elluc Projects",null,1,null,0,1,null,null,1,null,1,null,null,45,"Yes",null,null,null,null,"x","x"]
["Faithful & Gould",5,7.5,null,0,null,null,2,null,null,null,null,null,1700,"No","x","x","x","x",null,null,"x","x",null,null,null,null,null,null,null,null,"x","x"]
["GWP Architecture Ltd",0.5,1,0.5,0,null,null,0.4,0.5,0.5,null,null,null,15,"Yes",null,null,null,null,null,null,null,null,"x","x"]
["Halsall Lloyd Partnership",1,3,0.5,0,null,null,null,0.5,null,null,null,0.5,29,"Yes",null,null,null,null,null,null,null,null,null,null,null,"x"]
["Hickton Consultants",0.2,null,0.5,5.0000000000000001E-3,1,0.5,0.25,null,0.5,null,null,null,null,null,null,null,null,null,null,null,null,null,null,null,null,null,"x","x"]
["Hive Land & Planning Limited",1,3,1,0,4,null,1,1,null,4,null,1,null,null,null,null,null,null,null,null,null,null,null,null,null,null,null,null,null,null,null,null,"x","x"]
["Identity Consult",0.5,6,1,0,7.5,2,1,0.01,2,2,0,0.01,40,{"$f":"IF(N45<=249,\"Yes\",\"No\")","v":"Yes"},"x","x",null,null,null,null,null,null,null,null,null,null,null,null,"x","x"]
["John McCall Architects",2,2,1,0,2,null,1,2,null,2,null,1,14,"Yes",null,null,null,null,null,null,null,null,"x","x"]
["Langtry-Langton Architects",4,2,1,0.05,2,3,1,2,4,4,2,1,22,"Yes",null,null,null,null,null,null,null,null,"x","x","x","x"]
["MAC Construction Consultants Ltd",2,10,2,0.05,null,4,0.5,1,2,2,null,1,59,"Yes",null,null,null,null,null,null,"x","x",null,null,null,null,"x","x"]
["Markhams Ltd",0.2,1,4,0,3.25,null,0.3,1,2.5,0.66,null,0.08,11,"Yes","x","x","x","x",null,null,null,null,null,null,null,null,null,null,"x","x"]
["Michael Dyson Associates Limited",null,null,1,0,null,null,null,null,null,2,null,null,50,"Yes","x","x","x","x",null,null,null,null,null,null,"x","x"]
["Michael Hyde and Associated Ltd",0.1,0.2,5,0,null,null,null,null,null,null,null,null,17,"Yes",null,null,null,null,null,null,null,null,"x","x","x","x"]
["Mosaic Town Planning",1,2,2,0,null,null,null,2,null,null,null,null,3,"Yes",null,null,null,null,null,null,null,null,null,null,null,null,null,null,null,null,null,null,"x"]
["MPSL Planning and Design",0.1,null,1,0,1,null,null,1,null,0.5,null,0.5,11,"Yes",null,null,null,null,null,null,null,null,"x","x"]
["Nathaniel Lichfield & Partners",1.5,1,null,0,null,null,null,null,null,1,null,null,225,"Yes",null,null,null,null,null,null,null,null,null,null,null,null,null,null,null,null,null,null,null,"x"]
["Nexus Planning",1,7.5,null,0,3.75,null,1,null,null,7.5,null,null,null,null,null,null,null,null,null,null,null,null,null,null,null,null,null,null,null,null,null,null,"x","x"]
["NJL Consulting Limited",3,2,2,0,2,2,null,null,null,2,null,null,8,{"$f":"IF(N56<=249,\"Yes\",\"No\")","v":"Yes"},null,null,null,null,null,null,null,null,null,null,null,null,null,null,null,null,null,null,"x","x"]
["Omnia Environmental Consulting",1,5,null,0,8,null,0.25,null,null,null,null,null,17,{"$f":"IF(N57<=249,\"Yes\",\"No\")","v":"Yes"},null,null,null,null,null,null,null,null,null,null,null,null,null,null,null,null,null,null,null,null,"x","x"]
["P+HS Architect",0.2,2,1,0,null,null,0.1,null,null,null,null,null,73,{"$f":"IF(N58<=249,\"Yes\",\"No\")","v":"Yes"}]
["Paddock Johnson Partnership",3,2,1,0.05,7,3,0.5,1,1,3,1,1,null,null,null,null,null,null,null,null,null,null,"x","x","x","x",null,null,null,null,"x"]
["Paul Butler Associates",1,null,1,0,null,null,1,0.5,null,null,null,0.5,7,{"$f":"IF(N60<=249,\"Yes\",\"No\")","v":"Yes"},null,null,null,null,null,null,null,null,null,null,null,null,null,null,null,null,null,null,"x"]
["Pell Frischmann Consultants",1,4,null,0,3.5,null,1,null,null,3,3,null,null,null,null,null,null,null,"x","x"]
["Poole Dick Associates",0.33333333333333331,1.0666666666666667,0.5,0,6.666666666666667,4,1.6666666666666667,0.5,4,6.666666666666667,null,0.2,25,{"$f":"IF(N62<=249,\"Yes\",\"No\")","v":"Yes"},"x","x",null,null,null,null,null,null,null,null,null,null,null,null,"x","x"]
["Portland Consulting",1,2,1,0.03,3,1,1,1,3,3,1,1,16,null,null,null,null,null,"x","x"]
["Pozzoni LLP",1.1299999999999999,1.32,4.72,0,6,1.5,1,0.28000000000000003,0.38,null,0.75,null,63,{"$f":"IF(N64<=249,\"Yes\",\"No\")","v":"Yes"},null,null,null,null,null,null,null,null,"x","x"]
["Rider Levett Bucknall UK Ltd",2.4E-2,7.0000000000000007E-2,0.1,2.5000000000000001E-2,0.33,0.01,0.1,0.33,null,0.03,0.03,null,675,{"$f":"IF(N65<=249,\"Yes\",\"No\")","v":"No"},"x","x","x","x",null,null,"x","x",null,null,null,null,null,null,null,null,"x","x"]
["Ridge and Partners LLP",0.6,0.24,0.5,5.0000000000000001E-4,0.8,1,2,0.25,0.4,0.4,0.4,0.25,650,{"$f":"IF(N66<=249,\"Yes\",\"No\")","v":"No"},"x","x","x","x","x","x",null,null,"x","x","x","x"]
["RJD Associates (North West) Limited",null,5,null,0,4,null,null,null,null,null,null,null,null,null,null,null,"x","x",null,null,null,null,null,null,null,null,null,null,null,null,"x","x"]
["RoC Consulting",0.3,0.25,null,0,0.75,null,null,null,null,null,null,null,23,{"$f":"IF(N68<=249,\"Yes\",\"No\")","v":"Yes"},null,null,null,null,null,null,null,null,null,null,null,null,null,null,null,null,null,null,null,null,"x","x"]
["RPS Consulting Services Ltd",0.25,2.25,1,1.4999999999999999E-2,3.75,null,0.5,1,2,2,2,1,682,{"$f":"IF(N69<=249,\"Yes\",\"No\")","v":"No"},null,null,null,null,null,null,null,null,null,null,null,null,null,null,"x","x",null,null,null,null,"x","x"]
["RSK Environment Ltd",1,2,null,0,null,2,null,null,1,1,null,null,560,{"$f":"IF(N70<=249,\"Yes\",\"No\")","v":"No"},null,null,null,null,null,null,null,null,null,null,null,null,null,null,null,null,null,null,null,null,"x","x"]
["Satplan Ltd",5,5,2,0.01,20,5,1,2,null,null,null,2,null,null,null,null,null,null,null,null,null,null,null,null,null,null,null,null,null,null,null,null,"x"]
["Savills UK Limited - Lot 8",1,2,0.25,0,0.5,0.5,null,0.5,0.75,null,null,null,3830,{"$f":"IF(N72<=249,\"Yes\",\"No\")","v":"No"},null,null,null,null,null,null,null,null,null,null,null,null,null,null,null,null,null,null,null,"x"]
["Savills UK Limited - Lot1A",0.6,0.25,0.25,0,0.5,0.5,null,0.5,0.75,null,null,null,null,null,"x","x"]
["Savills UK Limited",null,null,null,0]
["SDA Consulting LLP",null,null,2.5,0,null,null,null,null,null,null,null,null,20,{"$f":"IF(N75<=249,\"Yes\",\"No\")","v":"Yes"},"x",null,null,null,null,null,null,null,null,null,null,null,"x"]
["Shape Consulting Engineers",2,2,2,0.05,5,5,2,2,5,5,5,3,18,{"$f":"IF(N76<=249,\"Yes\",\"No\")","v":"Yes"},null,null,null,null,"x","x"]
["Simon Fenton Partnership",0.25,0.5,null,0,null,3,0.15,null,null,0.5,0.75,null,11,{"$f":"IF(N77<=249,\"Yes\",\"No\")","v":"Yes"},"x",null,"x","x",null,null,null,null,null,null,null,null,null,null,"x"]
["Spawforths",5,1,1,0,null,null,0.5,null,null,2,null,null,23,{"$f":"IF(N78<=249,\"Yes\",\"No\")","v":"Yes"},null,null,null,null,null,null,null,null,null,null,null,null,null,null,null,null,null,null,null,"x"]
["Sutcliffe",1,5,1,0.01,10,2,1,1,2,2,2,1,43,{"$f":"IF(N79<=249,\"Yes\",\"No\")","v":"Yes"},null,null,null,null,"x","x","x","x",null,null,null,null,null,null,null,null,null,null,null,null,"x","x"]
["Tadw Architects",0.5,null,1,0,null,null,0.5,1,null,null,null,1,null,null,null,null,null,null,null,null,null,null,"x"]
["The LK Group",2,8,2,0,1,null,1,0.25,1,8,null,2,50,{"$f":"IF(N81<=249,\"Yes\",\"No\")","v":"Yes"},null,null,null,null,null,null,null,null,null,null,null,null,null,null,null,null,null,null,null,null,"x","x"]
["Thornton Firkin & Partners",0.5,null,null,0,null,null,null,null,5,null,null,null,30,{"$f":"IF(N82<=249,\"Yes\",\"No\")","v":"Yes"},null,null,"x","x",null,null,null,null,null,null,null,null,null,null,"x","x","x","x"]
["Tozer Gallagher LLP",null,null,2,0,null,null,null,2,null,null,null,null,8,{"$f":"IF(N83<=249,\"Yes\",\"No\")","v":"Yes"},"x","x","x","x"]
["Triangle Architects",1,2,null,0,2,2,null,null,null,2,2,null,12,{"$f":"IF(N84<=249,\"Yes\",\"No\")","v":"Yes"},null,null,null,null,null,null,null,null,"x","x"]
["Urbn Design & Consult Ltd",0.25,0.5,0.1,0,1,1,1,0.01,0.25,0.1,1,0.01,7,{"$f":"IF(N85<=249,\"Yes\",\"No\")","v":"Yes"},null,null,null,null,null,null,null,null,null,null,null,null,null,null,null,null,"x","x"]
["Vextrix",1,4,5,0,8,4,2,null,null,null,null,null,null,null,"x","x",null,null,null,null,null,null,null,null,null,null,null,null,null,null,"x","x"]
["Waldeck Associates Limited",1,3,null,0,3,null,0.1,1,null,3,3,null,null,null,null,null,null,null,null,null,"x","x",null,null,null,null,"x","x","x","x"]
["Walker Simpson Architects",0.1,1,0.75,0,null,null,0.25,null,null,null,null,null,8,{"$f":"IF(N88<=249,\"Yes\",\"No\")","v":"Yes"},null,null,null,null,null,null,null,null,"x","x"]
["Whiteley Eaves Ltd",4,0.6,0.5,5.0000000000000001E-3,0.35,0.35,0.3,0.25,5,1.2,null,0.75,null,null,"x","x","x","x",null,null,null,null,null,null,null,null,"x","x","x","x","x","x"]
["Wilkinson Cowan Partnership",0.5,1,null,0,1,null,1,null,null,1,null,null,"22",{"$f":"IF(N90<=249,\"Yes\",\"No\")","v":"No"},"x","x","x","x",null,null,"x","x",null,null,null,null,"x","x","x","x","x","x"]
["WYG Engineering Limited",2,3.5,null,0,7.5,null,null,1,7.5,7.5,null,null,1320,{"$f":"IF(N91<=249,\"Yes\",\"No\")","v":"No"},null,null,"x","x",null,null,null,null,null,null,null,null,null,null,null,null,"x","x",null,"x"]
[]
[]
[null,null,null,null,{"$f":"E3/100","v":0}]
[null,null,null,null,{"$f":"E4/100","v":0}]
[null,null,null,null,0]
[null,null,null,null,1.0000000000000001E-5]
[null,null,null,null,0]
[null,null,null,null,0]
[null,null,null,null,5.0000000000000002E-5]
[null,null,null,null,0]
[null,null,null,null,5.0000000000000002E-5]
[null,null,null,null,0]
[null,null,null,null,0]
[null,null,null,null,0]
[null,null,null,null,0]
[null,null,null,null,2.0000000000000001E-4]
[null,null,null,null,1E-4]
[null,null,null,null,0]
[null,null,null,null,0]
[null,null,null,null,0]
[null,null,null,null,0]
[null,null,null,null,5.0000000000000001E-4]
[null,null,null,null,0]
[null,null,null,null,5.0000000000000001E-4]
[null,null,null,null,0]
[null,null,null,null,0]
[null,null,null,null,0]
[null,null,null,null,0]
[null,null,null,null,2.0000000000000001E-4]
[null,null,null,null,0]
[null,null,null,null,0]
[null,null,null,null,0]
[null,null,null,null,0]
[null,null,null,null,5.0000000000000002E-5]
[null,null,null,null,0]
[null,null,null,null,0]
[null,null,null,null,0]
[null,null,null,null,0]
[null,null,null,null,0]
[null,null,null,null,0]
[null,null,null,null,0]
[null,null,null,null,0]
[null,null,null,null,5.0000000000000002E-5]
[null,null,null,null,0]
[null,null,null,null,0]
[null,null,null,null,0]
[null,null,null,null,5.0000000000000001E-4]
[null,null,null,null,5.0000000000000001E-4]
[null,null,null,null,0]
[null,null,null,null,0]
[null,null,null,null,0]
[null,null,null,null,0]
[null,null,null,null,0]
[null,null,null,null,0]
[null,null,null,null,0]
[null,null,null,null,0]
[null,null,null,null,0]
[null,null,null,null,0]
[null,null,null,null,5.0000000000000001E-4]
[null,null,null,null,0]
[null,null,null,null,0]
[null,null,null,null,0]
[null,null,null,null,2.9999999999999997E-4]
[null,null,null,null,0]
[null,null,null,null,2.5000000000000001E-4]
[null,null,null,null,5.0000000000000004E-6]
[null,null,null,null,0]
[null,null,null,null,{"$f":"E68/100","v":0}]
[null,null,null,null,1.4999999999999999E-4]
[null,null,null,null,0]
[null,null,null,null,1E-4]
[null,null,null,null,0]
[null,null,null,null,0]
[null,null,null,null,0]
[null,null,null,null,0]
[null,null,null,null,5.0000000000000001E-4]
[null,null,null,null,0]
[null,null,null,null,0]
[null,null,null,null,1E-4]
[null,null,null,null,0]
[null,null,null,null,0]
[null,null,null,null,0]
[null,null,null,null,0]
[null,null,null,null,0]
[null,null,null,null,0]
[null,null,null,null,0]
[null,null,null,null,0]
[null,null,null,null,0]
[null,null,null,null,5.0000000000000002E-5]
[null,null,null,null,0]
[null,null,null,null,0]

{"sheet":"Proxy List","index":2,"n_rows":22,"n_cols":5,"rows_kept":22,"cut":false,"hidden":true,"merged":[]}
["Action","Value","Methodology "]
["Full time, 6 month roles",14379,"Real Living Wage * 40 hours * six months"]
["New jobs targeted for disadvantaged customers",{"$f":"14328/2","v":7164},"National TOMS - Average of NT3:6A / 2 "]
["Work placement weeks",148.94999999999999,"National TOMS"]
["% Spend with local suppliers",0.27,"Local multiplier for North West - 27p per pound * £400k (assumed 40% spent on supply)",null,"Cap £100k "]
["% Spend with VCSE",0.12,"12p per pound * £400k (assumed 40% spent on supply)",null,"Cap £100k "]
["% Waste diverted from landfill.",88.95,"Tonnes waste diverted against relevant benchmark (e.g. REEB) REF: RE45","Wrap data - 111 tonnes per £1m for residential new builds * £94.15 per tonne landfill tax","Wrap report - assessing the costs and benefits of reducing waste in construction"]
["Specialist advice hours for VCSE or SME",85.57,"National TOMS"]
["Specialist advice hours for Careers IAG",{"$f":"100.33","v":100.33},"National TOMS"]
["Carbon Literacy training provided",246.39080311838504,"National TOMS - Valued as NT10B - apprenticeship weeks to move towards low carbon economy"]
["£100s for poverty initiatives",100,"Equivalent value"]
["£100's towards Digital equipment",100,"Equivalent value"]
["£100s towards community projects",100,"Equivalent value"]
["Hours volunteered for community project",14.8,"National TOMS"]
["Hours for Homelessness projects ",14.8,"National TOMS"]
["Hours for Digital Inclusion",14.8,"National TOMS"]
["Hours to promote healthy living",14.8,"National TOMS"]
[]
[]
[]
[]
[null,null,null,null," "]

{"sheet":"SVT Calculator","index":3,"n_rows":40,"n_cols":12,"rows_kept":40,"cut":false,"hidden":false,"merged":[[7,3,7,7],[7,8,7,9],[7,10,7,11]]}
[null,"Social Value Target Calculator"]
[null,null,null,null,"Instructions"]
[null,"Name of project",null,null,"1. Input data into the yellow boxes only"]
[null,"Estimate project value (£)",null,null,"2. Do not alter or delete data from any other cells other than those in the yellow boxes"]
[null,"Estimate number of units",null,null,"3. If there is no stage for your selected lot, choose n/a"]
[null,"Band",{"$f":"IF(C5<35,\"1\",\"2\")","v":"1"},null,"4. For further guidance on how to use the tool, please contact Stephanie.Cameron@greatplaces.org.uk"]
[null,null,null,null,null,null,null,null,null,null,"No. of Days",10]
[null,null,"Main Contractor","Consultants",null,null,null,null,"C8 or C9 Only",null,"Day Rates"]
[null,"Lot"]
[null,"Stage - If no stage, enter n/a"]
[null,"Provider"]
[null,"Fee % /Day Rate",1,{"$f":"SUMIFS('Pricing Table'!$E:$E,'Pricing Table'!$A:$A,'SVT Calculator'!D$9,'Pricing Table'!$B:$B,'SVT Calculator'!$C$6,'Pricing Table'!$D:$D,'SVT Calculator'!D$11,'Pricing Table'!$C:$C,'SVT Calculator'!D$10)","v":0},{"$f":"SUMIFS('Pricing Table'!$E:$E,'Pricing Table'!$A:$A,'SVT Calculator'!E$9,'Pricing Table'!$B:$B,'SVT Calculator'!$C$6,'Pricing Table'!$D:$D,'SVT Calculator'!E$11,'Pricing Table'!$C:$C,'SVT Calculator'!E$10)","v":0},{"$f":"SUMIFS('Pricing Table'!$E:$E,'Pricing Table'!$A:$A,'SVT Calculator'!F$9,'Pricing Table'!$B:$B,'SVT Calculator'!$C$6,'Pricing Table'!$D:$D,'SVT Calculator'!F$11,'Pricing Table'!$C:$C,'SVT Calculator'!F$10)","v":0},{"$f":"SUMIFS('Pricing Table'!$E:$E,'Pricing Table'!$A:$A,'SVT Calculator'!G$9,'Pricing Table'!$B:$B,'SVT Calculator'!$C$6,'Pricing Table'!$D:$D,'SVT Calculator'!G$11,'Pricing Table'!$C:$C,'SVT Calculator'!G$10)","v":0},{"$f":"SUMIFS('Pricing Table'!$E:$E,'Pricing Table'!$A:$A,'SVT Calculator'!H$9,'Pricing Table'!$B:$B,'SVT Calculator'!$C$6,'Pricing Table'!$D:$D,'SVT Calculator'!H$11,'Pricing Table'!$C:$C,'SVT Calculator'!H$10)","v":0},null,null,{"$f":"SUMIFS('Pricing Table'!$N:$N,'Pricing Table'!$K:$K,'SVT Calculator'!K9,'Pricing Table'!$L:$L,'SVT Calculator'!K10,'Pricing Table'!$M:$M,'SVT Calculator'!K11)","v":0},{"$f":"SUMIFS('Pricing Table'!$N:$N,'Pricing Table'!$K:$K,'SVT Calculator'!L9,'Pricing Table'!$L:$L,'SVT Calculator'!L10,'Pricing Table'!$M:$M,'SVT Calculator'!L11)","v":0}]
[null,"Value",{"$f":"C4","v":0},{"$f":"IF((D$12*$C$4)<(SUMIFS('Pricing Table'!$F:$F,'Pricing Table'!$A:$A,'SVT Calculator'!D$9,'Pricing Table'!$D:$D,'SVT Calculator'!D$11,'Pricing Table'!$B:$B,'SVT Calculator'!$C$6,'Pricing Table'!$C:$C,'SVT Calculator'!D$10)),(SUMIFS('Pricing Table'!$F:$F,'Pricing Table'!$A:$A,'SVT Calculator'!D$9,'Pricing Table'!$D:$D,'SVT Calculator'!D11,'Pricing Table'!$B:$B,'SVT Calculator'!$C$6,'Pricing Table'!$C:$C,'SVT Calculator'!D$10)),IF((D$12*$C$4)>(SUMIFS('Pricing Table'!$G:$G,'Pricing Table'!$A:$A,'SVT Calculator'!D$9,'Pricing Table'!$D:$D,'SVT Calculator'!D$11,'Pricing Table'!$B:$B,'SVT Calculator'!$C$6,'Pricing Table'!$C:$C,'SVT Calculator'!D$10)),(SUMIFS('Pricing Table'!$G:$G,'Pricing Table'!$A:$A,'SVT Calculator'!D$9,'Pricing Table'!$D:$D,'SVT Calculator'!D$11,'Pricing Table'!$B:$B,'SVT Calculator'!$C$6,'Pricing Table'!$C:$C,'SVT Calculator'!D$10)),(D$12*$C$4)))","v":0},{"$f":"IF((E$12*$C$4)<(SUMIFS('Pricing Table'!$F:$F,'Pricing Table'!$A:$A,'SVT Calculator'!E$9,'Pricing Table'!$D:$D,'SVT Calculator'!E$11,'Pricing Table'!$B:$B,'SVT Calculator'!$C$6,'Pricing Table'!$C:$C,'SVT Calculator'!E$10)),(SUMIFS('Pricing Table'!$F:$F,'Pricing Table'!$A:$A,'SVT Calculator'!E$9,'Pricing Table'!$D:$D,'SVT Calculator'!E11,'Pricing Table'!$B:$B,'SVT Calculator'!$C$6,'Pricing Table'!$C:$C,'SVT Calculator'!E$10)),IF((E$12*$C$4)>(SUMIFS('Pricing Table'!$G:$G,'Pricing Table'!$A:$A,'SVT Calculator'!E$9,'Pricing Table'!$D:$D,'SVT Calculator'!E$11,'Pricing Table'!$B:$B,'SVT Calculator'!$C$6,'Pricing Table'!$C:$C,'SVT Calculator'!E$10)),(SUMIFS('Pricing Table'!$G:$G,'Pricing Table'!$A:$A,'SVT Calculator'!E$9,'Pricing Table'!$D:$D,'SVT Calculator'!E$11,'Pricing Table'!$B:$B,'SVT Calculator'!$C$6,'Pricing Table'!$C:$C,'SVT Calculator'!E$10)),(E$12*$C$4)))","v":0},{"$f":"IF((F$12*$C$4)<(SUMIFS('Pricing Table'!$F:$F,'Pricing Table'!$A:$A,'SVT Calculator'!F$9,'Pricing Table'!$D:$D,'SVT Calculator'!F$11,'Pricing Table'!$B:$B,'SVT Calculator'!$C$6,'Pricing Table'!$C:$C,'SVT Calculator'!F$10)),(SUMIFS('Pricing Table'!$F:$F,'Pricing Table'!$A:$A,'SVT Calculator'!F$9,'Pricing Table'!$D:$D,'SVT Calculator'!F11,'Pricing Table'!$B:$B,'SVT Calculator'!$C$6,'Pricing Table'!$C:$C,'SVT Calculator'!F$10)),IF((F$12*$C$4)>(SUMIFS('Pricing Table'!$G:$G,'Pricing Table'!$A:$A,'SVT Calculator'!F$9,'Pricing Table'!$D:$D,'SVT Calculator'!F$11,'Pricing Table'!$B:$B,'SVT Calculator'!$C$6,'Pricing Table'!$C:$C,'SVT Calculator'!F$10)),(SUMIFS('Pricing Table'!$G:$G,'Pricing Table'!$A:$A,'SVT Calculator'!F$9,'Pricing Table'!$D:$D,'SVT Calculator'!F$11,'Pricing Table'!$B:$B,'SVT Calculator'!$C$6,'Pricing Table'!$C:$C,'SVT Calculator'!F$10)),(F$12*$C$4)))","v":0},{"$f":"IF((G$12*$C$4)<(SUMIFS('Pricing Table'!$F:$F,'Pricing Table'!$A:$A,'SVT Calculator'!G$9,'Pricing Table'!$D:$D,'SVT Calculator'!G$11,'Pricing Table'!$B:$B,'SVT Calculator'!$C$6,'Pricing Table'!$C:$C,'SVT Calculator'!G$10)),(SUMIFS('Pricing Table'!$F:$F,'Pricing Table'!$A:$A,'SVT Calculator'!G$9,'Pricing Table'!$D:$D,'SVT Calculator'!G11,'Pricing Table'!$B:$B,'SVT Calculator'!$C$6,'Pricing Table'!$C:$C,'SVT Calculator'!G$10)),IF((G$12*$C$4)>(SUMIFS('Pricing Table'!$G:$G,'Pricing Table'!$A:$A,'SVT Calculator'!G$9,'Pricing Table'!$D:$D,'SVT Calculator'!G$11,'Pricing Table'!$B:$B,'SVT Calculator'!$C$6,'Pricing Table'!$C:$C,'SVT Calculator'!G$10)),(SUMIFS('Pricing Table'!$G:$G,'Pricing Table'!$A:$A,'SVT Calculator'!G$9,'Pricing Table'!$D:$D,'SVT Calculator'!G$11,'Pricing Table'!$B:$B,'SVT Calculator'!$C$6,'Pricing Table'!$C:$C,'SVT Calculator'!G$10)),(G$12*$C$4)))","v":0},{"$f":"IF((H$12*$C$4)<(SUMIFS('Pricing Table'!$F:$F,'Pricing Table'!$A:$A,'SVT Calculator'!H$9,'Pricing Table'!$D:$D,'SVT Calculator'!H$11,'Pricing Table'!$B:$B,'SVT Calculator'!$C$6,'Pricing Table'!$C:$C,'SVT Calculator'!H$10)),(SUMIFS('Pricing Table'!$F:$F,'Pricing Table'!$A:$A,'SVT Calculator'!H$9,'Pricing Table'!$D:$D,'SVT Calculator'!H11,'Pricing Table'!$B:$B,'SVT Calculator'!$C$6,'Pricing Table'!$C:$C,'SVT Calculator'!H$10)),IF((H$12*$C$4)>(SUMIFS('Pricing Table'!$G:$G,'Pricing Table'!$A:$A,'SVT Calculator'!H$9,'Pricing Table'!$D:$D,'SVT Calculator'!H$11,'Pricing Table'!$B:$B,'SVT Calculator'!$C$6,'Pricing Table'!$C:$C,'SVT Calculator'!H$10)),(SUMIFS('Pricing Table'!$G:$G,'Pricing Table'!$A:$A,'SVT Calculator'!H$9,'Pricing Table'!$D:$D,'SVT Calculator'!H$11,'Pricing Table'!$B:$B,'SVT Calculator'!$C$6,'Pricing Table'!$C:$C,'SVT Calculator'!H$10)),(H$12*$C$4)))","v":0},null,null,{"$f":"SUMIFS('Pricing Table'!$N:$N,'Pricing Table'!$K:$K,'SVT Calculator'!K9,'Pricing Table'!$L:$L,'SVT Calculator'!K10,'Pricing Table'!$M:$M,'SVT Calculator'!K11)*$L$7","v":0},{"$f":"SUMIFS('Pricing Table'!$N:$N,'Pricing Table'!$K:$K,'SVT Calculator'!L9,'Pricing Table'!$L:$L,'SVT Calculator'!L10,'Pricing Table'!$M:$M,'SVT Calculator'!L11)*$L$7","v":0}]
[null,"Full time, 6 month roles",{"$f":"SUMIFS('C Data'!B:B,'C Data'!A:A,'SVT Calculator'!C11)*(C13/1000000)","v":0}]
[null,"New jobs targeted for disadvantaged customers",{"$f":"SUMIFS('C Data'!M:M,'C Data'!A:A,'SVT Calculator'!C11)*(C13/1000000)","v":0}]
[null,"Work placement weeks",{"$f":"SUMIFS('C Data'!C:C,'C Data'!$A:$A,'SVT Calculator'!$C$11)*(C13/1000000)","v":0},{"$f":"SUMIFS('PS data'!$B:$B,'PS data'!$A:$A,'SVT Calculator'!D11)*(D13/10000)","v":0},{"$f":"SUMIFS('PS data'!$B:$B,'PS data'!$A:$A,'SVT Calculator'!E11)*(E13/10000)","v":0},{"$f":"SUMIFS('PS data'!$B:$B,'PS data'!$A:$A,'SVT Calculator'!F11)*(F13/10000)","v":0},{"$f":"SUMIFS('PS data'!$B:$B,'PS data'!$A:$A,'SVT Calculator'!G11)*(G13/10000)","v":0},{"$f":"SUMIFS('PS data'!$B:$B,'PS data'!$A:$A,'SVT Calculator'!H11)*(H13/10000)","v":0},{"$f":"SUMIFS('PS data'!$B:$B,'PS data'!$A:$A,'SVT Calculator'!I11)*(I13/10000)","v":0},{"$f":"SUMIFS('PS data'!$B:$B,'PS data'!$A:$A,'SVT Calculator'!J11)*(J13/10000)","v":0},{"$f":"SUMIFS('PS data'!$B:$B,'PS data'!$A:$A,'SVT Calculator'!K11)*(K13/10000)","v":0},{"$f":"SUMIFS('PS data'!$B:$B,'PS data'!$A:$A,'SVT Calculator'!L11)*(L13/10000)","v":0}]
[null,"% Spend with local suppliers",{"$f":"SUMIFS('C Data'!F:F,'C Data'!$A:$A,'SVT Calculator'!$C$11)","v":0}]
[null,"% Spend with VCSE",{"$f":"SUMIFS('C Data'!G:G,'C Data'!$A:$A,'SVT Calculator'!$C$11)","v":0},{"$f":"SUMIFS('PS data'!$E:$E,'PS data'!$A:$A,'SVT Calculator'!D$11)","v":0},{"$f":"SUMIFS('PS data'!$E:$E,'PS data'!$A:$A,'SVT Calculator'!E$11)","v":0},{"$f":"SUMIFS('PS data'!$E:$E,'PS data'!$A:$A,'SVT Calculator'!F$11)","v":0},{"$f":"SUMIFS('PS data'!$E:$E,'PS data'!$A:$A,'SVT Calculator'!G$11)","v":0},{"$f":"SUMIFS('PS data'!$E:$E,'PS data'!$A:$A,'SVT Calculator'!H$11)","v":0},{"$f":"SUMIFS('PS data'!$E:$E,'PS data'!$A:$A,'SVT Calculator'!I$11)","v":0},{"$f":"SUMIFS('PS data'!$E:$E,'PS data'!$A:$A,'SVT Calculator'!J$11)","v":0},{"$f":"SUMIFS('PS data'!$E:$E,'PS data'!$A:$A,'SVT Calculator'!K$11)","v":0},{"$f":"SUMIFS('PS data'!$E:$E,'PS data'!$A:$A,'SVT Calculator'!L$11)","v":0}]
[null,"% Waste diverted from landfill.",{"$f":"SUMIFS('C Data'!J:J,'C Data'!$A:$A,'SVT Calculator'!$C$11)","v":0}]
[null,"Specialist advice hours for VCSE or SME",{"$f":"SUMIFS('C Data'!I:I,'C Data'!$A:$A,'SVT Calculator'!$C$11)*(C13/1000000)","v":0},{"$f":"SUMIFS('PS data'!$G:$G,'PS data'!$A:$A,'SVT Calculator'!D$11)*(D13/10000)","v":0},{"$f":"SUMIFS('PS data'!$G:$G,'PS data'!$A:$A,'SVT Calculator'!E$11)*(E13/10000)","v":0},{"$f":"SUMIFS('PS data'!$G:$G,'PS data'!$A:$A,'SVT Calculator'!F$11)*(F13/10000)","v":0},{"$f":"SUMIFS('PS data'!$G:$G,'PS data'!$A:$A,'SVT Calculator'!G$11)*(G13/10000)","v":0},{"$f":"SUMIFS('PS data'!$G:$G,'PS data'!$A:$A,'SVT Calculator'!H$11)*(H13/10000)","v":0},{"$f":"SUMIFS('PS data'!$G:$G,'PS data'!$A:$A,'SVT Calculator'!I$11)*(I13/10000)","v":0},{"$f":"SUMIFS('PS data'!$G:$G,'PS data'!$A:$A,'SVT Calculator'!J$11)*(J13/10000)","v":0},{"$f":"SUMIFS('PS data'!$G:$G,'PS data'!$A:$A,'SVT Calculator'!K$11)*(K13/10000)","v":0},{"$f":"SUMIFS('PS data'!$G:$G,'PS data'!$A:$A,'SVT Calculator'!L$11)*(L13/10000)","v":0}]
[null,"Specialist advice hours for Careers IAG",{"$f":"SUMIFS('C Data'!D:D,'C Data'!$A:$A,'SVT Calculator'!$C$11)*(C13/1000000)","v":0},{"$f":"SUMIFS('PS data'!$C:$C,'PS data'!$A:$A,'SVT Calculator'!D$11)*(D13/10000)","v":0},{"$f":"SUMIFS('PS data'!$C:$C,'PS data'!$A:$A,'SVT Calculator'!E$11)*(E13/10000)","v":0},{"$f":"SUMIFS('PS data'!$C:$C,'PS data'!$A:$A,'SVT Calculator'!F$11)*(F13/10000)","v":0},{"$f":"SUMIFS('PS data'!$C:$C,'PS data'!$A:$A,'SVT Calculator'!G$11)*(G13/10000)","v":0},{"$f":"SUMIFS('PS data'!$C:$C,'PS data'!$A:$A,'SVT Calculator'!H$11)*(H13/10000)","v":0},{"$f":"SUMIFS('PS data'!$C:$C,'PS data'!$A:$A,'SVT Calculator'!I$11)*(I13/10000)","v":0},{"$f":"SUMIFS('PS data'!$C:$C,'PS data'!$A:$A,'SVT Calculator'!J$11)*(J13/10000)","v":0},{"$f":"SUMIFS('PS data'!$C:$C,'PS data'!$A:$A,'SVT Calculator'!K$11)*(K13/10000)","v":0},{"$f":"SUMIFS('PS data'!$C:$C,'PS data'!$A:$A,'SVT Calculator'!L$11)*(L13/10000)","v":0}]
[null,"Carbon Literacy training provided",{"$f":"SUMIFS('C Data'!K:K,'C Data'!$A:$A,'SVT Calculator'!$C$11)*(C13/1000000)","v":0},{"$f":"SUMIFS('PS data'!$H:$H,'PS data'!$A:$A,'SVT Calculator'!D$11)*(D13/10000)","v":0},{"$f":"SUMIFS('PS data'!$H:$H,'PS data'!$A:$A,'SVT Calculator'!E$11)*(E13/10000)","v":0},{"$f":"SUMIFS('PS data'!$H:$H,'PS data'!$A:$A,'SVT Calculator'!F$11)*(F13/10000)","v":0},{"$f":"SUMIFS('PS data'!$H:$H,'PS data'!$A:$A,'SVT Calculator'!G$11)*(G13/10000)","v":0},{"$f":"SUMIFS('PS data'!$H:$H,'PS data'!$A:$A,'SVT Calculator'!H$11)*(H13/10000)","v":0},{"$f":"SUMIFS('PS data'!$H:$H,'PS data'!$A:$A,'SVT Calculator'!I$11)*(I13/10000)","v":0},{"$f":"SUMIFS('PS data'!$H:$H,'PS data'!$A:$A,'SVT Calculator'!J$11)*(J13/10000)","v":0},{"$f":"SUMIFS('PS data'!$H:$H,'PS data'!$A:$A,'SVT Calculator'!K$11)*(K13/10000)","v":0},{"$f":"SUMIFS('PS data'!$H:$H,'PS data'!$A:$A,'SVT Calculator'!L$11)*(L13/10000)","v":0}]
[null,"£100s for poverty initiatives",{"$f":"SUMIFS('C Data'!L:L,'C Data'!$A:$A,'SVT Calculator'!$C$11)*(C13/1000000)","v":0},{"$f":"SUMIFS('PS data'!$I:$I,'PS data'!$A:$A,'SVT Calculator'!D$11)*(D13/10000)","v":0},{"$f":"SUMIFS('PS data'!$I:$I,'PS data'!$A:$A,'SVT Calculator'!E$11)*(E13/10000)","v":0},{"$f":"SUMIFS('PS data'!$I:$I,'PS data'!$A:$A,'SVT Calculator'!F$11)*(F13/10000)","v":0},{"$f":"SUMIFS('PS data'!$I:$I,'PS data'!$A:$A,'SVT Calculator'!G$11)*(G13/10000)","v":0},{"$f":"SUMIFS('PS data'!$I:$I,'PS data'!$A:$A,'SVT Calculator'!H$11)*(H13/10000)","v":0},{"$f":"SUMIFS('PS data'!$I:$I,'PS data'!$A:$A,'SVT Calculator'!I$11)*(I13/10000)","v":0},{"$f":"SUMIFS('PS data'!$I:$I,'PS data'!$A:$A,'SVT Calculator'!J$11)*(J13/10000)","v":0},{"$f":"SUMIFS('PS data'!$I:$I,'PS data'!$A:$A,'SVT Calculator'!K$11)*(K13/10000)","v":0},{"$f":"SUMIFS('PS data'!$I:$I,'PS data'!$A:$A,'SVT Calculator'!L$11)*(L13/10000)","v":0}]
[null,"£100's towards Digital equipment",{"$f":"SUMIFS('C Data'!Q:Q,'C Data'!$A:$A,'SVT Calculator'!$C$11)*(C13/1000000)","v":0},{"$f":"SUMIFS('PS data'!$M:$M,'PS data'!$A:$A,'SVT Calculator'!D$11)*(D13/10000)","v":0},{"$f":"SUMIFS('PS data'!$M:$M,'PS data'!$A:$A,'SVT Calculator'!E$11)*(E13/10000)","v":0},{"$f":"SUMIFS('PS data'!$M:$M,'PS data'!$A:$A,'SVT Calculator'!F$11)*(F13/10000)","v":0},{"$f":"SUMIFS('PS data'!$M:$M,'PS data'!$A:$A,'SVT Calculator'!G$11)*(G13/10000)","v":0},{"$f":"SUMIFS('PS data'!$M:$M,'PS data'!$A:$A,'SVT Calculator'!H$11)*(H13/10000)","v":0},{"$f":"SUMIFS('PS data'!$M:$M,'PS data'!$A:$A,'SVT Calculator'!I$11)*(I13/10000)","v":0},{"$f":"SUMIFS('PS data'!$M:$M,'PS data'!$A:$A,'SVT Calculator'!J$11)*(J13/10000)","v":0},{"$f":"SUMIFS('PS data'!$M:$M,'PS data'!$A:$A,'SVT Calculator'!K$11)*(K13/10000)","v":0},{"$f":"SUMIFS('PS data'!$M:$M,'PS data'!$A:$A,'SVT Calculator'!L$11)*(L13/10000)","v":0}]
[null,"£100s towards community projects",{"$f":"SUMIFS('C Data'!E:E,'C Data'!$A:$A,'SVT Calculator'!$C$11)*(C13/1000000)","v":0},{"$f":"SUMIFS('PS data'!$D:$D,'PS data'!$A:$A,'SVT Calculator'!D$11)*(D13/10000)","v":0},{"$f":"SUMIFS('PS data'!$D:$D,'PS data'!$A:$A,'SVT Calculator'!E$11)*(E13/10000)","v":0},{"$f":"SUMIFS('PS data'!$D:$D,'PS data'!$A:$A,'SVT Calculator'!F$11)*(F13/10000)","v":0},{"$f":"SUMIFS('PS data'!$D:$D,'PS data'!$A:$A,'SVT Calculator'!G$11)*(G13/10000)","v":0},{"$f":"SUMIFS('PS data'!$D:$D,'PS data'!$A:$A,'SVT Calculator'!H$11)*(H13/10000)","v":0},{"$f":"SUMIFS('PS data'!$D:$D,'PS data'!$A:$A,'SVT Calculator'!I$11)*(I13/10000)","v":0},{"$f":"SUMIFS('PS data'!$D:$D,'PS data'!$A:$A,'SVT Calculator'!J$11)*(J13/10000)","v":0},{"$f":"SUMIFS('PS data'!$D:$D,'PS data'!$A:$A,'SVT Calculator'!K$11)*(K13/10000)","v":0},{"$f":"SUMIFS('PS data'!$D:$D,'PS data'!$A:$A,'SVT Calculator'!L$11)*(L13/10000)","v":0}]
[null,"Hours volunteered for community project",{"$f":"SUMIFS('C Data'!H:H,'C Data'!$A:$A,'SVT Calculator'!$C$11)*(C13/1000000)","v":0},{"$f":"SUMIFS('PS data'!$F:$F,'PS data'!$A:$A,'SVT Calculator'!D$11)*(D13/10000)","v":0},{"$f":"SUMIFS('PS data'!$F:$F,'PS data'!$A:$A,'SVT Calculator'!E$11)*(E13/10000)","v":0},{"$f":"SUMIFS('PS data'!$F:$F,'PS data'!$A:$A,'SVT Calculator'!F$11)*(F13/10000)","v":0},{"$f":"SUMIFS('PS data'!$F:$F,'PS data'!$A:$A,'SVT Calculator'!G$11)*(G13/10000)","v":0},{"$f":"SUMIFS('PS data'!$F:$F,'PS data'!$A:$A,'SVT Calculator'!H$11)*(H13/10000)","v":0},{"$f":"SUMIFS('PS data'!$F:$F,'PS data'!$A:$A,'SVT Calculator'!I$11)*(I13/10000)","v":0},{"$f":"SUMIFS('PS data'!$F:$F,'PS data'!$A:$A,'SVT Calculator'!J$11)*(J13/10000)","v":0},{"$f":"SUMIFS('PS data'!$F:$F,'PS data'!$A:$A,'SVT Calculator'!K$11)*(K13/10000)","v":0},{"$f":"SUMIFS('PS data'!$F:$F,'PS data'!$A:$A,'SVT Calculator'!L$11)*(L13/10000)","v":0}]
[null,"Hours for Homelessness projects ",{"$f":"SUMIFS('C Data'!O:O,'C Data'!$A:$A,'SVT Calculator'!$C$11)*(C13/1000000)","v":0},{"$f":"SUMIFS('PS data'!$K:$K,'PS data'!$A:$A,'SVT Calculator'!D$11)*(D13/10000)","v":0},{"$f":"SUMIFS('PS data'!$K:$K,'PS data'!$A:$A,'SVT Calculator'!E$11)*(E13/10000)","v":0},{"$f":"SUMIFS('PS data'!$K:$K,'PS data'!$A:$A,'SVT Calculator'!F$11)*(F13/10000)","v":0},{"$f":"SUMIFS('PS data'!$K:$K,'PS data'!$A:$A,'SVT Calculator'!G$11)*(G13/10000)","v":0},{"$f":"SUMIFS('PS data'!$K:$K,'PS data'!$A:$A,'SVT Calculator'!H$11)*(H13/10000)","v":0},{"$f":"SUMIFS('PS data'!$K:$K,'PS data'!$A:$A,'SVT Calculator'!I$11)*(I13/10000)","v":0},{"$f":"SUMIFS('PS data'!$K:$K,'PS data'!$A:$A,'SVT Calculator'!J$11)*(J13/10000)","v":0},{"$f":"SUMIFS('PS data'!$K:$K,'PS data'!$A:$A,'SVT Calculator'!K$11)*(K13/10000)","v":0},{"$f":"SUMIFS('PS data'!$K:$K,'PS data'!$A:$A,'SVT Calculator'!L$11)*(L13/10000)","v":0}]
[null,"Hours for Digital Inclusion",{"$f":"SUMIFS('C Data'!P:P,'C Data'!$A:$A,'SVT Calculator'!$C$11)*(C13/1000000)","v":0},{"$f":"SUMIFS('PS data'!$L:$L,'PS data'!$A:$A,'SVT Calculator'!D$11)*(D13/10000)","v":0},{"$f":"SUMIFS('PS data'!$L:$L,'PS data'!$A:$A,'SVT Calculator'!E$11)*(E13/10000)","v":0},{"$f":"SUMIFS('PS data'!$L:$L,'PS data'!$A:$A,'SVT Calculator'!F$11)*(F13/10000)","v":0},{"$f":"SUMIFS('PS data'!$L:$L,'PS data'!$A:$A,'SVT Calculator'!G$11)*(G13/10000)","v":0},{"$f":"SUMIFS('PS data'!$L:$L,'PS data'!$A:$A,'SVT Calculator'!H$11)*(H13/10000)","v":0},{"$f":"SUMIFS('PS data'!$L:$L,'PS data'!$A:$A,'SVT Calculator'!I$11)*(I13/10000)","v":0},{"$f":"SUMIFS('PS data'!$L:$L,'PS data'!$A:$A,'SVT Calculator'!J$11)*(J13/10000)","v":0},{"$f":"SUMIFS('PS data'!$L:$L,'PS data'!$A:$A,'SVT Calculator'!K$11)*(K13/10000)","v":0},{"$f":"SUMIFS('PS data'!$L:$L,'PS data'!$A:$A,'SVT Calculator'!L$11)*(L13/10000)","v":0}]
[null,"Hours to promote healthy living",{"$f":"SUMIFS('C Data'!N:N,'C Data'!$A:$A,'SVT Calculator'!$C$11)*(C13/1000000)","v":0},{"$f":"SUMIFS('PS data'!$J:$J,'PS data'!$A:$A,'SVT Calculator'!D$11)*(D13/10000)","v":0},{"$f":"SUMIFS('PS data'!$J:$J,'PS data'!$A:$A,'SVT Calculator'!E$11)*(E13/10000)","v":0},{"$f":"SUMIFS('PS data'!$J:$J,'PS data'!$A:$A,'SVT Calculator'!F$11)*(F13/10000)","v":0},{"$f":"SUMIFS('PS data'!$J:$J,'PS data'!$A:$A,'SVT Calculator'!G$11)*(G13/10000)","v":0},{"$f":"SUMIFS('PS data'!$J:$J,'PS data'!$A:$A,'SVT Calculator'!H$11)*(H13/10000)","v":0},{"$f":"SUMIFS('PS data'!$J:$J,'PS data'!$A:$A,'SVT Calculator'!I$11)*(I13/10000)","v":0},{"$f":"SUMIFS('PS data'!$J:$J,'PS data'!$A:$A,'SVT Calculator'!J$11)*(J13/10000)","v":0},{"$f":"SUMIFS('PS data'!$J:$J,'PS data'!$A:$A,'SVT Calculator'!K$11)*(K13/10000)","v":0},{"$f":"SUMIFS('PS data'!$J:$J,'PS data'!$A:$A,'SVT Calculator'!L$11)*(L13/10000)","v":0}]
[null,"Service Provider total",{"$f":"'Social Value Proxies'!C27","v":0},{"$f":"'Social Value Proxies'!D27","v":0},{"$f":"'Social Value Proxies'!E27","v":0},{"$f":"'Social Value Proxies'!F27","v":0},{"$f":"'Social Value Proxies'!G27","v":0},{"$f":"'Social Value Proxies'!H27","v":0},{"$f":"'Social Value Proxies'!I27","v":0},{"$f":"'Social Value Proxies'!J27","v":0},{"$f":"'Social Value Proxies'!M27","v":0},{"$f":"'Social Value Proxies'!N27","v":0}]
[null,"Split"]
[null,"Social",{"$f":"SUM('Social Value Proxies'!C13,'Social Value Proxies'!C17,'Social Value Proxies'!C18,'Social Value Proxies'!C19,'Social Value Proxies'!C20,'Social Value Proxies'!C21,'Social Value Proxies'!C22,'Social Value Proxies'!C23,'Social Value Proxies'!C24,'Social Value Proxies'!C25,'Social Value Proxies'!C26)","v":0},{"$f":"SUM('Social Value Proxies'!D13,'Social Value Proxies'!D17,'Social Value Proxies'!D18,'Social Value Proxies'!D19,'Social Value Proxies'!D20,'Social Value Proxies'!D21,'Social Value Proxies'!D22,'Social Value Proxies'!D23,'Social Value Proxies'!D24,'Social Value Proxies'!D25,'Social Value Proxies'!D26)","v":0},{"$f":"SUM('Social Value Proxies'!E13,'Social Value Proxies'!E17,'Social Value Proxies'!E18,'Social Value Proxies'!E19,'Social Value Proxies'!E20,'Social Value Proxies'!E21,'Social Value Proxies'!E22,'Social Value Proxies'!E23,'Social Value Proxies'!E24,'Social Value Proxies'!E25,'Social Value Proxies'!E26)","v":0},{"$f":"SUM('Social Value Proxies'!F13,'Social Value Proxies'!F17,'Social Value Proxies'!F18,'Social Value Proxies'!F19,'Social Value Proxies'!F20,'Social Value Proxies'!F21,'Social Value Proxies'!F22,'Social Value Proxies'!F23,'Social Value Proxies'!F24,'Social Value Proxies'!F25,'Social Value Proxies'!F26)","v":0},{"$f":"SUM('Social Value Proxies'!G13,'Social Value Proxies'!G17,'Social Value Proxies'!G18,'Social Value Proxies'!G19,'Social Value Proxies'!G20,'Social Value Proxies'!G21,'Social Value Proxies'!G22,'Social Value Proxies'!G23,'Social Value Proxies'!G24,'Social Value Proxies'!G25,'Social Value Proxies'!G26)","v":0},{"$f":"SUM('Social Value Proxies'!H13,'Social Value Proxies'!H17,'Social Value Proxies'!H18,'Social Value Proxies'!H19,'Social Value Proxies'!H20,'Social Value Proxies'!H21,'Social Value Proxies'!H22,'Social Value Proxies'!H23,'Social Value Proxies'!H24,'Social Value Proxies'!H25,'Social Value Proxies'!H26)","v":0},{"$f":"SUM('Social Value Proxies'!I13,'Social Value Proxies'!I17,'Social Value Proxies'!I18,'Social Value Proxies'!I19,'Social Value Proxies'!I20,'Social Value Proxies'!I21,'Social Value Proxies'!I22,'Social Value Proxies'!I23,'Social Value Proxies'!I24,'Social Value Proxies'!I25,'Social Value Proxies'!I26)","v":0},{"$f":"SUM('Social Value Proxies'!J13,'Social Value Proxies'!J17,'Social Value Proxies'!J18,'Social Value Proxies'!J19,'Social Value Proxies'!J20,'Social Value Proxies'!J21,'Social Value Proxies'!J22,'Social Value Proxies'!J23,'Social Value Proxies'!J24,'Social Value Proxies'!J25,'Social Value Proxies'!J26)","v":0},{"$f":"SUM('Social Value Proxies'!M13,'Social Value Proxies'!M17,'Social Value Proxies'!M18,'Social Value Proxies'!M19,'Social Value Proxies'!M20,'Social Value Proxies'!M21,'Social Value Proxies'!M22,'Social Value Proxies'!M23,'Social Value Proxies'!M24,'Social Value Proxies'!M25,'Social Value Proxies'!M26)","v":0},{"$f":"SUM('Social Value Proxies'!N13,'Social Value Proxies'!N17,'Social Value Proxies'!N18,'Social Value Proxies'!N19,'Social Value Proxies'!N20,'Social Value Proxies'!N21,'Social Value Proxies'!N22,'Social Value Proxies'!N23,'Social Value Proxies'!N24,'Social Value Proxies'!N25,'Social Value Proxies'!N26)","v":0}]
[null,"Economic",{"$f":"SUM('Social Value Proxies'!C11,'Social Value Proxies'!C12,'Social Value Proxies'!C14,'Social Value Proxies'!C15,'Social Value Proxies'!C16)","v":0},{"$f":"SUM('Social Value Proxies'!D11,'Social Value Proxies'!D12,'Social Value Proxies'!D14,'Social Value Proxies'!D15,'Social Value Proxies'!D16)","v":0},{"$f":"SUM('Social Value Proxies'!E11,'Social Value Proxies'!E12,'Social Value Proxies'!E14,'Social Value Proxies'!E15,'Social Value Proxies'!E16)","v":0},{"$f":"SUM('Social Value Proxies'!F11,'Social Value Proxies'!F12,'Social Value Proxies'!F14,'Social Value Proxies'!F15,'Social Value Proxies'!F16)","v":0},{"$f":"SUM('Social Value Proxies'!G11,'Social Value Proxies'!G12,'Social Value Proxies'!G14,'Social Value Proxies'!G15,'Social Value Proxies'!G16)","v":0},{"$f":"SUM('Social Value Proxies'!H11,'Social Value Proxies'!H12,'Social Value Proxies'!H14,'Social Value Proxies'!H15,'Social Value Proxies'!H16)","v":0},{"$f":"SUM('Social Value Proxies'!I11,'Social Value Proxies'!I12,'Social Value Proxies'!I14,'Social Value Proxies'!I15,'Social Value Proxies'!I16)","v":0},{"$f":"SUM('Social Value Proxies'!J11,'Social Value Proxies'!J12,'Social Value Proxies'!J14,'Social Value Proxies'!J15,'Social Value Proxies'!J16)","v":0},{"$f":"SUM('Social Value Proxies'!M11,'Social Value Proxies'!M12,'Social Value Proxies'!M14,'Social Value Proxies'!M15,'Social Value Proxies'!M16)","v":0},{"$f":"SUM('Social Value Proxies'!N11,'Social Value Proxies'!N12,'Social Value Proxies'!N14,'Social Value Proxies'!N15,'Social Value Proxies'!N16)","v":0}]
[null,"Social Return on Investment",{"$f":"IFERROR(C30/C13,\"\")","v":""},{"$f":"IFERROR(D30/D13,\"\")","v":""},"","","","","","",{"$f":"IFERROR(K30/K13,\"\")","v":""},{"$f":"IFERROR(L30/L13,\"\")","v":""}]
[]
[]
[null,"This calculator uses data from National Toms Framework, 2019 version. "]
[null,"**National TOMS"]
[null,"Attribution\nTitle: National TOMs 2019\nAuthor: Social Value Portal Ltd\nSource: socialvalueportal.com\nLicense: Creative Commons Attribution-NonCommercial-NoDerivatives 4.0 International License "]
[null,"https://creativecommons.org/licenses/by-nc-nd/4.0/"]

{"sheet":"Social Value Summary","index":4,"n_rows":14,"n_cols":7,"rows_kept":14,"cut":false,"hidden":false,"merged":[[13,1,13,2],[8,6,10,6]]}
[]
[null,"Social Value Target Summary"]
[]
[null,"Action","Quantity","Value","Impact"]
[null,"Volunteer hours",{"$f":"SUM('SVT Calculator'!C26:L29,'SVT Calculator'!L29)","v":0},{"$f":"SUM('Social Value Proxies'!C23:L26)","v":0},"Social"]
[null,"Specialist hours",{"$f":"SUM('SVT Calculator'!C20:L21)","v":0},{"$f":"SUM('Social Value Proxies'!C17:L18)","v":0},"Social"]
[null,"Contribution ",{"$f":"SUM('SVT Calculator'!C23:L25)","v":0},{"$f":"SUM('Social Value Proxies'!C20:L22)","v":0},"Social",null,{"$f":"'SVT Calculator'!C3","v":0}]
[null,"Work experience",{"$f":"SUM('SVT Calculator'!C16:L16)","v":0},{"$f":"SUM('Social Value Proxies'!C13:L13)","v":0},"Social",null,{"$f":"'SVT Calculator'!C4","v":0}]
[null,"Jobs",{"$f":"SUM('SVT Calculator'!C14)","v":0},{"$f":"SUM('Social Value Proxies'!C11:C12)","v":0},"Economic",null,{"$f":"CONCATENATE('SVT Calculator'!C11,\", \",'SVT Calculator'!D11,\", \",'SVT Calculator'!E11,\", \",'SVT Calculator'!F11,\", \",'SVT Calculator'!G11,\", \",'SVT Calculator'!H11,\", \",'SVT Calculator'!I11,\", \",'SVT Calculator'!J11,\", \",'SVT Calculator'!K11,\", \",'SVT Calculator'!L11)","v":", , , , , , , , , "}]
[null,"Staff trained",{"$f":"SUM('SVT Calculator'!C22:L22)","v":0},{"$f":"SUM('Social Value Proxies'!C19:L19)","v":0},"Social"]
[null,"Spend with local suppliers",{"$f":"'SVT Calculator'!C17","v":0},{"$f":"'Social Value Proxies'!C14","v":0},"Economic"]
[null,"Spend with VCSE",{"$f":"AVERAGE('SVT Calculator'!C18:L18)","v":0},{"$f":"SUM('Social Value Proxies'!C15:L15)","v":0},"Economic"]
[null,"Waste recycled",{"$f":"'SVT Calculator'!C19","v":0},{"$f":"'Social Value Proxies'!C16","v":0},"Economic"]
[null,"Total value to society ",null,{"$f":"SUM(D5:D13)","v":0},{"$f":"'SVT Calculator'!L34","v":""}]

{"sheet":"Social Value Proxies","index":5,"n_rows":36,"n_cols":18,"rows_kept":36,"cut":false,"hidden":true,"merged":[[4,3,4,7],[4,8,4,9],[4,10,4,11]]}
[]
[null,"Social Value Target Proxy Values",null,null,"Instructions"]
[null,null,null,null,"Do not enter or alter any figures - this page is automated for information only"]
[]
[null,null,"Main Contractor","Consultants",null,null,null,null,"C8 or C9 Only",null,"Day Rates"]
[null,"Lot",{"$f":"'SVT Calculator'!C9","v":0},{"$f":"'SVT Calculator'!D9","v":0},{"$f":"'SVT Calculator'!E9","v":0},{"$f":"'SVT Calculator'!F9","v":0},{"$f":"'SVT Calculator'!G9","v":0},{"$f":"'SVT Calculator'!H9","v":0},{"$f":"'SVT Calculator'!I9","v":0},{"$f":"'SVT Calculator'!J9","v":0},{"$f":"'SVT Calculator'!K9","v":0},{"$f":"'SVT Calculator'!L9","v":0}]
[null,"Stage - If no stage, enter n/a",{"$f":"'SVT Calculator'!C10","v":0},{"$f":"'SVT Calculator'!D10","v":0},{"$f":"'SVT Calculator'!E10","v":0},{"$f":"'SVT Calculator'!F10","v":0},{"$f":"'SVT Calculator'!G10","v":0},{"$f":"'SVT Calculator'!H10","v":0},{"$f":"'SVT Calculator'!I10","v":0},{"$f":"'SVT Calculator'!J10","v":0},{"$f":"'SVT Calculator'!K10","v":0},{"$f":"'SVT Calculator'!L10","v":0}]
[null,"Provider",{"$f":"'SVT Calculator'!C11","v":0},{"$f":"'SVT Calculator'!D11","v":0},{"$f":"'SVT Calculator'!E11","v":0},{"$f":"'SVT Calculator'!F11","v":0},{"$f":"'SVT Calculator'!G11","v":0},{"$f":"'SVT Calculator'!H11","v":0},{"$f":"'SVT Calculator'!I11","v":0},{"$f":"'SVT Calculator'!J11","v":0},{"$f":"'SVT Calculator'!K11","v":0},{"$f":"'SVT Calculator'!L11","v":0}]
[null,"Fee %",{"$f":"'SVT Calculator'!C12","v":1},{"$f":"'SVT Calculator'!D12","v":0},{"$f":"'SVT Calculator'!E12","v":0},{"$f":"'SVT Calculator'!F12","v":0},{"$f":"'SVT Calculator'!G12","v":0},{"$f":"'SVT Calculator'!H12","v":0},{"$f":"'SVT Calculator'!I12","v":0},{"$f":"'SVT Calculator'!J12","v":0},{"$f":"'SVT Calculator'!K12","v":0},{"$f":"'SVT Calculator'!L12","v":0}]
[null,"Value",{"$f":"'SVT Calculator'!C13","v":0},{"$f":"'SVT Calculator'!D13","v":0},{"$f":"'SVT Calculator'!E13","v":0},{"$f":"'SVT Calculator'!F13","v":0},{"$f":"'SVT Calculator'!G13","v":0},{"$f":"'SVT Calculator'!H13","v":0},{"$f":"'SVT Calculator'!I13","v":0},{"$f":"'SVT Calculator'!J13","v":0},{"$f":"'SVT Calculator'!K13","v":0},{"$f":"'SVT Calculator'!L13","v":0},"Total",null,null,"Proxy Values and Methodology"]
[null,"Full time, 6 month roles",{"$f":"$Q$11*'SVT Calculator'!C14","v":0},null,null,null,null,null,null,null,null,null,{"$f":"SUM(C11:H11)","v":0},null,null,"Full time, 6 month roles",14379,"Real Living Wage * 40 hours * six months"]
[null,"New jobs targeted for disadvantaged customers",{"$f":"$Q$12*'SVT Calculator'!C15","v":0},null,null,null,null,null,null,null,null,null,{"$f":"SUM(C12:H12)","v":0},null,null,"New jobs targeted for disadvantaged customers",{"$f":"14328/2","v":7164},"National TOMS - Average of NT3:6A / 2 "]
[null,"Work placement weeks",{"$f":"$Q$13*'SVT Calculator'!C16","v":0},{"$f":"$Q$13*'SVT Calculator'!D16","v":0},{"$f":"$Q$13*'SVT Calculator'!E16","v":0},{"$f":"$Q$13*'SVT Calculator'!F16","v":0},{"$f":"$Q$13*'SVT Calculator'!G16","v":0},{"$f":"$Q$13*'SVT Calculator'!H16","v":0},{"$f":"$Q$13*'SVT Calculator'!I16","v":0},{"$f":"$Q$13*'SVT Calculator'!J16","v":0},{"$f":"$Q$13*'SVT Calculator'!K16","v":0},{"$f":"$Q$13*'SVT Calculator'!L16","v":0},{"$f":"SUM(C13:H13)","v":0},null,null,"Work placement weeks",148.94999999999999,"National TOMS"]
[null,"% Spend with local suppliers",{"$f":"('SVT Calculator'!C17)*$Q$14","v":0},null,null,null,null,null,null,null,null,null,{"$f":"SUM(C14:H14)","v":0},null,null,"% Spend with local suppliers",{"$f":"SUM(0.27*100000)","v":27000},"Local multiplier for North West - 27p per pound * 40% spent on supply * percentage entered"]
[null,"% Spend with VCSE",{"$f":"('SVT Calculator'!C18)*$Q$15","v":0},{"$f":"('SVT Calculator'!D18)*$Q$15","v":0},{"$f":"('SVT Calculator'!E18)*$Q$15","v":0},{"$f":"('SVT Calculator'!F18)*$Q$15","v":0},{"$f":"('SVT Calculator'!G18)*$Q$15","v":0},{"$f":"('SVT Calculator'!H18)*$Q$15","v":0},{"$f":"('SVT Calculator'!I18)*$Q$15","v":0},{"$f":"('SVT Calculator'!J18)*$Q$15","v":0},{"$f":"('SVT Calculator'!K18)*$Q$15","v":0},{"$f":"('SVT Calculator'!L18)*$Q$15","v":0},{"$f":"SUM(C15:H15)","v":0},null,null,"% Spend with VCSE",{"$f":"SUM(0.12*100000)","v":12000},"12p per pound *  40% spent on supply * percentage entered"]
[null,"% Waste diverted from landfill.",{"$f":"$Q$16*'SVT Calculator'!C19","v":0},null,null,null,null,null,null,null,null,null,{"$f":"SUM(C16:H16)","v":0},null,null,"% Waste diverted from landfill.",{"$f":"SUM(88.95*100)","v":8895},"Wrap data - 111 tonnes per £1m for residential new builds * £94.15 per tonne landfill tax"]
[null,"Specialist advice hours for VCSE or SME",{"$f":"$Q$17*'SVT Calculator'!C20","v":0},{"$f":"$Q$17*'SVT Calculator'!D20","v":0},{"$f":"$Q$17*'SVT Calculator'!E20","v":0},{"$f":"$Q$17*'SVT Calculator'!F20","v":0},{"$f":"$Q$17*'SVT Calculator'!G20","v":0},{"$f":"$Q$17*'SVT Calculator'!H20","v":0},{"$f":"$Q$17*'SVT Calculator'!I20","v":0},{"$f":"$Q$17*'SVT Calculator'!J20","v":0},{"$f":"$Q$17*'SVT Calculator'!K20","v":0},{"$f":"$Q$17*'SVT Calculator'!L20","v":0},0,null,null,"Specialist advice hours for VCSE or SME",85.57,"National TOMS"]
[null,"Specialist advice hours for Careers IAG",{"$f":"$Q$18*'SVT Calculator'!C21","v":0},{"$f":"$Q$18*'SVT Calculator'!D21","v":0},{"$f":"$Q$18*'SVT Calculator'!E21","v":0},{"$f":"$Q$18*'SVT Calculator'!F21","v":0},{"$f":"$Q$18*'SVT Calculator'!G21","v":0},{"$f":"$Q$18*'SVT Calculator'!H21","v":0},{"$f":"$Q$18*'SVT Calculator'!I21","v":0},{"$f":"$Q$18*'SVT Calculator'!J21","v":0},{"$f":"$Q$18*'SVT Calculator'!K21","v":0},{"$f":"$Q$18*'SVT Calculator'!L21","v":0},0,null,null,"Specialist advice hours for Careers IAG",{"$f":"100.33","v":100.33},"National TOMS"]
[null,"Carbon Literacy training provided",{"$f":"$Q19*'SVT Calculator'!C22","v":0},{"$f":"$Q19*'SVT Calculator'!D22","v":0},{"$f":"$Q19*'SVT Calculator'!E22","v":0},{"$f":"$Q19*'SVT Calculator'!F22","v":0},{"$f":"$Q19*'SVT Calculator'!G22","v":0},{"$f":"$Q19*'SVT Calculator'!H22","v":0},{"$f":"$Q19*'SVT Calculator'!I22","v":0},{"$f":"$Q19*'SVT Calculator'!J22","v":0},{"$f":"$Q19*'SVT Calculator'!K22","v":0},{"$f":"$Q19*'SVT Calculator'!L22","v":0},0,null,null,"Carbon Literacy training provided",246.39080311838504,"National TOMS - Valued as NT10B - apprenticeship weeks to move towards low carbon economy"]
[null,"£100s for poverty initiatives",{"$f":"$Q$20*'SVT Calculator'!C23","v":0},{"$f":"$Q$20*'SVT Calculator'!D23","v":0},{"$f":"$Q$20*'SVT Calculator'!E23","v":0},{"$f":"$Q$20*'SVT Calculator'!F23","v":0},{"$f":"$Q$20*'SVT Calculator'!G23","v":0},{"$f":"$Q$20*'SVT Calculator'!H23","v":0},{"$f":"$Q$20*'SVT Calculator'!I23","v":0},{"$f":"$Q$20*'SVT Calculator'!J23","v":0},{"$f":"$Q$20*'SVT Calculator'!K23","v":0},{"$f":"$Q$20*'SVT Calculator'!L23","v":0},0,null,null,"£100s for poverty initiatives",100,"Equivalent value"]
[null,"£100's towards Digital equipment",{"$f":"$Q$21*'SVT Calculator'!C24","v":0},{"$f":"$Q$21*'SVT Calculator'!D24","v":0},{"$f":"$Q$21*'SVT Calculator'!E24","v":0},{"$f":"$Q$21*'SVT Calculator'!F24","v":0},{"$f":"$Q$21*'SVT Calculator'!G24","v":0},{"$f":"$Q$21*'SVT Calculator'!H24","v":0},{"$f":"$Q$21*'SVT Calculator'!I24","v":0},{"$f":"$Q$21*'SVT Calculator'!J24","v":0},{"$f":"$Q$21*'SVT Calculator'!K24","v":0},{"$f":"$Q$21*'SVT Calculator'!L24","v":0},0,null,null,"£100's towards Digital equipment",100,"Equivalent value"]
[null,"£100s towards community projects",{"$f":"$Q$22*'SVT Calculator'!C25","v":0},{"$f":"$Q$22*'SVT Calculator'!D25","v":0},{"$f":"$Q$22*'SVT Calculator'!E25","v":0},{"$f":"$Q$22*'SVT Calculator'!F25","v":0},{"$f":"$Q$22*'SVT Calculator'!G25","v":0},{"$f":"$Q$22*'SVT Calculator'!H25","v":0},{"$f":"$Q$22*'SVT Calculator'!I25","v":0},{"$f":"$Q$22*'SVT Calculator'!J25","v":0},{"$f":"$Q$22*'SVT Calculator'!K25","v":0},{"$f":"$Q$22*'SVT Calculator'!L25","v":0},0,null,null,"£100s towards community projects",100,"Equivalent value"]
[null,"Hours volunteered for community project",{"$f":"$Q$23*'SVT Calculator'!C26","v":0},{"$f":"$Q$23*'SVT Calculator'!D26","v":0},{"$f":"$Q$23*'SVT Calculator'!E26","v":0},{"$f":"$Q$23*'SVT Calculator'!F26","v":0},{"$f":"$Q$23*'SVT Calculator'!G26","v":0},{"$f":"$Q$23*'SVT Calculator'!H26","v":0},{"$f":"$Q$23*'SVT Calculator'!I26","v":0},{"$f":"$Q$23*'SVT Calculator'!J26","v":0},{"$f":"$Q$23*'SVT Calculator'!K26","v":0},{"$f":"$Q$23*'SVT Calculator'!L26","v":0},0,null,null,"Hours volunteered for community project",14.8,"National TOMS"]
[null,"Hours for Homelessness projects ",{"$f":"$Q$24*'SVT Calculator'!C27","v":0},{"$f":"$Q$24*'SVT Calculator'!D27","v":0},{"$f":"$Q$24*'SVT Calculator'!E27","v":0},{"$f":"$Q$24*'SVT Calculator'!F27","v":0},{"$f":"$Q$24*'SVT Calculator'!G27","v":0},{"$f":"$Q$24*'SVT Calculator'!H27","v":0},{"$f":"$Q$24*'SVT Calculator'!I27","v":0},{"$f":"$Q$24*'SVT Calculator'!J27","v":0},{"$f":"$Q$24*'SVT Calculator'!K27","v":0},{"$f":"$Q$24*'SVT Calculator'!L27","v":0},0,null,null,"Hours for Homelessness projects ",14.8,"National TOMS"]
[null,"Hours for Digital Inclusion",{"$f":"$Q$25*'SVT Calculator'!C28","v":0},{"$f":"$Q$25*'SVT Calculator'!D28","v":0},{"$f":"$Q$25*'SVT Calculator'!E28","v":0},{"$f":"$Q$25*'SVT Calculator'!F28","v":0},{"$f":"$Q$25*'SVT Calculator'!G28","v":0},{"$f":"$Q$25*'SVT Calculator'!H28","v":0},{"$f":"$Q$25*'SVT Calculator'!I28","v":0},{"$f":"$Q$25*'SVT Calculator'!J28","v":0},{"$f":"$Q$25*'SVT Calculator'!K28","v":0},{"$f":"$Q$25*'SVT Calculator'!L28","v":0},0,null,null,"Hours for Digital Inclusion",14.8,"National TOMS"]
[null,"Hours to promote healthy living",{"$f":"$Q$26*'SVT Calculator'!C29","v":0},{"$f":"$Q$26*'SVT Calculator'!D29","v":0},{"$f":"$Q$26*'SVT Calculator'!E29","v":0},{"$f":"$Q$26*'SVT Calculator'!F29","v":0},{"$f":"$Q$26*'SVT Calculator'!G29","v":0},{"$f":"$Q$26*'SVT Calculator'!H29","v":0},{"$f":"$Q$26*'SVT Calculator'!I29","v":0},{"$f":"$Q$26*'SVT Calculator'!J29","v":0},{"$f":"$Q$26*'SVT Calculator'!K29","v":0},{"$f":"$Q$26*'SVT Calculator'!L29","v":0},0,null,null,"Hours to promote healthy living",14.8,"National TOMS"]
[null,"Total",{"$f":"SUM(C11:C26)","v":0},{"$f":"SUM(D11:D26)","v":0},0,0,0,0,0,0,{"$f":"SUM(K11:K26)","v":0},0,0]
[null,"Split"]
[null,"Social",{"$f":"SUM(C13,C17,C18,C19,C20,C21,C22,C23,C24,C25,C26)","v":0},{"$f":"SUM(D13,D17,D18,D19,D20,D21,D22,D23,D24,D25,D26)","v":0},0,0,0,0,0,0,{"$f":"SUM(K13,K17,K18,K19,K20,K21,K22,K23,K24,K25,K26)","v":0},0,{"$f":"SUM(C29:L29)","v":0}]
[null,"Economic",{"$f":"SUM(C11,C12,C14,C15,C16)","v":0},{"$f":"SUM(D11,D12,D14,D15,D16)","v":0},0,0,0,0,0,0,{"$f":"SUM(K11,K12,K14,K15,K16)","v":0},0,{"$f":"SUM(C30:L30)","v":0}]
[null,"Social Return on Investment",{"$f":"IFERROR(C27/C10,\"\")","v":""},{"$f":"IFERROR(D27/D10,\"\")","v":""},"","","","","","",{"$f":"IFERROR(K27/K10,\"\")","v":""},"",{"$f":"IFERROR(M27/C10,\"\")","v":""}]
[]
[null,"This calculator uses data from National Toms Framework, 2019 version. "]
[null,"**National TOMS"]
[null,"Attribution\nTitle: National TOMs 2019\nAuthor: Social Value Portal Ltd\nSource: socialvalueportal.com\nLicense: Creative Commons Attribution-NonCommercial-NoDerivatives 4.0 International License "]
[null,"https://creativecommons.org/licenses/by-nc-nd/4.0/"]

{"sheet":"Pricing Table","index":6,"n_rows":729,"n_cols":14,"rows_kept":729,"cut":false,"hidden":true,"merged":[]}
["Lot","Band","Stage","Provider","% Fee","Min","Max",null,null,null,"Lot","Stage","Provider","Cost"]
["_C1A_EAST",1,"n/a","AA Projects Ltd",8.9999999999999993E-3,19500,97500,null,null,null,"_C2_EAST",1,"Align Property Partners",502]
["_C1A_EAST",2,"n/a","AA Projects Ltd",6.8999999999999999E-3,19500,97500,null,null,null,"_C2_EAST",2,"Align Property Partners",430]
["_C1A_EAST",1,"n/a","Appleyard & Trew LLP",1.2E-2,18000,60000,null,null,null,"_C2_EAST",1,"Campbell Reith Hill LLP",800]
["_C1A_EAST",2,"n/a","Appleyard & Trew LLP",6.0000000000000001E-3,18000,60000,null,null,null,"_C2_EAST",2,"Campbell Reith Hill LLP",550]
["_C1A_EAST",1,"n/a","BWA",9.7999999999999997E-3,10000,75000,null,null,null,"_C2_EAST",1,"Carley Daines & Partners",525]
["_C1A_EAST",2,"n/a","BWA",7.0000000000000001E-3,10000,75000,null,null,null,"_C2_EAST",2,"Carley Daines & Partners",455]
["_C1A_EAST",1,"n/a","CPC Project Services LLP",8.9999999999999993E-3,10000,80000,null,null,null,"_C2_EAST",1,"Elluc Projects",637.5]
["_C1A_EAST",2,"n/a","CPC Project Services LLP",6.4999999999999997E-3,10000,80000,null,null,null,"_C2_EAST",2,"Elluc Projects",525]
["_C1A_EAST",1,"n/a","Currie & Brown UK Ltd",8.5000000000000006E-3,20000,75000,null,null,null,"_C2_EAST",1,"Pell Frischmann Consultants",750]
["_C1A_EAST",2,"n/a","Currie & Brown UK Ltd",6.4999999999999997E-3,20000,75000,null,null,null,"_C2_EAST",2,"Pell Frischmann Consultants",500]
["_C1A_EAST",1,"n/a","Edge Property Solutions",0.01,5000,112500,null,null,null,"_C2_EAST",1,"Portland Consulting",600]
["_C1A_EAST",2,"n/a","Edge Property Solutions",7.4999999999999997E-3,5000,112500,null,null,null,"_C2_EAST",2,"Portland Consulting",450]
["_C1A_EAST",1,"n/a","Faithful & Gould",5.1999999999999998E-3,15000,66000,null,null,null,"_C2_EAST",1,"Ridge and Partners LLP",675]
["_C1A_EAST",2,"n/a","Faithful & Gould",4.4000000000000003E-3,15000,66000,null,null,null,"_C2_EAST",2,"Ridge and Partners LLP",450]
["_C1A_EAST",1,"n/a","Identity Consult",1.2E-2,20000,85500,null,null,null,"_C2_EAST",1,"Shape Consulting Engineers",480]
["_C1A_EAST",2,"n/a","Identity Consult",8.0000000000000002E-3,20000,85500,null,null,null,"_C2_EAST",2,"Shape Consulting Engineers",400]
["_C1A_EAST",1,"n/a","Markhams Ltd",8.5000000000000006E-3,12000,80000,null,null,null,"_C2_EAST",1,"Sutcliffe",675]
["_C1A_EAST",2,"n/a","Markhams Ltd",7.0000000000000001E-3,12000,80000,null,null,null,"_C2_EAST",2,"Sutcliffe",525]
["_C1A_EAST",1,"n/a","Michael Dyson Associates Limited",8.9999999999999993E-3,16500,75000,null,null,null,"_C2_WEST",1,"Alan Johnston Partnership",562.5]
["_C1A_EAST",2,"n/a","Michael Dyson Associates Limited",6.0000000000000001E-3,16500,75000,null,null,null,"_C2_WEST",2,"Alan Johnston Partnership",412.5]
["_C1A_EAST",1,"n/a","Poole Dick Associates",8.9999999999999993E-3,13500,65000,null,null,null,"_C2_WEST",1,"Align Property Partners",502]
["_C1A_EAST",2,"n/a","Poole Dick Associates",8.0000000000000002E-3,13500,65000,null,null,null,"_C2_WEST",2,"Align Property Partners",430]
["_C1A_EAST",1,"n/a","Rider Levett Bucknall UK Ltd",1.026E-2,10000,63825,null,null,null,"_C2_WEST",1,"Bradshaw Gass & Hope LLP",600]
["_C1A_EAST",2,"n/a","Rider Levett Bucknall UK Ltd",1.026E-2,10000,63825,null,null,null,"_C2_WEST",2,"Bradshaw Gass & Hope LLP",480]
["_C1A_EAST",1,"n/a","Ridge and Partners LLP",8.3999999999999995E-3,3500,99000,null,null,null,"_C2_WEST",1,"Brennan Consult",680]
["_C1A_EAST",2,"n/a","Ridge and Partners LLP",6.6E-3,3500,99000,null,null,null,"_C2_WEST",2,"Brennan Consult",560]
["_C1A_EAST",1,"n/a","Savills UK Limited",8.9999999999999993E-3,9000,135000,null,null,null,"_C2_WEST",1,"Campbell Reith Hill LLP",800]
["_C1A_EAST",2,"n/a","Savills UK Limited",8.9999999999999993E-3,9000,135000,null,null,null,"_C2_WEST",2,"Campbell Reith Hill LLP",550]
["_C1A_EAST",1,"n/a","Tozer Gallagher LLP",7.2500000000000004E-3,26500,77500,null,null,null,"_C2_WEST",1,"Carley Daines & Partners",525]
["_C1A_EAST",2,"n/a","Tozer Gallagher LLP",6.7499999999999999E-3,26500,77500,null,null,null,"_C2_WEST",2,"Carley Daines & Partners",455]
["_C1A_EAST",1,"n/a","Vextrix",1.3000000000000001E-2,7500,12500,null,null,null,"_C2_WEST",1,"Elluc Projects",637.5]
["_C1A_EAST",2,"n/a","Vextrix",0.01,7500,12500,null,null,null,"_C2_WEST",2,"Elluc Projects",525]
["_C1A_EAST",1,"n/a","Whiteley Eaves Ltd",6.4999999999999997E-3,3250,19250,null,null,null,"_C2_WEST",1,"Pell Frischmann Consultants",750]
["_C1A_EAST",2,"n/a","Whiteley Eaves Ltd",5.4999999999999997E-3,3250,19250,null,null,null,"_C2_WEST",2,"Pell Frischmann Consultants",500]
["_C1A_EAST",1,"n/a","Wilkinson Cowan Partnership",8.5000000000000006E-3,15000,72500,null,null,null,"_C2_WEST",1,"Portland Consulting",600]
["_C1A_EAST",2,"n/a","Wilkinson Cowan Partnership",6.4999999999999997E-3,15000,72500,null,null,null,"_C2_WEST",2,"Portland Consulting",450]
["_C1A_WEST",1,"n/a","AA Projects Ltd",8.9999999999999993E-3,19500,97500,null,null,null,"_C2_WEST",1,"Ridge and Partners LLP",675]
["_C1A_WEST",2,"n/a","AA Projects Ltd",6.8999999999999999E-3,19500,97500,null,null,null,"_C2_WEST",2,"Ridge and Partners LLP",450]
["_C1A_WEST",1,"n/a","Appleyard & Trew LLP",1.2E-2,18000,60000,null,null,null,"_C2_WEST",1,"Shape Consulting Engineers",480]
["_C1A_WEST",2,"n/a","Appleyard & Trew LLP",6.0000000000000001E-3,18000,60000,null,null,null,"_C2_WEST",2,"Shape Consulting Engineers",400]
["_C1A_WEST",1,"n/a","CPC Project Services LLP",8.9999999999999993E-3,10000,80000,null,null,null,"_C2_WEST",1,"Sutcliffe",675]
["_C1A_WEST",2,"n/a","CPC Project Services LLP",6.4999999999999997E-3,10000,80000,null,null,null,"_C2_WEST",2,"Sutcliffe",525]
["_C1A_WEST",1,"n/a","Currie & Brown UK Ltd",8.5000000000000006E-3,20000,75000,null,null,null,"_C3_EAST",1,"Align Property Partners",502]
["_C1A_WEST",2,"n/a","Currie & Brown UK Ltd",6.4999999999999997E-3,20000,75000,null,null,null,"_C3_EAST",2,"Align Property Partners",427]
["_C1A_WEST",1,"n/a","Edge Property Solutions",0.01,5000,112500,null,null,null,"_C3_EAST",3,"Align Property Partners",427]
["_C1A_WEST",2,"n/a","Edge Property Solutions",7.4999999999999997E-3,5000,112500,null,null,null,"_C3_EAST",1,"Anderton Gables",960]
["_C1A_WEST",1,"n/a","Faithful & Gould",5.1999999999999998E-3,15000,66000,null,null,null,"_C3_EAST",2,"Anderton Gables",600]
["_C1A_WEST",2,"n/a","Faithful & Gould",4.4000000000000003E-3,15000,66000,null,null,null,"_C3_EAST",3,"Anderton Gables",880]
["_C1A_WEST",1,"n/a","Identity Consult",1.2E-2,20000,85500,null,null,null,"_C3_EAST",1,"Faithful & Gould",550]
["_C1A_WEST",2,"n/a","Identity Consult",8.0000000000000002E-3,20000,85500,null,null,null,"_C3_EAST",2,"Faithful & Gould",420]
["_C1A_WEST",1,"n/a","Markhams Ltd",8.5000000000000006E-3,12000,80000,null,null,null,"_C3_EAST",3,"Faithful & Gould",450]
["_C1A_WEST",2,"n/a","Markhams Ltd",7.0000000000000001E-3,12000,80000,null,null,null,"_C3_EAST",1,"MAC Construction Consultants Ltd",500]
["_C1A_WEST",1,"n/a","Michael Dyson Associates Limited",8.9999999999999993E-3,16500,75000,null,null,null,"_C3_EAST",2,"MAC Construction Consultants Ltd",350]
["_C1A_WEST",2,"n/a","Michael Dyson Associates Limited",6.0000000000000001E-3,16500,75000,null,null,null,"_C3_EAST",3,"MAC Construction Consultants Ltd",350]
["_C1A_WEST",1,"n/a","Poole Dick Associates",8.9999999999999993E-3,13500,65000,null,null,null,"_C3_EAST",1,"Rider Levett Bucknall UK Ltd",712.5]
["_C1A_WEST",2,"n/a","Poole Dick Associates",8.0000000000000002E-3,13500,65000,null,null,null,"_C3_EAST",2,"Rider Levett Bucknall UK Ltd",502.5]
["_C1A_WEST",1,"n/a","Rider Levett Bucknall UK Ltd",1.026E-2,10000,63825,null,null,null,"_C3_EAST",3,"Rider Levett Bucknall UK Ltd",502.5]
["_C1A_WEST",2,"n/a","Rider Levett Bucknall UK Ltd",1.026E-2,10000,63825,null,null,null,"_C3_EAST",1,"Sutcliffe",675]
["_C1A_WEST",1,"n/a","Ridge and Partners LLP",8.3999999999999995E-3,3500,99000,null,null,null,"_C3_EAST",2,"Sutcliffe",525]
["_C1A_WEST",2,"n/a","Ridge and Partners LLP",6.6E-3,3500,99000,null,null,null,"_C3_EAST",3,"Sutcliffe",675]
["_C1A_WEST",1,"n/a","Savills UK Limited",8.9999999999999993E-3,9000,135000,null,null,null,"_C3_EAST",1,"Waldeck Associates Limited",650]
["_C1A_WEST",2,"n/a","Savills UK Limited",8.9999999999999993E-3,9000,135000,null,null,null,"_C3_EAST",2,"Waldeck Associates Limited",575]
["_C1A_WEST",1,"n/a","SDA Consulting LLP",1.24E-2,12400,91500,null,null,null,"_C3_EAST",3,"Waldeck Associates Limited",650]
["_C1A_WEST",2,"n/a","SDA Consulting LLP",7.4000000000000003E-3,12400,91500,null,null,null,"_C3_EAST",1,"Wilkinson Cowan Partnership",520]
["_C1A_WEST",1,"n/a","Simon Fenton Partnership",9.1000000000000004E-3,11750,114800,null,null,null,"_C3_EAST",2,"Wilkinson Cowan Partnership",320]
["_C1A_WEST",2,"n/a","Simon Fenton Partnership",8.2000000000000007E-3,11750,114800,null,null,null,"_C3_EAST",3,"Wilkinson Cowan Partnership",600]
["_C1A_WEST",1,"n/a","Tozer Gallagher LLP",7.0000000000000001E-3,25000,75000,null,null,null,"_C3_WEST",1,"Align Property Partners",502]
["_C1A_WEST",2,"n/a","Tozer Gallagher LLP",6.4999999999999997E-3,25000,75000,null,null,null,"_C3_WEST",2,"Align Property Partners",427]
["_C1A_WEST",1,"n/a","Vextrix",1.3000000000000001E-2,7500,12500,null,null,null,"_C3_WEST",3,"Align Property Partners",427]
["_C1A_WEST",2,"n/a","Vextrix",0.01,7500,12500,null,null,null,"_C3_WEST",1,"Anderton Gables",960]
["_C1A_WEST",1,"n/a","Whiteley Eaves Ltd",6.4999999999999997E-3,3250,55000,null,null,null,"_C3_WEST",2,"Anderton Gables",600]
["_C1A_WEST",2,"n/a","Whiteley Eaves Ltd",5.4999999999999997E-3,3250,55000,null,null,null,"_C3_WEST",3,"Anderton Gables",880]
["_C1A_WEST",1,"n/a","Wilkinson Cowan Partnership",8.5000000000000006E-3,15000,80000,null,null,null,"_C3_WEST",1,"Faithful & Gould",550]
["_C1A_WEST",2,"n/a","Wilkinson Cowan Partnership",6.4999999999999997E-3,15000,80000,null,null,null,"_C3_WEST",2,"Faithful & Gould",420]
["_C1B_EAST",1,"n/a","AA Projects Ltd",1.2499999999999999E-2,25500,119500,null,null,null,"_C3_WEST",3,"Faithful & Gould",450]
["_C1B_EAST",2,"n/a","AA Projects Ltd",8.6E-3,25500,119500,null,null,null,"_C3_WEST",1,"MAC Construction Consultants Ltd",500]
["_C1B_EAST",1,"n/a","AECOM",1.6500000000000001E-2,15000,111000,null,null,null,"_C3_WEST",2,"MAC Construction Consultants Ltd",350]
["_C1B_EAST",2,"n/a","AECOM",1.1299999999999999E-2,15000,111000,null,null,null,"_C3_WEST",3,"MAC Construction Consultants Ltd",350]
["_C1B_EAST",1,"n/a","Anderton Gables",1.4999999999999999E-2,35000,220000,null,null,null,"_C3_WEST",1,"Rider Levett Bucknall UK Ltd",712.5]
["_C1B_EAST",2,"n/a","Anderton Gables",1.0999999999999999E-2,35000,220000,null,null,null,"_C3_WEST",2,"Rider Levett Bucknall UK Ltd",502.5]
["_C1B_EAST",1,"n/a","Arcus Consulting LLP",9.4999999999999998E-3,12000,107000,null,null,null,"_C3_WEST",3,"Rider Levett Bucknall UK Ltd",502.5]
["_C1B_EAST",2,"n/a","Arcus Consulting LLP",7.4999999999999997E-3,12000,107000,null,null,null,"_C3_WEST",1,"Sutcliffe",675]
["_C1B_EAST",1,"n/a","CPC Project Services LLP",1.0500000000000001E-2,10000,80000,null,null,null,"_C3_WEST",2,"Sutcliffe",525]
["_C1B_EAST",2,"n/a","CPC Project Services LLP",8.0000000000000002E-3,10000,80000,null,null,null,"_C3_WEST",3,"Sutcliffe",675]
["_C1B_EAST",1,"n/a","Edge Property Solutions",1.15E-2,7000,127500,null,null,null,"_C3_WEST",1,"Waldeck Associates Limited",650]
["_C1B_EAST",2,"n/a","Edge Property Solutions",8.5000000000000006E-3,7000,127500,null,null,null,"_C3_WEST",2,"Waldeck Associates Limited",575]
["_C1B_EAST",1,"n/a","Faithful & Gould",8.3000000000000001E-3,17750,84000,null,null,null,"_C3_WEST",3,"Waldeck Associates Limited",650]
["_C1B_EAST",2,"n/a","Faithful & Gould",6.3E-3,17750,84000,null,null,null,"_C3_WEST",1,"Wilkinson Cowan Partnership",520]
["_C1B_EAST",1,"n/a","Markhams Ltd",9.4999999999999998E-3,13500,83000,null,null,null,"_C3_WEST",2,"Wilkinson Cowan Partnership",320]
["_C1B_EAST",2,"n/a","Markhams Ltd",7.4999999999999997E-3,13500,83000,null,null,null,"_C3_WEST",3,"Wilkinson Cowan Partnership",600]
["_C1B_EAST",1,"n/a","Michael Dyson Associates Limited",0.01,17000,75000,null,null,null,"_C5_EAST",1,"Amrin Resources Ltd",260]
["_C1B_EAST",2,"n/a","Michael Dyson Associates Limited",7.0000000000000001E-3,17000,75000,null,null,null,"_C5_EAST",1,"Currie & Brown UK Ltd",337.5]
["_C1B_EAST",1,"n/a","Rider Levett Bucknall UK Ltd",1.2760000000000001E-2,10975,77325,null,null,null,"_C5_EAST",1,"Hickton Consultants",336]
["_C1B_EAST",2,"n/a","Rider Levett Bucknall UK Ltd",9.2999999999999992E-3,10975,77325,null,null,null,"_C5_EAST",1,"MAC Construction Consultants Ltd",300]
["_C1B_EAST",1,"n/a","Ridge and Partners LLP",0.01,4250,114000,null,null,null,"_C5_EAST",1,"Waldeck Associates Limited",595]
["_C1B_EAST",2,"n/a","Ridge and Partners LLP",8.3000000000000001E-3,4250,114000,null,null,null,"_C5_EAST",1,"Whiteley Eaves Ltd",150]
["_C1B_EAST",1,"n/a","RJD Associates (North West) Limited",1.0699999999999999E-2,12500,96000," ",null,null,"_C5_EAST",1,"Wilkinson Cowan Partnership",300]
["_C1B_EAST",2,"n/a","RJD Associates (North West) Limited",7.7000000000000002E-3,12500,96000,null,null,null,"_C5_WEST",1,"Aegis Services Ltd",250]
["_C1B_EAST",1,"n/a","Simon Fenton Partnership",1.24E-2,15065,135500,null,null,null,"_C5_WEST",1,"Amrin Resources Ltd",260]
["_C1B_EAST",2,"n/a","Simon Fenton Partnership",1.0500000000000001E-2,15065,135500,null,null,null,"_C5_WEST",1,"Currie & Brown UK Ltd",337.5]
["_C1B_EAST",1,"n/a","Thornton Firkin & Partners",1.15E-2,17000,100000,null,null,null,"_C5_WEST",1,"Hickton Consultants",336]
["_C1B_EAST",2,"n/a","Thornton Firkin & Partners",8.0999999999999996E-3,17000,100000,null,null,null,"_C5_WEST",1,"MAC Construction Consultants Ltd",300]
["_C1B_EAST",1,"n/a","Tozer Gallagher LLP",9.2499999999999995E-3,32000,90000,null,null,null,"_C5_WEST",1,"SDA Consulting LLP",360]
["_C1B_EAST",2,"n/a","Tozer Gallagher LLP",8.2500000000000004E-3,32000,90000,null,null,null,"_C5_WEST",1,"Waldeck Associates Limited",595]
["_C1B_EAST",1,"n/a","Whiteley Eaves Ltd",7.7999999999999996E-3,3900,62000,null,null,null,"_C5_WEST",1,"Whiteley Eaves Ltd",150]
["_C1B_EAST",2,"n/a","Whiteley Eaves Ltd",6.1999999999999998E-3,3900,62000,null,null,null,"_C5_WEST",1,"Wilkinson Cowan Partnership",300]
["_C1B_EAST",1,"n/a","Wilkinson Cowan Partnership",1.03E-2,18500,80000]
["_C1B_EAST",2,"n/a","Wilkinson Cowan Partnership",7.3000000000000001E-3,18500,80000]
["_C1B_EAST",1,"n/a","WYG Engineering Limited",1.35E-2,12000,115000]
["_C1B_EAST",2,"n/a","WYG Engineering Limited",9.1999999999999998E-3,12000,115000]
["_C1B_WEST",1,"n/a","AA Projects Ltd",1.2499999999999999E-2,25500,119500]
["_C1B_WEST",2,"n/a","AA Projects Ltd",8.6E-3,25500,119500]
["_C1B_WEST",1,"n/a","AECOM",1.61E-2,15000,111000]
["_C1B_WEST",2,"n/a","AECOM",1.0999999999999999E-2,15000,111000]
["_C1B_WEST",1,"n/a","Anderton Gables",1.4999999999999999E-2,35000,220000]
["_C1B_WEST",2,"n/a","Anderton Gables",1.0999999999999999E-2,35000,220000]
["_C1B_WEST",1,"n/a","Arcus Consulting LLP",9.4999999999999998E-3,12000,107000]
["_C1B_WEST",2,"n/a","Arcus Consulting LLP",7.4999999999999997E-3,12000,107000]
["_C1B_WEST",1,"n/a","Bradshaw Gass & Hope LLP",1.15E-2,7500,82500]
["_C1B_WEST",2,"n/a","Bradshaw Gass & Hope LLP",8.0000000000000002E-3,7500,82500]
["_C1B_WEST",1,"n/a","CPC Project Services LLP",1.0500000000000001E-2,10000,80000]
["_C1B_WEST",2,"n/a","CPC Project Services LLP",8.0000000000000002E-3,10000,80000]
["_C1B_WEST",1,"n/a","Edge Property Solutions",1.15E-2,7000,127500]
["_C1B_WEST",2,"n/a","Edge Property Solutions",8.5000000000000006E-3,7000,127500]
["_C1B_WEST",1,"n/a","Faithful & Gould",8.3000000000000001E-3,17750,84000]
["_C1B_WEST",2,"n/a","Faithful & Gould",6.3E-3,17750,84000]
["_C1B_WEST",1,"n/a","Markhams Ltd",9.4999999999999998E-3,13500,83000]
["_C1B_WEST",2,"n/a","Markhams Ltd",7.4999999999999997E-3,13500,83000]
["_C1B_WEST",1,"n/a","Michael Dyson Associates Limited",0.01,17000,75000]
["_C1B_WEST",2,"n/a","Michael Dyson Associates Limited",7.0000000000000001E-3,17000,75000]
["_C1B_WEST",1,"n/a","Rider Levett Bucknall UK Ltd",1.2760000000000001E-2,10975,77325]
["_C1B_WEST",2,"n/a","Rider Levett Bucknall UK Ltd",9.2999999999999992E-3,10975,77325]
["_C1B_WEST",1,"n/a","Ridge and Partners LLP",0.01,4250,114000]
["_C1B_WEST",2,"n/a","Ridge and Partners LLP",8.3000000000000001E-3,4250,114000]
["_C1B_WEST",1,"n/a","RJD Associates (North West) Limited",1.0699999999999999E-2,12500,96000]
["_C1B_WEST",2,"n/a","RJD Associates (North West) Limited",7.7000000000000002E-3,12500,96000]
["_C1B_WEST",1,"n/a","Simon Fenton Partnership",1.12E-2,13130,119975]
["_C1B_WEST",2,"n/a","Simon Fenton Partnership",9.4000000000000004E-3,13130,119975]
["_C1B_WEST",1,"n/a","Thornton Firkin & Partners",1.15E-2,17000,100000]
["_C1B_WEST",2,"n/a","Thornton Firkin & Partners",8.0999999999999996E-3,17000,100000]
["_C1B_WEST",1,"n/a","Tozer Gallagher LLP",8.9999999999999993E-3,30500,88500]
["_C1B_WEST",2,"n/a","Tozer Gallagher LLP",8.0000000000000002E-3,30500,88500]
["_C1B_WEST",1,"n/a","Whiteley Eaves Ltd",7.7999999999999996E-3,3900,62000]
["_C1B_WEST",2,"n/a","Whiteley Eaves Ltd",6.1999999999999998E-3,3900,62000]
["_C1B_WEST",1,"n/a","Wilkinson Cowan Partnership",1.03E-2,18500,80000]
["_C1B_WEST",2,"n/a","Wilkinson Cowan Partnership",7.3000000000000001E-3,18500,80000]
["_C1B_WEST",1,"n/a","WYG Engineering Limited",1.35E-2,12000,115000]
["_C1B_WEST",2,"n/a","WYG Engineering Limited",9.1999999999999998E-3,12000,115000]
["_C2_EAST",1,"n/a","Align Property Partners",5.28E-3,5400,45600]
["_C2_EAST",2,"n/a","Align Property Partners",3.5999999999999999E-3,5400,45600]
["_C2_EAST",1,"n/a","Campbell Reith Hill LLP",5.4999999999999997E-3,35000,82500]
["_C2_EAST",2,"n/a","Campbell Reith Hill LLP",5.4999999999999997E-3,35000,82500]
["_C2_EAST",1,"n/a","Carley Daines & Partners",7.4999999999999997E-3,9000,49500]
["_C2_EAST",2,"n/a","Carley Daines & Partners",6.0000000000000001E-3,9000,49500]
["_C2_EAST",1,"n/a","Elluc Projects",8.5000000000000006E-3,25000,55000]
["_C2_EAST",2,"n/a","Elluc Projects",8.0000000000000002E-3,25000,55000]
["_C2_EAST",1,"n/a","Pell Frischmann Consultants",0.01,500,75000]
["_C2_EAST",2,"n/a","Pell Frischmann Consultants",5.0000000000000001E-3,500,75000]
["_C2_EAST",1,"n/a","Portland Consulting",8.0000000000000002E-3,9000,99000]
["_C2_EAST",2,"n/a","Portland Consulting",7.0000000000000001E-3,9000,99000]
["_C2_EAST",1,"n/a","Ridge and Partners LLP",6.4000000000000003E-3,5000,84000]
["_C2_EAST",2,"n/a","Ridge and Partners LLP",5.5999999999999999E-3,5000,84000]
["_C2_EAST",1,"n/a","Shape Consulting Engineers",7.0000000000000001E-3,5000,90000]
["_C2_EAST",2,"n/a","Shape Consulting Engineers",6.0000000000000001E-3,5000,90000]
["_C2_EAST",1,"n/a","Sutcliffe",1.2E-2,5000,135000]
["_C2_EAST",2,"n/a","Sutcliffe",1.0999999999999999E-2,5000,135000]
["_C2_WEST",1,"n/a","Alan Johnston Partnership",7.0000000000000001E-3,6250,90000]
["_C2_WEST",2,"n/a","Alan Johnston Partnership",6.4999999999999997E-3,6250,90000]
["_C2_WEST",1,"n/a","Align Property Partners",5.28E-3,5400,45600]
["_C2_WEST",2,"n/a","Align Property Partners",3.5999999999999999E-3,5400,45600]
["_C2_WEST",1,"n/a","Bradshaw Gass & Hope LLP",7.0000000000000001E-3,4500,78750]
["_C2_WEST",2,"n/a","Bradshaw Gass & Hope LLP",6.0000000000000001E-3,4500,78750]
["_C2_WEST",1,"n/a","Brennan Consult",6.4999999999999997E-3,4000,80000]
["_C2_WEST",2,"n/a","Brennan Consult",6.0000000000000001E-3,4000,80000]
["_C2_WEST",1,"n/a","Campbell Reith Hill LLP",5.4999999999999997E-3,35000,82500]
["_C2_WEST",2,"n/a","Campbell Reith Hill LLP",5.4999999999999997E-3,35000,82500]
["_C2_WEST",1,"n/a","Carley Daines & Partners",7.4999999999999997E-3,9000,49500]
["_C2_WEST",2,"n/a","Carley Daines & Partners",6.0000000000000001E-3,9000,49500]
["_C2_WEST",1,"n/a","Elluc Projects",8.5000000000000006E-3,25000,55000]
["_C2_WEST",2,"n/a","Elluc Projects",8.0000000000000002E-3,25000,55000]
["_C2_WEST",1,"n/a","Pell Frischmann Consultants",0.01,500,75000]
["_C2_WEST",2,"n/a","Pell Frischmann Consultants",5.0000000000000001E-3,500,75000]
["_C2_WEST",1,"n/a","Portland Consulting",8.0000000000000002E-3,9000,99000]
["_C2_WEST",2,"n/a","Portland Consulting",7.0000000000000001E-3,9000,99000]
["_C2_WEST",1,"n/a","Ridge and Partners LLP",6.4000000000000003E-3,5000,84000]
["_C2_WEST",2,"n/a","Ridge and Partners LLP",5.5999999999999999E-3,5000,84000]
["_C2_WEST",1,"n/a","Shape Consulting Engineers",7.0000000000000001E-3,5000,90000]
["_C2_WEST",2,"n/a","Shape Consulting Engineers",6.0000000000000001E-3,5000,90000]
["_C2_WEST",1,"n/a","Sutcliffe",1.0999999999999999E-2,5000,135000]
["_C2_WEST",2,"n/a","Sutcliffe",0.01,5000,135000]
["_C3_EAST",1,"n/a","Align Property Partners",3.9399999999999998E-2,48000,264000]
["_C3_EAST",2,"n/a","Align Property Partners",3.61E-2,48000,264000]
["_C3_EAST",1,"n/a","Anderton Gables",3.2500000000000001E-2,50000,450000]
["_C3_EAST",2,"n/a","Anderton Gables",0.03,50000,450000]
["_C3_EAST",1,"n/a","Faithful & Gould",4.8000000000000001E-2,13500,60000]
["_C3_EAST",2,"n/a","Faithful & Gould",4.2000000000000003E-2,13500,60000]
["_C3_EAST",1,"n/a","MAC Construction Consultants Ltd",0.06,6000,65000]
["_C3_EAST",2,"n/a","MAC Construction Consultants Ltd",4.4999999999999998E-2,6000,65000]
["_C3_EAST",1,"n/a","Rider Levett Bucknall UK Ltd",3.5000000000000003E-2,4000,210000]
["_C3_EAST",2,"n/a","Rider Levett Bucknall UK Ltd",1.9E-2,4000,210000]
["_C3_EAST",1,"n/a","Sutcliffe",0.05,5000,500000]
["_C3_EAST",2,"n/a","Sutcliffe",0.04,5000,500000]
["_C3_EAST",1,"n/a","Waldeck Associates Limited",2.1999999999999999E-2,9500,180000]
["_C3_EAST",2,"n/a","Waldeck Associates Limited",1.7000000000000001E-2,9500,180000]
["_C3_EAST",1,"n/a","Wilkinson Cowan Partnership",0.06,20000,80000]
["_C3_EAST",2,"n/a","Wilkinson Cowan Partnership",0.05,20000,80000]
["_C3_WEST",1,"n/a","Align Property Partners",3.9399999999999998E-2,48000,264000]
["_C3_WEST",2,"n/a","Align Property Partners",3.61E-2,48000,264000]
["_C3_WEST",1,"n/a","Anderton Gables",3.2500000000000001E-2,50000,450000]
["_C3_WEST",2,"n/a","Anderton Gables",0.03,50000,450000]
["_C3_WEST",1,"n/a","Faithful & Gould",4.8000000000000001E-2,13500,60000]
["_C3_WEST",2,"n/a","Faithful & Gould",4.2000000000000003E-2,13500,60000]
["_C3_WEST",1,"n/a","MAC Construction Consultants Ltd",0.06,6000,65000]
["_C3_WEST",2,"n/a","MAC Construction Consultants Ltd",4.4999999999999998E-2,6000,65000]
["_C3_WEST",1,"n/a","Rider Levett Bucknall UK Ltd",3.5000000000000003E-2,4000,210000]
["_C3_WEST",2,"n/a","Rider Levett Bucknall UK Ltd",1.9E-2,4000,210000]
["_C3_WEST",1,"n/a","Sutcliffe",0.05,5000,500000]
["_C3_WEST",2,"n/a","Sutcliffe",0.04,5000,500000]
["_C3_WEST",1,"n/a","Waldeck Associates Limited",2.1999999999999999E-2,9500,180000]
["_C3_WEST",2,"n/a","Waldeck Associates Limited",1.7000000000000001E-2,9500,180000]
["_C3_WEST",1,"n/a","Wilkinson Cowan Partnership",0.06,20000,80000]
["_C3_WEST",2,"n/a","Wilkinson Cowan Partnership",0.05,20000,80000]
["_C4A_EAST",1,"C4 Stage 2 - With/Without Planning Consultant","Acanthus WSM Architects",1.5100000000000001E-2,11325,118500]
["_C4A_EAST",2,"C4 Stage 2 - With/Without Planning Consultant","Acanthus WSM Architects",1.34E-2,11325,118500]
["_C4A_EAST",1,"C4 Stage 1 - With Planning Consultant","Acanthus WSM Architects",7.1000000000000004E-3,4850,68200]
["_C4A_EAST",2,"C4 Stage 1 - With Planning Consultant","Acanthus WSM Architects",6.1999999999999998E-3,4850,68200]
["_C4A_EAST",1,"C4 Stage 1 - Without Planning Consultant","Acanthus WSM Architects",8.0999999999999996E-3,4850,79000]
["_C4A_EAST",2,"C4 Stage 1 - Without Planning Consultant","Acanthus WSM Architects",7.1999999999999998E-3,4850,79000]
["_C4A_EAST",1,"C4 Stage 2 - With/Without Planning Consultant","AEW Architects",1.0699999999999999E-2,2470,135000]
["_C4A_EAST",2,"C4 Stage 2 - With/Without Planning Consultant","AEW Architects",9.9000000000000008E-3,2470,135000]
["_C4A_EAST",1,"C4 Stage 1 - With Planning Consultant","AEW Architects",8.9999999999999993E-3,3197,122550]
["_C4A_EAST",2,"C4 Stage 1 - With Planning Consultant","AEW Architects",8.6999999999999994E-3,3197,122550]
["_C4A_EAST",1,"C4 Stage 1 - Without Planning Consultant","AEW Architects",9.4999999999999998E-3,3197,129000]
["_C4A_EAST",2,"C4 Stage 1 - Without Planning Consultant","AEW Architects",8.9999999999999993E-3,3197,129000]
["_C4A_EAST",1,"C4 Stage 2 - With/Without Planning Consultant","Bernard Taylor Partnership",7.0000000000000001E-3,3000,90000]
["_C4A_EAST",2,"C4 Stage 2 - With/Without Planning Consultant","Bernard Taylor Partnership",6.4999999999999997E-3,3000,90000]
["_C4A_EAST",1,"C4 Stage 1 - With Planning Consultant","Bernard Taylor Partnership",7.0000000000000001E-3,3000,90000]
["_C4A_EAST",2,"C4 Stage 1 - With Planning Consultant","Bernard Taylor Partnership",6.0000000000000001E-3,3000,90000]
["_C4A_EAST",1,"C4 Stage 1 - Without Planning Consultant","Bernard Taylor Partnership",8.0000000000000002E-3,3000,90000]
["_C4A_EAST",2,"C4 Stage 1 - Without Planning Consultant","Bernard Taylor Partnership",7.0000000000000001E-3,3000,90000]
["_C4A_EAST",1,"C4 Stage 2 - With/Without Planning Consultant","Brewster Bye Architects",1.14E-2,5700,95000]
["_C4A_EAST",2,"C4 Stage 2 - With/Without Planning Consultant","Brewster Bye Architects",9.4999999999999998E-3,5700,95000]
["_C4A_EAST",1,"C4 Stage 1 - With Planning Consultant","Brewster Bye Architects",5.4999999999999997E-3,2750,60000]
["_C4A_EAST",2,"C4 Stage 1 - With Planning Consultant","Brewster Bye Architects",4.5999999999999999E-3,2750,60000]
["_C4A_EAST",1,"C4 Stage 1 - Without Planning Consultant","Brewster Bye Architects",6.1000000000000004E-3,3050,65000]
["_C4A_EAST",2,"C4 Stage 1 - Without Planning Consultant","Brewster Bye Architects",5.1000000000000004E-3,3050,65000]
["_C4A_EAST",1,"C4 Stage 2 - With/Without Planning Consultant","Condy & Lofthouse Ltd",1.0500000000000001E-2,4300,230000]
["_C4A_EAST",2,"C4 Stage 2 - With/Without Planning Consultant","Condy & Lofthouse Ltd",9.4999999999999998E-3,4300,230000]
["_C4A_EAST",1,"C4 Stage 1 - With Planning Consultant","Condy & Lofthouse Ltd",6.4999999999999997E-3,2600,133500]
["_C4A_EAST",2,"C4 Stage 1 - With Planning Consultant","Condy & Lofthouse Ltd",5.4999999999999997E-3,2600,133500]
["_C4A_EAST",1,"C4 Stage 1 - Without Planning Consultant","Condy & Lofthouse Ltd",8.0000000000000002E-3,3200,170000]
["_C4A_EAST",2,"C4 Stage 1 - Without Planning Consultant","Condy & Lofthouse Ltd",7.0000000000000001E-3,3200,170000]
["_C4A_EAST",1,"C4 Stage 2 - With/Without Planning Consultant","DK Architects",1.4489999999999999E-2,2200,140000]
["_C4A_EAST",2,"C4 Stage 2 - With/Without Planning Consultant","DK Architects",1.311E-2,2200,140000]
["_C4A_EAST",1,"C4 Stage 1 - With Planning Consultant","DK Architects",6.1999999999999998E-3,930,55000]
["_C4A_EAST",2,"C4 Stage 1 - With Planning Consultant","DK Architects",5.5799999999999999E-3,930,55000]
["_C4A_EAST",1,"C4 Stage 1 - Without Planning Consultant","DK Architects",6.5100000000000002E-3,975,60000]
["_C4A_EAST",2,"C4 Stage 1 - Without Planning Consultant","DK Architects",5.8900000000000003E-3,975,60000]
["_C4A_EAST",1,"C4 Stage 2 - With/Without Planning Consultant","GWP Architecture Ltd",8.0999999999999996E-3,15000,150000]
["_C4A_EAST",2,"C4 Stage 2 - With/Without Planning Consultant","GWP Architecture Ltd",8.6250000000000007E-3,15000,150000]
["_C4A_EAST",1,"C4 Stage 1 - With Planning Consultant","GWP Architecture Ltd",4.7999999999999996E-3,10000,75000]
["_C4A_EAST",2,"C4 Stage 1 - With Planning Consultant","GWP Architecture Ltd",2.7000000000000001E-3,10000,75000]
["_C4A_EAST",1,"C4 Stage 1 - Without Planning Consultant","GWP Architecture Ltd",5.4000000000000003E-3,10000,97500]
["_C4A_EAST",2,"C4 Stage 1 - Without Planning Consultant","GWP Architecture Ltd",2.8999999999999998E-3,10000,97500]
["_C4A_EAST",1,"C4 Stage 2 - With/Without Planning Consultant","John McCall Architects",9.1000000000000004E-3,5625,90000]
["_C4A_EAST",2,"C4 Stage 2 - With/Without Planning Consultant","John McCall Architects",7.4999999999999997E-3,5625,90000]
["_C4A_EAST",1,"C4 Stage 1 - With Planning Consultant","John McCall Architects",8.6E-3,5000,90000]
["_C4A_EAST",2,"C4 Stage 1 - With Planning Consultant","John McCall Architects",7.1000000000000004E-3,5000,90000]
["_C4A_EAST",1,"C4 Stage 1 - Without Planning Consultant","John McCall Architects",9.1000000000000004E-3,5625,90000]
["_C4A_EAST",2,"C4 Stage 1 - Without Planning Consultant","John McCall Architects",7.6E-3,5625,90000]
["_C4A_EAST",1,"C4 Stage 2 - With/Without Planning Consultant","Langtry-Langton Architects",1.2E-2,0,122000]
["_C4A_EAST",2,"C4 Stage 2 - With/Without Planning Consultant","Langtry-Langton Architects",1.0500000000000001E-2,0,122000]
["_C4A_EAST",1,"C4 Stage 1 - With Planning Consultant","Langtry-Langton Architects",6.0000000000000001E-3,0,50000]
["_C4A_EAST",2,"C4 Stage 1 - With Planning Consultant","Langtry-Langton Architects",4.7999999999999996E-3,0,50000]
["_C4A_EAST",1,"C4 Stage 1 - Without Planning Consultant","Langtry-Langton Architects",6.1999999999999998E-3,0,55000]
["_C4A_EAST",2,"C4 Stage 1 - Without Planning Consultant","Langtry-Langton Architects",5.1999999999999998E-3,0,55000]
["_C4A_EAST",1,"C4 Stage 2 - With/Without Planning Consultant","Michael Hyde and Associated Ltd",9.9749999999999995E-3,4000,149625]
["_C4A_EAST",2,"C4 Stage 2 - With/Without Planning Consultant","Michael Hyde and Associated Ltd",9.9749999999999995E-3,4000,149625]
["_C4A_EAST",1,"C4 Stage 1 - With Planning Consultant","Michael Hyde and Associated Ltd",5.2500000000000003E-3,4000,91350]
["_C4A_EAST",2,"C4 Stage 1 - With Planning Consultant","Michael Hyde and Associated Ltd",6.0899999999999999E-3,4000,91350]
["_C4A_EAST",1,"C4 Stage 1 - Without Planning Consultant","Michael Hyde and Associated Ltd",5.7749999999999998E-3,4000,94500]
["_C4A_EAST",2,"C4 Stage 1 - Without Planning Consultant","Michael Hyde and Associated Ltd",6.3E-3,4000,94500]
["_C4A_EAST",1,"C4 Stage 2 - With/Without Planning Consultant","MPSL Planning and Design",6.2500000000000003E-3,1000,67500]
["_C4A_EAST",2,"C4 Stage 2 - With/Without Planning Consultant","MPSL Planning and Design",5.2500000000000003E-3,1000,67500]
["_C4A_EAST",1,"C4 Stage 1 - With Planning Consultant","MPSL Planning and Design",5.4999999999999997E-3,1000,67500]
["_C4A_EAST",2,"C4 Stage 1 - With Planning Consultant","MPSL Planning and Design",4.4999999999999997E-3,1000,67500]
["_C4A_EAST",1,"C4 Stage 1 - Without Planning Consultant","MPSL Planning and Design",6.2500000000000003E-3,1350,99000]
["_C4A_EAST",2,"C4 Stage 1 - Without Planning Consultant","MPSL Planning and Design",5.2500000000000003E-3,1350,99000]
["_C4A_EAST",1,"C4 Stage 2 - With/Without Planning Consultant","Paddock Johnson Partnership",1.55E-2,1550,213000]
["_C4A_EAST",2,"C4 Stage 2 - With/Without Planning Consultant","Paddock Johnson Partnership",1.4200000000000001E-2,1550,213000]
["_C4A_EAST",1,"C4 Stage 1 - With Planning Consultant","Paddock Johnson Partnership",6.4000000000000003E-3,650,78000]
["_C4A_EAST",2,"C4 Stage 1 - With Planning Consultant","Paddock Johnson Partnership",5.1000000000000004E-3,650,78000]
["_C4A_EAST",1,"C4 Stage 1 - Without Planning Consultant","Paddock Johnson Partnership",6.4999999999999997E-3,650,78000]
["_C4A_EAST",2,"C4 Stage 1 - Without Planning Consultant","Paddock Johnson Partnership",5.1999999999999998E-3,650,78000]
["_C4A_EAST",1,"C4 Stage 2 - With/Without Planning Consultant","Pozzoni LLP",8.9999999999999993E-3,9500,93333.333333333299]
["_C4A_EAST",2,"C4 Stage 2 - With/Without Planning Consultant","Pozzoni LLP",8.5000000000000006E-3,9500,95000]
["_C4A_EAST",1,"C4 Stage 1 - With Planning Consultant","Pozzoni LLP",7.6E-3,9000,93333.333333333299]
["_C4A_EAST",2,"C4 Stage 1 - With Planning Consultant","Pozzoni LLP",6.4999999999999997E-3,9000,90000]
["_C4A_EAST",1,"C4 Stage 1 - Without Planning Consultant","Pozzoni LLP",8.2000000000000007E-3,9500,93333.333333333299]
["_C4A_EAST",2,"C4 Stage 1 - Without Planning Consultant","Pozzoni LLP",6.7000000000000002E-3,9500,95000]
["_C4A_EAST",1,"C4 Stage 2 - With/Without Planning Consultant","Ridge and Partners LLP",6.0000000000000001E-3,4750,81000]
["_C4A_EAST",2,"C4 Stage 2 - With/Without Planning Consultant","Ridge and Partners LLP",5.4000000000000003E-3,4750,81000]
["_C4A_EAST",1,"C4 Stage 1 - With Planning Consultant","Ridge and Partners LLP",6.7999999999999996E-3,5000,93000]
["_C4A_EAST",2,"C4 Stage 1 - With Planning Consultant","Ridge and Partners LLP",6.1999999999999998E-3,5000,93000]
["_C4A_EAST",1,"C4 Stage 1 - Without Planning Consultant","Ridge and Partners LLP",6.7999999999999996E-3,5000,93000]
["_C4A_EAST",2,"C4 Stage 1 - Without Planning Consultant","Ridge and Partners LLP",6.1999999999999998E-3,5000,93000]
["_C4A_EAST",1,"C4 Stage 2 - With/Without Planning Consultant","Triangle Architects",1.44E-2,8000,165750]
["_C4A_EAST",2,"C4 Stage 2 - With/Without Planning Consultant","Triangle Architects",1.23E-2,8000,165750]
["_C4A_EAST",1,"C4 Stage 1 - With Planning Consultant","Triangle Architects",7.3000000000000001E-3,4700,75750]
["_C4A_EAST",2,"C4 Stage 1 - With Planning Consultant","Triangle Architects",6.3E-3,4700,75750]
["_C4A_EAST",1,"C4 Stage 1 - Without Planning Consultant","Triangle Architects",8.6999999999999994E-3,5500,92250]
["_C4A_EAST",2,"C4 Stage 1 - Without Planning Consultant","Triangle Architects",7.4000000000000003E-3,5500,92250]
["_C4A_EAST",1,"C4 Stage 2 - With/Without Planning Consultant","Walker Simpson Architects",8.0000000000000002E-3,14000,93750]
["_C4A_EAST",2,"C4 Stage 2 - With/Without Planning Consultant","Walker Simpson Architects",6.2500000000000003E-3,14000,93750]
["_C4A_EAST",1,"C4 Stage 1 - With Planning Consultant","Walker Simpson Architects",6.4000000000000003E-3,12000,75000]
["_C4A_EAST",2,"C4 Stage 1 - With Planning Consultant","Walker Simpson Architects",5.0000000000000001E-3,12000,75000]
["_C4A_EAST",1,"C4 Stage 1 - Without Planning Consultant","Walker Simpson Architects",8.0000000000000002E-3,14000,93750]
["_C4A_EAST",2,"C4 Stage 1 - Without Planning Consultant","Walker Simpson Architects",6.2500000000000003E-3,14000,93750]
["_C4A_WEST",1,"C4 Stage 2 - With/Without Planning Consultant","AEW Architects",1.0699999999999999E-2,2470,135000]
["_C4A_WEST",2,"C4 Stage 2 - With/Without Planning Consultant","AEW Architects",9.9000000000000008E-3,2470,135000]
["_C4A_WEST",1,"C4 Stage 1 - With Planning Consultant","AEW Architects",8.9999999999999993E-3,3197,122550]
["_C4A_WEST",2,"C4 Stage 1 - With Planning Consultant","AEW Architects",8.6999999999999994E-3,3197,122550]
["_C4A_WEST",1,"C4 Stage 1 - Without Planning Consultant","AEW Architects",9.4999999999999998E-3,3197,129000]
["_C4A_WEST",2,"C4 Stage 1 - Without Planning Consultant","AEW Architects",8.9999999999999993E-3,3197,129000]
["_C4A_WEST",1,"C4 Stage 2 - With/Without Planning Consultant","Bernard Taylor Partnership",7.0000000000000001E-3,3000,90000]
["_C4A_WEST",2,"C4 Stage 2 - With/Without Planning Consultant","Bernard Taylor Partnership",6.4999999999999997E-3,3000,90000]
["_C4A_WEST",1,"C4 Stage 1 - With Planning Consultant","Bernard Taylor Partnership",7.0000000000000001E-3,3000,90000]
["_C4A_WEST",2,"C4 Stage 1 - With Planning Consultant","Bernard Taylor Partnership",6.0000000000000001E-3,3000,90000]
["_C4A_WEST",1,"C4 Stage 1 - Without Planning Consultant","Bernard Taylor Partnership",8.0000000000000002E-3,3000,90000]
["_C4A_WEST",2,"C4 Stage 1 - Without Planning Consultant","Bernard Taylor Partnership",7.0000000000000001E-3,3000,90000]
["_C4A_WEST",1,"C4 Stage 2 - With/Without Planning Consultant","Bowker Sadler Partnership",1.5100000000000001E-2,7550,153000]
["_C4A_WEST",2,"C4 Stage 2 - With/Without Planning Consultant","Bowker Sadler Partnership",1.0200000000000001E-2,7550,153000]
["_C4A_WEST",1,"C4 Stage 1 - With Planning Consultant","Bowker Sadler Partnership",9.9000000000000008E-3,4950,102000]
["_C4A_WEST",2,"C4 Stage 1 - With Planning Consultant","Bowker Sadler Partnership",6.7999999999999996E-3,4950,102000]
["_C4A_WEST",1,"C4 Stage 1 - Without Planning Consultant","Bowker Sadler Partnership",1.12E-2,5600,111000]
["_C4A_WEST",2,"C4 Stage 1 - Without Planning Consultant","Bowker Sadler Partnership",7.4000000000000003E-3,5600,111000]
["_C4A_WEST",1,"C4 Stage 2 - With/Without Planning Consultant","Brewster Bye Architects",1.14E-2,5700,95000]
["_C4A_WEST",2,"C4 Stage 2 - With/Without Planning Consultant","Brewster Bye Architects",9.4999999999999998E-3,5700,95000]
["_C4A_WEST",1,"C4 Stage 1 - With Planning Consultant","Brewster Bye Architects",5.4999999999999997E-3,2750,60000]
["_C4A_WEST",2,"C4 Stage 1 - With Planning Consultant","Brewster Bye Architects",4.5999999999999999E-3,2750,60000]
["_C4A_WEST",1,"C4 Stage 1 - Without Planning Consultant","Brewster Bye Architects",6.1000000000000004E-3,3050,65000]
["_C4A_WEST",2,"C4 Stage 1 - Without Planning Consultant","Brewster Bye Architects",5.1000000000000004E-3,3050,65000]
["_C4A_WEST",1,"C4 Stage 2 - With/Without Planning Consultant","Brock Carmichael Architects",9.4999999999999998E-3,20500,80000]
["_C4A_WEST",2,"C4 Stage 2 - With/Without Planning Consultant","Brock Carmichael Architects",8.5000000000000006E-3,20500,80000]
["_C4A_WEST",1,"C4 Stage 1 - With Planning Consultant","Brock Carmichael Architects",7.4999999999999997E-3,16500,65000]
["_C4A_WEST",2,"C4 Stage 1 - With Planning Consultant","Brock Carmichael Architects",6.7999999999999996E-3,16500,65000]
["_C4A_WEST",1,"C4 Stage 1 - Without Planning Consultant","Brock Carmichael Architects",9.4999999999999998E-3,20000,68000]
["_C4A_WEST",2,"C4 Stage 1 - Without Planning Consultant","Brock Carmichael Architects",7.4999999999999997E-3,20000,68000]
["_C4A_WEST",1,"C4 Stage 2 - With/Without Planning Consultant","Condy & Lofthouse Ltd",1.0500000000000001E-2,4300,230000]
["_C4A_WEST",2,"C4 Stage 2 - With/Without Planning Consultant","Condy & Lofthouse Ltd",9.4999999999999998E-3,4300,230000]
["_C4A_WEST",1,"C4 Stage 1 - With Planning Consultant","Condy & Lofthouse Ltd",6.4999999999999997E-3,2600,133500]
["_C4A_WEST",2,"C4 Stage 1 - With Planning Consultant","Condy & Lofthouse Ltd",5.4999999999999997E-3,2600,133500]
["_C4A_WEST",1,"C4 Stage 1 - Without Planning Consultant","Condy & Lofthouse Ltd",8.0000000000000002E-3,3200,170000]
["_C4A_WEST",2,"C4 Stage 1 - Without Planning Consultant","Condy & Lofthouse Ltd",7.0000000000000001E-3,3200,170000]
["_C4A_WEST",1,"C4 Stage 2 - With/Without Planning Consultant","DK Architects",1.4489999999999999E-2,2200,140000]
["_C4A_WEST",2,"C4 Stage 2 - With/Without Planning Consultant","DK Architects",1.311E-2,2200,140000]
["_C4A_WEST",1,"C4 Stage 1 - With Planning Consultant","DK Architects",6.1999999999999998E-3,930,55000]
["_C4A_WEST",2,"C4 Stage 1 - With Planning Consultant","DK Architects",5.5799999999999999E-3,930,55000]
["_C4A_WEST",1,"C4 Stage 1 - Without Planning Consultant","DK Architects",6.5100000000000002E-3,975,60000]
["_C4A_WEST",2,"C4 Stage 1 - Without Planning Consultant","DK Architects",5.8900000000000003E-3,975,60000]
["_C4A_WEST",1,"C4 Stage 2 - With/Without Planning Consultant","GWP Architecture Ltd",8.0999999999999996E-3,15000,150000]
["_C4A_WEST",2,"C4 Stage 2 - With/Without Planning Consultant","GWP Architecture Ltd",8.6250000000000007E-3,15000,150000]
["_C4A_WEST",1,"C4 Stage 1 - With Planning Consultant","GWP Architecture Ltd",4.7999999999999996E-3,10000,75000]
["_C4A_WEST",2,"C4 Stage 1 - With Planning Consultant","GWP Architecture Ltd",2.7000000000000001E-3,10000,75000]
["_C4A_WEST",1,"C4 Stage 1 - Without Planning Consultant","GWP Architecture Ltd",5.4000000000000003E-3,10000,97500]
["_C4A_WEST",2,"C4 Stage 1 - Without Planning Consultant","GWP Architecture Ltd",2.8999999999999998E-3,10000,97500]
["_C4A_WEST",1,"C4 Stage 2 - With/Without Planning Consultant","John McCall Architects",8.8999999999999999E-3,5625,89900]
["_C4A_WEST",2,"C4 Stage 2 - With/Without Planning Consultant","John McCall Architects",7.4000000000000003E-3,5625,89900]
["_C4A_WEST",1,"C4 Stage 1 - With Planning Consultant","John McCall Architects",8.5000000000000006E-3,5000,89900]
["_C4A_WEST",2,"C4 Stage 1 - With Planning Consultant","John McCall Architects",7.0000000000000001E-3,5000,89900]
["_C4A_WEST",1,"C4 Stage 1 - Without Planning Consultant","John McCall Architects",8.9999999999999993E-3,5625,89900]
["_C4A_WEST",2,"C4 Stage 1 - Without Planning Consultant","John McCall Architects",7.4999999999999997E-3,5625,89900]
["_C4A_WEST",1,"C4 Stage 2 - With/Without Planning Consultant","Langtry-Langton Architects",9.7999999999999997E-3,0,115000]
["_C4A_WEST",2,"C4 Stage 2 - With/Without Planning Consultant","Langtry-Langton Architects",8.9999999999999993E-3,0,115000]
["_C4A_WEST",1,"C4 Stage 1 - With Planning Consultant","Langtry-Langton Architects",6.0000000000000001E-3,0,50000]
["_C4A_WEST",2,"C4 Stage 1 - With Planning Consultant","Langtry-Langton Architects",4.7999999999999996E-3,0,50000]
["_C4A_WEST",1,"C4 Stage 1 - Without Planning Consultant","Langtry-Langton Architects",6.0000000000000001E-3,0,55000]
["_C4A_WEST",2,"C4 Stage 1 - Without Planning Consultant","Langtry-Langton Architects",5.0000000000000001E-3,0,55000]
["_C4A_WEST",1,"C4 Stage 2 - With/Without Planning Consultant","Michael Hyde and Associated Ltd",9.9749999999999995E-3,4000,157500]
["_C4A_WEST",2,"C4 Stage 2 - With/Without Planning Consultant","Michael Hyde and Associated Ltd",1.0500000000000001E-2,4000,157500]
["_C4A_WEST",1,"C4 Stage 1 - With Planning Consultant","Michael Hyde and Associated Ltd",5.2500000000000003E-3,4000,99225]
["_C4A_WEST",2,"C4 Stage 1 - With Planning Consultant","Michael Hyde and Associated Ltd",6.6150000000000002E-3,4000,99225]
["_C4A_WEST",1,"C4 Stage 1 - Without Planning Consultant","Michael Hyde and Associated Ltd",5.7749999999999998E-3,4000,102375]
["_C4A_WEST",2,"C4 Stage 1 - Without Planning Consultant","Michael Hyde and Associated Ltd",6.8250000000000003E-3,4000,102375]
["_C4A_WEST",1,"C4 Stage 2 - With/Without Planning Consultant","MPSL Planning and Design",6.2500000000000003E-3,1000,67500]
["_C4A_WEST",2,"C4 Stage 2 - With/Without Planning Consultant","MPSL Planning and Design",5.2500000000000003E-3,1000,67500]
["_C4A_WEST",1,"C4 Stage 1 - With Planning Consultant","MPSL Planning and Design",5.4999999999999997E-3,1000,67500]
["_C4A_WEST",2,"C4 Stage 1 - With Planning Consultant","MPSL Planning and Design",4.4999999999999997E-3,1000,67500]
["_C4A_WEST",1,"C4 Stage 1 - Without Planning Consultant","MPSL Planning and Design",6.2500000000000003E-3,1350,99000]
["_C4A_WEST",2,"C4 Stage 1 - Without Planning Consultant","MPSL Planning and Design",5.2500000000000003E-3,1350,99000]
["_C4A_WEST",1,"C4 Stage 2 - With/Without Planning Consultant","Paddock Johnson Partnership",1.4500000000000001E-2,1450,198000]
["_C4A_WEST",2,"C4 Stage 2 - With/Without Planning Consultant","Paddock Johnson Partnership",1.32E-2,1450,198000]
["_C4A_WEST",1,"C4 Stage 1 - With Planning Consultant","Paddock Johnson Partnership",5.7000000000000002E-3,580,73500]
["_C4A_WEST",2,"C4 Stage 1 - With Planning Consultant","Paddock Johnson Partnership",4.7999999999999996E-3,580,73500]
["_C4A_WEST",1,"C4 Stage 1 - Without Planning Consultant","Paddock Johnson Partnership",5.7999999999999996E-3,580,73500]
["_C4A_WEST",2,"C4 Stage 1 - Without Planning Consultant","Paddock Johnson Partnership",4.8999999999999998E-3,580,73500]
["_C4A_WEST",1,"C4 Stage 2 - With/Without Planning Consultant","Pozzoni LLP",8.9999999999999993E-3,9500,95000]
["_C4A_WEST",2,"C4 Stage 2 - With/Without Planning Consultant","Pozzoni LLP",8.5000000000000006E-3,9500,95000]
["_C4A_WEST",1,"C4 Stage 1 - With Planning Consultant","Pozzoni LLP",7.6E-3,9000,90000]
["_C4A_WEST",2,"C4 Stage 1 - With Planning Consultant","Pozzoni LLP",6.4999999999999997E-3,9000,90000]
["_C4A_WEST",1,"C4 Stage 1 - Without Planning Consultant","Pozzoni LLP",8.2000000000000007E-3,9500,95000]
["_C4A_WEST",2,"C4 Stage 1 - Without Planning Consultant","Pozzoni LLP",6.7000000000000002E-3,9500,95000]
["_C4A_WEST",1,"C4 Stage 2 - With/Without Planning Consultant","Ridge and Partners LLP",6.0000000000000001E-3,4750,81000]
["_C4A_WEST",2,"C4 Stage 2 - With/Without Planning Consultant","Ridge and Partners LLP",5.4000000000000003E-3,4750,81000]
["_C4A_WEST",1,"C4 Stage 1 - With Planning Consultant","Ridge and Partners LLP",6.7999999999999996E-3,5000,93000]
["_C4A_WEST",2,"C4 Stage 1 - With Planning Consultant","Ridge and Partners LLP",6.1999999999999998E-3,5000,93000]
["_C4A_WEST",1,"C4 Stage 1 - Without Planning Consultant","Ridge and Partners LLP",6.7999999999999996E-3,5000,93000]
["_C4A_WEST",2,"C4 Stage 1 - Without Planning Consultant","Ridge and Partners LLP",6.1999999999999998E-3,5000,93000]
["_C4A_WEST",1,"C4 Stage 2 - With/Without Planning Consultant","TADW Architects",8.0000000000000002E-3,10000,80000]
["_C4A_WEST",2,"C4 Stage 2 - With/Without Planning Consultant","TADW Architects",7.0000000000000001E-3,10000,80000]
["_C4A_WEST",1,"C4 Stage 1 - With Planning Consultant","TADW Architects",7.0000000000000001E-3,9000,70000]
["_C4A_WEST",2,"C4 Stage 1 - With Planning Consultant","TADW Architects",6.0000000000000001E-3,9000,70000]
["_C4A_WEST",1,"C4 Stage 1 - Without Planning Consultant","TADW Architects",7.4999999999999997E-3,9000,80000]
["_C4A_WEST",2,"C4 Stage 1 - Without Planning Consultant","TADW Architects",6.7499999999999999E-3,9000,80000]
["_C4A_WEST",1,"C4 Stage 2 - With/Without Planning Consultant","Triangle Architects",1.37E-2,8000,160500]
["_C4A_WEST",2,"C4 Stage 2 - With/Without Planning Consultant","Triangle Architects",1.17E-2,8000,160500]
["_C4A_WEST",1,"C4 Stage 1 - With Planning Consultant","Triangle Architects",8.0000000000000002E-3,4700,87000]
["_C4A_WEST",2,"C4 Stage 1 - With Planning Consultant","Triangle Architects",6.7999999999999996E-3,4700,87000]
["_C4A_WEST",1,"C4 Stage 1 - Without Planning Consultant","Triangle Architects",9.4000000000000004E-3,5500,103500]
["_C4A_WEST",2,"C4 Stage 1 - Without Planning Consultant","Triangle Architects",7.9000000000000008E-3,5500,103500]
["_C4A_WEST",1,"C4 Stage 2 - With/Without Planning Consultant","Walker Simpson Architects",8.0000000000000002E-3,14000,93750]
["_C4A_WEST",2,"C4 Stage 2 - With/Without Planning Consultant","Walker Simpson Architects",6.2500000000000003E-3,14000,93750]
["_C4A_WEST",1,"C4 Stage 1 - With Planning Consultant","Walker Simpson Architects",6.4000000000000003E-3,12000,75000]
["_C4A_WEST",2,"C4 Stage 1 - With Planning Consultant","Walker Simpson Architects",5.0000000000000001E-3,12000,75000]
["_C4A_WEST",1,"C4 Stage 1 - Without Planning Consultant","Walker Simpson Architects",8.0000000000000002E-3,14000,93750]
["_C4A_WEST",2,"C4 Stage 1 - Without Planning Consultant","Walker Simpson Architects",6.2500000000000003E-3,14000,93750]
["_C4B_EAST",1,"C4 Stage 2 - With/Without Planning Consultant","Ainsley Gommon Architects",1.3100000000000001E-2,4250,103000]
["_C4B_EAST",2,"C4 Stage 2 - With/Without Planning Consultant","Ainsley Gommon Architects",1.04E-2,4250,103000]
["_C4B_EAST",1,"C4 Stage 1 - With Planning Consultant","Ainsley Gommon Architects",7.9000000000000008E-3,3250,63000]
["_C4B_EAST",2,"C4 Stage 1 - With Planning Consultant","Ainsley Gommon Architects",6.3E-3,3250,63000]
["_C4B_EAST",1,"C4 Stage 1 - Without Planning Consultant","Ainsley Gommon Architects",8.6999999999999994E-3,3250,69000]
["_C4B_EAST",2,"C4 Stage 1 - Without Planning Consultant","Ainsley Gommon Architects",6.8999999999999999E-3,3250,69000]
["_C4B_EAST",1,"C4 Stage 2 - With/Without Planning Consultant","Bernard Taylor Partnership",{"$f":"0.09%+0.7%","v":7.899999999999999E-3},{"$f":"700+3000","v":3700},{"$f":"10000+90000","v":100000}]
["_C4B_EAST",2,"C4 Stage 2 - With/Without Planning Consultant","Bernard Taylor Partnership",{"$f":"0.08%+0.65%","v":7.3000000000000009E-3},3700,100000]
["_C4B_EAST",1,"C4 Stage 1 - With Planning Consultant","Bernard Taylor Partnership",{"$f":"0.09%+0.7%","v":7.899999999999999E-3},3700,100000]
["_C4B_EAST",2,"C4 Stage 1 - With Planning Consultant","Bernard Taylor Partnership",{"$f":"0.08%+0.6%","v":6.8000000000000005E-3},3700,100000]
["_C4B_EAST",1,"C4 Stage 1 - Without Planning Consultant","Bernard Taylor Partnership",8.8999999999999999E-3,3700,100000]
["_C4B_EAST",2,"C4 Stage 1 - Without Planning Consultant","Bernard Taylor Partnership",7.7999999999999996E-3,3700,100000]
["_C4B_EAST",1,"C4 Stage 2 - With/Without Planning Consultant","Bowker Sadler Partnership",1.738E-2,10230,171150]
["_C4B_EAST",2,"C4 Stage 2 - With/Without Planning Consultant","Bowker Sadler Partnership",1.141E-2,10230,171150]
["_C4B_EAST",1,"C4 Stage 1 - With Planning Consultant","Bowker Sadler Partnership",1.1390000000000001E-2,6270,111900]
["_C4B_EAST",2,"C4 Stage 1 - With Planning Consultant","Bowker Sadler Partnership",7.4599999999999996E-3,6270,111900]
["_C4B_EAST",1,"C4 Stage 1 - Without Planning Consultant","Bowker Sadler Partnership",1.282E-2,6985,121350]
["_C4B_EAST",2,"C4 Stage 1 - Without Planning Consultant","Bowker Sadler Partnership",8.09E-3,6985,121350]
["_C4B_EAST",1,"C4 Stage 2 - With/Without Planning Consultant","Buttress Architects Ltd",1.2999999999999999E-2,10000,165000]
["_C4B_EAST",2,"C4 Stage 2 - With/Without Planning Consultant","Buttress Architects Ltd",1.15E-2,10000,165000]
["_C4B_EAST",1,"C4 Stage 1 - With Planning Consultant","Buttress Architects Ltd",1.4E-2,10000,165000]
["_C4B_EAST",2,"C4 Stage 1 - With Planning Consultant","Buttress Architects Ltd",1.2500000000000001E-2,10000,165000]
["_C4B_EAST",1,"C4 Stage 1 - Without Planning Consultant","Buttress Architects Ltd",1.4500000000000001E-2,10000,180000]
["_C4B_EAST",2,"C4 Stage 1 - Without Planning Consultant","Buttress Architects Ltd",1.2999999999999999E-2,10000,180000]
["_C4B_EAST",1,"C4 Stage 2 - With/Without Planning Consultant","Darnton B3 Architecture",1.6500000000000001E-2,15500,100000]
["_C4B_EAST",2,"C4 Stage 2 - With/Without Planning Consultant","Darnton B3 Architecture",7.3699999999999998E-3,15500,100000]
["_C4B_EAST",1,"C4 Stage 1 - With Planning Consultant","Darnton B3 Architecture",1.0800000000000001E-2,10500,72000]
["_C4B_EAST",2,"C4 Stage 1 - With Planning Consultant","Darnton B3 Architecture",4.8399999999999997E-3,10500,72000]
["_C4B_EAST",1,"C4 Stage 1 - Without Planning Consultant","Darnton B3 Architecture",1.11E-2,11000,75000]
["_C4B_EAST",2,"C4 Stage 1 - Without Planning Consultant","Darnton B3 Architecture",4.9500000000000004E-3,11000,75000]
["_C4B_EAST",1,"C4 Stage 2 - With/Without Planning Consultant","Halsall Lloyd Partnership",1.0999999999999999E-2,8900,127000]
["_C4B_EAST",2,"C4 Stage 2 - With/Without Planning Consultant","Halsall Lloyd Partnership",0.01,8900,127000]
["_C4B_EAST",1,"C4 Stage 1 - With Planning Consultant","Halsall Lloyd Partnership",1.4200000000000001E-2,8900,147000]
["_C4B_EAST",2,"C4 Stage 1 - With Planning Consultant","Halsall Lloyd Partnership",1.21E-2,8900,147000]
["_C4B_EAST",1,"C4 Stage 1 - Without Planning Consultant","Halsall Lloyd Partnership",1.35E-2,8900,147000]
["_C4B_EAST",2,"C4 Stage 1 - Without Planning Consultant","Halsall Lloyd Partnership",1.2E-2,8900,147000]
["_C4B_EAST",1,"C4 Stage 2 - With/Without Planning Consultant","Langtry-Langton Architects",1.2999999999999999E-2,0,122000]
["_C4B_EAST",2,"C4 Stage 2 - With/Without Planning Consultant","Langtry-Langton Architects",1.15E-2,0,122000]
["_C4B_EAST",1,"C4 Stage 1 - With Planning Consultant","Langtry-Langton Architects",7.0000000000000001E-3,0,50000]
["_C4B_EAST",2,"C4 Stage 1 - With Planning Consultant","Langtry-Langton Architects",5.7999999999999996E-3,0,50000]
["_C4B_EAST",1,"C4 Stage 1 - Without Planning Consultant","Langtry-Langton Architects",7.1999999999999998E-3,0,55000]
["_C4B_EAST",2,"C4 Stage 1 - Without Planning Consultant","Langtry-Langton Architects",6.1999999999999998E-3,0,55000]
["_C4B_EAST",1,"C4 Stage 2 - With/Without Planning Consultant","Michael Dyson Associates Limited",1.24E-2,9000,92000]
["_C4B_EAST",2,"C4 Stage 2 - With/Without Planning Consultant","Michael Dyson Associates Limited",8.6999999999999994E-3,9000,92000]
["_C4B_EAST",1,"C4 Stage 1 - With Planning Consultant","Michael Dyson Associates Limited",8.3000000000000001E-3,7500,71000]
["_C4B_EAST",2,"C4 Stage 1 - With Planning Consultant","Michael Dyson Associates Limited",6.1999999999999998E-3,7500,71000]
["_C4B_EAST",1,"C4 Stage 1 - Without Planning Consultant","Michael Dyson Associates Limited",8.5000000000000006E-3,7500,71000]
["_C4B_EAST",2,"C4 Stage 1 - Without Planning Consultant","Michael Dyson Associates Limited",6.3E-3,7500,71000]
["_C4B_EAST",1,"C4 Stage 2 - With/Without Planning Consultant","Michael Hyde and Associated Ltd",9.9749999999999995E-3,4000,149625]
["_C4B_EAST",2,"C4 Stage 2 - With/Without Planning Consultant","Michael Hyde and Associated Ltd",9.9749999999999995E-3,4000,149625]
["_C4B_EAST",1,"C4 Stage 1 - With Planning Consultant","Michael Hyde and Associated Ltd",7.3499999999999998E-3,4000,115500]
["_C4B_EAST",2,"C4 Stage 1 - With Planning Consultant","Michael Hyde and Associated Ltd",7.7175000000000004E-3,4000,115500]
["_C4B_EAST",1,"C4 Stage 1 - Without Planning Consultant","Michael Hyde and Associated Ltd",7.8750000000000001E-3,4000,115500]
["_C4B_EAST",2,"C4 Stage 1 - Without Planning Consultant","Michael Hyde and Associated Ltd",7.8750000000000001E-3,4000,115500]
["_C4B_EAST",1,"C4 Stage 2 - With/Without Planning Consultant","Paddock Johnson Partnership",1.7100000000000001E-2,1710,231000]
["_C4B_EAST",2,"C4 Stage 2 - With/Without Planning Consultant","Paddock Johnson Partnership",1.54E-2,1710,231000]
["_C4B_EAST",1,"C4 Stage 1 - With Planning Consultant","Paddock Johnson Partnership",6.4000000000000003E-3,690,78000]
["_C4B_EAST",2,"C4 Stage 1 - With Planning Consultant","Paddock Johnson Partnership",5.1000000000000004E-3,690,78000]
["_C4B_EAST",1,"C4 Stage 1 - Without Planning Consultant","Paddock Johnson Partnership",6.4999999999999997E-3,690,78000]
["_C4B_EAST",2,"C4 Stage 1 - Without Planning Consultant","Paddock Johnson Partnership",5.1999999999999998E-3,690,78000]
["_C4B_EAST",1,"C4 Stage 2 - With/Without Planning Consultant","Ridge and Partners LLP",7.1000000000000004E-3,5750,106500]
["_C4B_EAST",2,"C4 Stage 2 - With/Without Planning Consultant","Ridge and Partners LLP",7.1000000000000004E-3,5750,106500]
["_C4B_EAST",1,"C4 Stage 1 - With Planning Consultant","Ridge and Partners LLP",6.7999999999999996E-3,5000,118500]
["_C4B_EAST",2,"C4 Stage 1 - With Planning Consultant","Ridge and Partners LLP",7.9000000000000008E-3,5000,118500]
["_C4B_EAST",1,"C4 Stage 1 - Without Planning Consultant","Ridge and Partners LLP",6.7999999999999996E-3,5750,118500]
["_C4B_EAST",2,"C4 Stage 1 - Without Planning Consultant","Ridge and Partners LLP",7.9000000000000008E-3,5750,118500]
["_C4B_WEST",1,"C4 Stage 2 - With/Without Planning Consultant","Bernard Taylor Partnership",1.1650000000000001E-2,6350,115500]
["_C4B_WEST",2,"C4 Stage 2 - With/Without Planning Consultant","Bernard Taylor Partnership",7.7000000000000002E-3,6350,115500]
["_C4B_WEST",1,"C4 Stage 1 - With Planning Consultant","Bernard Taylor Partnership",{"$f":"0.09%+0.7%","v":7.899999999999999E-3},{"$f":"700+3000","v":3700},{"$f":"10000+90000","v":100000}]
["_C4B_WEST",2,"C4 Stage 1 - With Planning Consultant","Bernard Taylor Partnership",{"$f":"0.08%+0.6%","v":6.8000000000000005E-3},{"$f":"700+3000","v":3700},{"$f":"10000+90000","v":100000}]
["_C4B_WEST",1,"C4 Stage 1 - Without Planning Consultant","Bernard Taylor Partnership",8.8999999999999999E-3,{"$f":"700+3000","v":3700},{"$f":"10000+90000","v":100000}]
["_C4B_WEST",2,"C4 Stage 1 - Without Planning Consultant","Bernard Taylor Partnership",7.7999999999999996E-3,{"$f":"700+3000","v":3700},{"$f":"10000+90000","v":100000}]
["_C4B_WEST",1,"C4 Stage 2 - With/Without Planning Consultant","Bowker Sadler Partnership",1.5800000000000002E-2,9300,163050]
["_C4B_WEST",2,"C4 Stage 2 - With/Without Planning Consultant","Bowker Sadler Partnership",1.0869999999999999E-2,9300,163050]
["_C4B_WEST",1,"C4 Stage 1 - With Planning Consultant","Bowker Sadler Partnership",1.035E-2,5700,106500]
["_C4B_WEST",2,"C4 Stage 1 - With Planning Consultant","Bowker Sadler Partnership",7.1000000000000004E-3,5700,106500]
["_C4B_WEST",1,"C4 Stage 1 - Without Planning Consultant","Bowker Sadler Partnership",1.1650000000000001E-2,6350,115500]
["_C4B_WEST",2,"C4 Stage 1 - Without Planning Consultant","Bowker Sadler Partnership",7.7000000000000002E-3,6350,115500]
["_C4B_WEST",1,"C4 Stage 2 - With/Without Planning Consultant","Buttress Architects Ltd",1.2999999999999999E-2,10000,165000]
["_C4B_WEST",2,"C4 Stage 2 - With/Without Planning Consultant","Buttress Architects Ltd",1.15E-2,10000,165000]
["_C4B_WEST",1,"C4 Stage 1 - With Planning Consultant","Buttress Architects Ltd",1.4E-2,10000,165000]
["_C4B_WEST",2,"C4 Stage 1 - With Planning Consultant","Buttress Architects Ltd",1.2500000000000001E-2,10000,165000]
["_C4B_WEST",1,"C4 Stage 1 - Without Planning Consultant","Buttress Architects Ltd",1.4500000000000001E-2,10000,180000]
["_C4B_WEST",2,"C4 Stage 1 - Without Planning Consultant","Buttress Architects Ltd",1.2999999999999999E-2,10000,180000]
["_C4B_WEST",1,"C4 Stage 2 - With/Without Planning Consultant","BYA Architects",9.4999999999999998E-3,3800,112500]
["_C4B_WEST",2,"C4 Stage 2 - With/Without Planning Consultant","BYA Architects",7.4999999999999997E-3,3800,112500]
["_C4B_WEST",1,"C4 Stage 1 - With Planning Consultant","BYA Architects",9.4999999999999998E-3,3800,112500]
["_C4B_WEST",2,"C4 Stage 1 - With Planning Consultant","BYA Architects",7.4999999999999997E-3,3800,112500]
["_C4B_WEST",1,"C4 Stage 1 - Without Planning Consultant","BYA Architects",9.4999999999999998E-3,3800,112500]
["_C4B_WEST",2,"C4 Stage 1 - Without Planning Consultant","BYA Architects",7.4999999999999997E-3,3800,112500]
["_C4B_WEST",1,"C4 Stage 2 - With/Without Planning Consultant","Langtry-Langton Architects",9.7999999999999997E-3,0,115000]
["_C4B_WEST",2,"C4 Stage 2 - With/Without Planning Consultant","Langtry-Langton Architects",8.9999999999999993E-3,0,115000]
["_C4B_WEST",1,"C4 Stage 1 - With Planning Consultant","Langtry-Langton Architects",7.0000000000000001E-3,0,50000]
["_C4B_WEST",2,"C4 Stage 1 - With Planning Consultant","Langtry-Langton Architects",5.7999999999999996E-3,0,50000]
["_C4B_WEST",1,"C4 Stage 1 - Without Planning Consultant","Langtry-Langton Architects",6.4999999999999997E-3,0,55000]
["_C4B_WEST",2,"C4 Stage 1 - Without Planning Consultant","Langtry-Langton Architects",6.1999999999999998E-3,0,55000]
["_C4B_WEST",1,"C4 Stage 2 - With/Without Planning Consultant","Michael Dyson Associates Limited",1.24E-2,9000,92000]
["_C4B_WEST",2,"C4 Stage 2 - With/Without Planning Consultant","Michael Dyson Associates Limited",8.6999999999999994E-3,9000,92000]
["_C4B_WEST",1,"C4 Stage 1 - With Planning Consultant","Michael Dyson Associates Limited",8.3000000000000001E-3,7500,71000]
["_C4B_WEST",2,"C4 Stage 1 - With Planning Consultant","Michael Dyson Associates Limited",6.1999999999999998E-3,7500,71000]
["_C4B_WEST",1,"C4 Stage 1 - Without Planning Consultant","Michael Dyson Associates Limited",8.5000000000000006E-3,7500,71000]
["_C4B_WEST",2,"C4 Stage 1 - Without Planning Consultant","Michael Dyson Associates Limited",6.3E-3,7500,71000]
["_C4B_WEST",1,"C4 Stage 2 - With/Without Planning Consultant","Michael Hyde and Associated Ltd",9.9749999999999995E-3,4000,157500]
["_C4B_WEST",2,"C4 Stage 2 - With/Without Planning Consultant","Michael Hyde and Associated Ltd",1.0500000000000001E-2,4000,157500]
["_C4B_WEST",1,"C4 Stage 1 - With Planning Consultant","Michael Hyde and Associated Ltd",0.73499999999999999,4000,115500]
["_C4B_WEST",2,"C4 Stage 1 - With Planning Consultant","Michael Hyde and Associated Ltd",8.1899999999999994E-3,4000,115500]
["_C4B_WEST",1,"C4 Stage 1 - Without Planning Consultant","Michael Hyde and Associated Ltd",7.8750000000000001E-3,4000,115500]
["_C4B_WEST",2,"C4 Stage 1 - Without Planning Consultant","Michael Hyde and Associated Ltd",8.3999999999999995E-3,4000,115500]
["_C4B_WEST",1,"C4 Stage 2 - With/Without Planning Consultant","Paddock Johnson Partnership",1.61E-2,1790,216000]
["_C4B_WEST",2,"C4 Stage 2 - With/Without Planning Consultant","Paddock Johnson Partnership",1.44E-2,1790,216000]
["_C4B_WEST",1,"C4 Stage 1 - With Planning Consultant","Paddock Johnson Partnership",5.7000000000000002E-3,610,73500]
["_C4B_WEST",2,"C4 Stage 1 - With Planning Consultant","Paddock Johnson Partnership",4.7999999999999996E-3,610,73500]
["_C4B_WEST",1,"C4 Stage 1 - Without Planning Consultant","Paddock Johnson Partnership",5.7999999999999996E-3,580,73500]
["_C4B_WEST",2,"C4 Stage 1 - Without Planning Consultant","Paddock Johnson Partnership",4.8999999999999998E-3,580,73500]
["_C4B_WEST",1,"C4 Stage 2 - With/Without Planning Consultant","Ridge and Partners LLP",7.1000000000000004E-3,5750,106500]
["_C4B_WEST",2,"C4 Stage 2 - With/Without Planning Consultant","Ridge and Partners LLP",7.1000000000000004E-3,5750,106500]
["_C4B_WEST",1,"C4 Stage 1 - With Planning Consultant","Ridge and Partners LLP",6.7999999999999996E-3,5000,118500]
["_C4B_WEST",2,"C4 Stage 1 - With Planning Consultant","Ridge and Partners LLP",7.9000000000000008E-3,5000,118500]
["_C4B_WEST",1,"C4 Stage 1 - Without Planning Consultant","Ridge and Partners LLP",6.7999999999999996E-3,5750,118500]
["_C4B_WEST",2,"C4 Stage 1 - Without Planning Consultant","Ridge and Partners LLP",7.9000000000000008E-3,5750,118500]
["_C5_EAST",1,"n/a","Amrin Resources Ltd",5.8999999999999999E-3,17000,62000]
["_C5_EAST",2,"n/a","Amrin Resources Ltd",4.4000000000000003E-3,17000,62000]
["_C5_EAST",1,"n/a","Currie & Brown UK Ltd",4.3E-3,12000,58000]
["_C5_EAST",2,"n/a","Currie & Brown UK Ltd",3.0000000000000001E-3,12000,58000]
["_C5_EAST",1,"n/a","Hickton Consultants",4.4999999999999997E-3,3000,45000]
["_C5_EAST",2,"n/a","Hickton Consultants",3.0000000000000001E-3,3000,45000]
["_C5_EAST",1,"n/a","MAC Construction Consultants Ltd",6.0000000000000001E-3,6000,45000]
["_C5_EAST",2,"n/a","MAC Construction Consultants Ltd",4.0000000000000001E-3,6000,45000]
["_C5_EAST",1,"n/a","Waldeck Associates Limited",4.0000000000000001E-3,5000,48750]
["_C5_EAST",2,"n/a","Waldeck Associates Limited",3.7499999999999999E-3,5000,48750]
["_C5_EAST",1,"n/a","Whiteley Eaves Ltd",6.4999999999999997E-3,3250,25000]
["_C5_EAST",2,"n/a","Whiteley Eaves Ltd",2.5000000000000001E-3,3250,25000]
["_C5_EAST",1,"n/a","Wilkinson Cowan Partnership",5.4000000000000003E-3,7500,48000]
["_C5_EAST",2,"n/a","Wilkinson Cowan Partnership",4.7999999999999996E-3,7500,48000]
["_C5_WEST",1,"n/a","Aegis Services Ltd",5.1999999999999998E-3,9999,35000]
["_C5_WEST",2,"n/a","Aegis Services Ltd",3.5000000000000001E-3,9999,35000]
["_C5_WEST",1,"n/a","Amrin Resources Ltd",5.8999999999999999E-3,17000,62000]
["_C5_WEST",2,"n/a","Amrin Resources Ltd",4.4000000000000003E-3,17000,62000]
["_C5_WEST",1,"n/a","Currie & Brown UK Ltd",4.3E-3,12000,58000]
["_C5_WEST",2,"n/a","Currie & Brown UK Ltd",3.0000000000000001E-3,12000,58000]
["_C5_WEST",1,"n/a","Hickton Consultants",4.4999999999999997E-3,3000,45000]
["_C5_WEST",2,"n/a","Hickton Consultants",3.0000000000000001E-3,3000,45000]
["_C5_WEST",1,"n/a","MAC Construction Consultants Ltd",6.0000000000000001E-3,6000,45000]
["_C5_WEST",2,"n/a","MAC Construction Consultants Ltd",4.0000000000000001E-3,6000,45000]
["_C5_WEST",1,"n/a","SDA Consulting LLP",8.3000000000000001E-3,8300,54000]
["_C5_WEST",2,"n/a","SDA Consulting LLP",4.1999999999999997E-3,8300,54000]
["_C5_WEST",1,"n/a","Waldeck Associates Limited",4.0000000000000001E-3,5000,48750]
["_C5_WEST",2,"n/a","Waldeck Associates Limited",3.7499999999999999E-3,5000,48750]
["_C5_WEST",1,"n/a","Whiteley Eaves Ltd",6.4999999999999997E-3,3250,25000]
["_C5_WEST",2,"n/a","Whiteley Eaves Ltd",2.5000000000000001E-3,3250,25000]
["_C5_WEST",1,"n/a","Wilkinson Cowan Partnership",5.4000000000000003E-3,7500,48000]
["_C5_WEST",2,"n/a","Wilkinson Cowan Partnership",4.7999999999999996E-3,7500,48000]
["_C6_EAST",1,"n/a","AA Projects Ltd",7.4999999999999997E-3,14950,75000]
["_C6_EAST",2,"n/a","AA Projects Ltd",5.7000000000000002E-3,14950,75000]
["_C6_EAST",1,"n/a","Arcus Consulting LLP",7.0000000000000001E-3,7500,78000]
["_C6_EAST",2,"n/a","Arcus Consulting LLP",5.0000000000000001E-3,7500,78000]
["_C6_EAST",1,"n/a","CPC Project Services LLP",6.3E-3,5000,40000]
["_C6_EAST",2,"n/a","CPC Project Services LLP",5.0000000000000001E-3,5000,40000]
["_C6_EAST",1,"n/a","Identity Consult",5.0000000000000001E-3,9000,52500]
["_C6_EAST",2,"n/a","Identity Consult",3.5000000000000001E-3,9000,52500]
["_C6_EAST",1,"n/a","Markhams Ltd",6.0000000000000001E-3,8000,50000]
["_C6_EAST",2,"n/a","Markhams Ltd",4.4999999999999997E-3,8000,50000]
["_C6_EAST",1,"n/a","Poole Dick Associates",6.0000000000000001E-3,7500,37500]
["_C6_EAST",2,"n/a","Poole Dick Associates",5.0000000000000001E-3,7500,37500]
["_C6_EAST",1,"n/a","RPS Consulting Services Ltd",5.5999999999999999E-3,7000,72000]
["_C6_EAST",2,"n/a","RPS Consulting Services Ltd",4.7999999999999996E-3,7000,72000]
["_C6_EAST",1,"n/a","Thornton Firkin & Partners",6.4999999999999997E-3,5000,42500]
["_C6_EAST",2,"n/a","Thornton Firkin & Partners",4.4999999999999997E-3,5000,42500]
["_C6_EAST",1,"n/a","Waldeck Associates Limited",5.4999999999999997E-3,4500,67500]
["_C6_EAST",2,"n/a","Waldeck Associates Limited",4.4999999999999997E-3,4500,67500]
["_C6_EAST",1,"n/a","Whiteley Eaves Ltd",3.5000000000000001E-3,1750,25000]
["_C6_EAST",2,"n/a","Whiteley Eaves Ltd",2.5000000000000001E-3,1750,25000]
["_C6_EAST",1,"n/a","Wilkinson Cowan Partnership",4.7000000000000002E-3,8000,45000]
["_C6_EAST",2,"n/a","Wilkinson Cowan Partnership",3.5000000000000001E-3,8000,45000]
["_C6_WEST",1,"n/a","AA Projects Ltd",7.4999999999999997E-3,14950,75000]
["_C6_WEST",2,"n/a","AA Projects Ltd",5.7000000000000002E-3,14950,75000]
["_C6_WEST",1,"n/a","Arcus Consulting LLP",7.0000000000000001E-3,7500,78000]
["_C6_WEST",2,"n/a","Arcus Consulting LLP",5.0000000000000001E-3,7500,78000]
["_C6_WEST",1,"n/a","CPC Project Services LLP",6.3E-3,5000,40000]
["_C6_WEST",2,"n/a","CPC Project Services LLP",5.0000000000000001E-3,5000,40000]
["_C6_WEST",1,"n/a","Identity Consult",5.0000000000000001E-3,9000,52500]
["_C6_WEST",2,"n/a","Identity Consult",3.5000000000000001E-3,9000,52500]
["_C6_WEST",1,"n/a","Markhams Ltd",6.0000000000000001E-3,8000,50000]
["_C6_WEST",2,"n/a","Markhams Ltd",4.4999999999999997E-3,8000,50000]
["_C6_WEST",1,"n/a","Poole Dick Associates",6.0000000000000001E-3,7500,37500]
["_C6_WEST",2,"n/a","Poole Dick Associates",5.0000000000000001E-3,7500,37500]
["_C6_WEST",1,"n/a","RPS Consulting Services Ltd",5.1999999999999998E-3,6500,66000]
["_C6_WEST",2,"n/a","RPS Consulting Services Ltd",4.4000000000000003E-3,6500,66000]
["_C6_WEST",1,"n/a","Simon Fenton Partnership",6.6E-3,6750,68400]
["_C6_WEST",2,"n/a","Simon Fenton Partnership",5.7000000000000002E-3,6750,68400]
["_C6_WEST",1,"n/a","Thornton Firkin & Partners",6.4999999999999997E-3,5000,42500]
["_C6_WEST",2,"n/a","Thornton Firkin & Partners",4.4999999999999997E-3,5000,42500]
["_C6_WEST",1,"n/a","Waldeck Associates Limited",5.4999999999999997E-3,4500,67500]
["_C6_WEST",2,"n/a","Waldeck Associates Limited",4.4999999999999997E-3,4500,67500]
["_C6_WEST",1,"n/a","Whiteley Eaves Ltd",3.5000000000000001E-3,1750,25000]
["_C6_WEST",2,"n/a","Whiteley Eaves Ltd",2.5000000000000001E-3,1750,25000]
["_C6_WEST",1,"n/a","Wilkinson Cowan Partnership",4.7000000000000002E-3,8000,45000]
["_C6_WEST",2,"n/a","Wilkinson Cowan Partnership",3.5000000000000001E-3,8000,45000]
["_C7_EAST",1,"C7 H&SA Only","AA Projects Ltd",2.5000000000000001E-3,3500,13500]
["_C7_EAST",2,"C7 H&SA Only","AA Projects Ltd",8.9999999999999998E-4,3500,13500]
["_C7_EAST",1,"C7 PD & H&SA","AA Projects Ltd",3.5000000000000001E-3,6000,22000]
["_C7_EAST",2,"C7 PD & H&SA","AA Projects Ltd",1.6999999999999999E-3,6000,22000]
["_C7_EAST",1,"C7 H&SA Only","Arcus Consulting LLP",1.1999999999999999E-3,3200,12000]
["_C7_EAST",2,"C7 H&SA Only","Arcus Consulting LLP",8.9999999999999998E-4,3200,12000]
["_C7_EAST",1,"C7 PD & H&SA","Arcus Consulting LLP",1.6999999999999999E-3,4950,18000]
["_C7_EAST",2,"C7 PD & H&SA","Arcus Consulting LLP",1.1999999999999999E-3,4950,18000]
["_C7_EAST",1,"C7 H&SA Only","Curtins Consulting Ltd",1.1000000000000001E-3,3000,8700]
["_C7_EAST",2,"C7 H&SA Only","Curtins Consulting Ltd",5.8E-4,3000,8700]
["_C7_EAST",1,"C7 PD & H&SA","Curtins Consulting Ltd",2.5000000000000001E-3,6500,19500]
["_C7_EAST",2,"C7 PD & H&SA","Curtins Consulting Ltd",1.2999999999999999E-3,6500,19500]
["_C7_EAST",1,"C7 H&SA Only","Faithful & Gould",1.9E-3,1650,9000]
["_C7_EAST",2,"C7 H&SA Only","Faithful & Gould",1.1000000000000001E-3,1650,9000]
["_C7_EAST",1,"C7 PD & H&SA","Faithful & Gould",3.0999999999999999E-3,2750,18000]
["_C7_EAST",2,"C7 PD & H&SA","Faithful & Gould",1.9E-3,2750,18000]
["_C7_EAST",1,"C7 H&SA Only","Rider Levett Bucknall UK Ltd",7.5000000000000002E-4,300,4000]
["_C7_EAST",2,"C7 H&SA Only","Rider Levett Bucknall UK Ltd",2.5000000000000001E-4,300,4000]
["_C7_EAST",1,"C7 PD & H&SA","Rider Levett Bucknall UK Ltd",2.5000000000000001E-3,975,13500]
["_C7_EAST",2,"C7 PD & H&SA","Rider Levett Bucknall UK Ltd",8.9999999999999998E-4,975,13500]
["_C7_EAST",1,"C7 H&SA Only","RJD Associates (North West) Limited",6.9999999999999999E-4,1500,4750]
["_C7_EAST",2,"C7 H&SA Only","RJD Associates (North West) Limited",4.0000000000000002E-4,1500,4750]
["_C7_EAST",1,"C7 PD & H&SA","RJD Associates (North West) Limited",1.1999999999999999E-3,2500,9000]
["_C7_EAST",2,"C7 PD & H&SA","RJD Associates (North West) Limited",8.0000000000000004E-4,2500,9000]
["_C7_EAST",1,"C7 H&SA Only","Thornton Firkin & Partners",1.4499999999999999E-3,2000,6000]
["_C7_EAST",2,"C7 H&SA Only","Thornton Firkin & Partners",1E-3,2000,6000]
["_C7_EAST",1,"C7 PD & H&SA","Thornton Firkin & Partners",1.8E-3,3000,15000]
["_C7_EAST",2,"C7 PD & H&SA","Thornton Firkin & Partners",1.2999999999999999E-3,3000,15000]
["_C7_EAST",1,"C7 H&SA Only","Urbn Design & Consult Ltd",1E-3,550,5000]
["_C7_EAST",2,"C7 H&SA Only","Urbn Design & Consult Ltd",5.0000000000000001E-4,550,5000]
["_C7_EAST",1,"C7 PD & H&SA","Urbn Design & Consult Ltd",2E-3,1150,20000]
["_C7_EAST",2,"C7 PD & H&SA","Urbn Design & Consult Ltd",1E-3,1150,20000]
["_C7_EAST",1,"C7 H&SA Only","Vextrix",1.5E-3,7738,13724]
["_C7_EAST",2,"C7 H&SA Only","Vextrix",1.2999999999999999E-3,7738,13724]
["_C7_EAST",1,"C7 PD & H&SA","Vextrix",2.5000000000000001E-3,11169,20659]
["_C7_EAST",2,"C7 PD & H&SA","Vextrix",2E-3,11169,20659]
["_C7_EAST",1,"C7 H&SA Only","Whiteley Eaves Ltd",1.2999999999999999E-3,650,7000]
["_C7_EAST",2,"C7 H&SA Only","Whiteley Eaves Ltd",6.9999999999999999E-4,650,7000]
["_C7_EAST",1,"C7 PD & H&SA","Whiteley Eaves Ltd",1.2999999999999999E-3,650,7000]
["_C7_EAST",2,"C7 PD & H&SA","Whiteley Eaves Ltd",6.9999999999999999E-4,650,7000]
["_C7_EAST",1,"C7 H&SA Only","Wilkinson Cowan Partnership",1.1999999999999999E-3,3500,7500]
["_C7_EAST",2,"C7 H&SA Only","Wilkinson Cowan Partnership",5.5000000000000003E-4,3500,7500]
["_C7_EAST",1,"C7 PD & H&SA","Wilkinson Cowan Partnership",1.8E-3,3500,7500]
["_C7_EAST",2,"C7 PD & H&SA","Wilkinson Cowan Partnership",8.0000000000000004E-4,3500,7500]
["_C7_EAST",1,"C7 H&SA Only","WYG Engineering Limited",1E-3,1000,10500]
["_C7_EAST",2,"C7 H&SA Only","WYG Engineering Limited",6.9999999999999999E-4,1000,10500]
["_C7_EAST",1,"C7 PD & H&SA","WYG Engineering Limited",2E-3,2000,22500]
["_C7_EAST",2,"C7 PD & H&SA","WYG Engineering Limited",1.5E-3,2000,22500]
["_C7_WEST",1,"C7 H&SA Only","AA Projects Ltd",2.5000000000000001E-3,2500,7500]
["_C7_WEST",2,"C7 H&SA Only","AA Projects Ltd",5.0000000000000001E-4,2500,7500]
["_C7_WEST",1,"C7 PD & H&SA","AA Projects Ltd",7.4999999999999997E-3,7500,25500]
["_C7_WEST",2,"C7 PD & H&SA","AA Projects Ltd",1.6999999999999999E-3,7500,25500]
["_C7_WEST",1,"C7 H&SA Only","Aegis Services Ltd",1.5E-3,1200,6000]
["_C7_WEST",2,"C7 H&SA Only","Aegis Services Ltd",1E-3,1200,6000]
["_C7_WEST",1,"C7 PD & H&SA","Aegis Services Ltd",2E-3,2000,11000]
["_C7_WEST",2,"C7 PD & H&SA","Aegis Services Ltd",1.4E-3,2000,11000]
["_C7_WEST",1,"C7 H&SA Only","Arcus Consulting LLP",1.1999999999999999E-3,3200,12000]
["_C7_WEST",2,"C7 H&SA Only","Arcus Consulting LLP",8.9999999999999998E-4,3200,12000]
["_C7_WEST",1,"C7 PD & H&SA","Arcus Consulting LLP",1.6999999999999999E-3,4950,18000]
["_C7_WEST",2,"C7 PD & H&SA","Arcus Consulting LLP",1.1999999999999999E-3,4950,18000]
["_C7_WEST",1,"C7 H&SA Only","Curtins Consulting Ltd",1.1000000000000001E-3,3000,8700]
["_C7_WEST",2,"C7 H&SA Only","Curtins Consulting Ltd",5.8E-4,3000,8700]
["_C7_WEST",1,"C7 PD & H&SA","Curtins Consulting Ltd",2.5000000000000001E-3,6500,19500]
["_C7_WEST",2,"C7 PD & H&SA","Curtins Consulting Ltd",1.2999999999999999E-3,6500,19500]
["_C7_WEST",1,"C7 H&SA Only","Faithful & Gould",1.9E-3,1650,9000]
["_C7_WEST",2,"C7 H&SA Only","Faithful & Gould",1.1000000000000001E-3,1650,9000]
["_C7_WEST",1,"C7 PD & H&SA","Faithful & Gould",3.0999999999999999E-3,2750,18000]
["_C7_WEST",2,"C7 PD & H&SA","Faithful & Gould",1.9E-3,2750,18000]
["_C7_WEST",1,"C7 H&SA Only","Paddock Johnson Partnership",1E-3,450,12000]
["_C7_WEST",2,"C7 H&SA Only","Paddock Johnson Partnership",8.0000000000000004E-4,450,12000]
["_C7_WEST",1,"C7 PD & H&SA","Paddock Johnson Partnership",2E-3,3500,30000]
["_C7_WEST",2,"C7 PD & H&SA","Paddock Johnson Partnership",1.5E-3,3500,30000]
["_C7_WEST",1,"C7 H&SA Only","Rider Levett Bucknall UK Ltd",7.5000000000000002E-4,300,4000]
["_C7_WEST",2,"C7 H&SA Only","Rider Levett Bucknall UK Ltd",2.5000000000000001E-4,300,4000]
["_C7_WEST",1,"C7 PD & H&SA","Rider Levett Bucknall UK Ltd",2.5000000000000001E-3,975,13500]
["_C7_WEST",2,"C7 PD & H&SA","Rider Levett Bucknall UK Ltd",8.9999999999999998E-4,975,13500]
["_C7_WEST",1,"C7 H&SA Only","RJD Associates (North West) Limited",6.9999999999999999E-4,1500,4750]
["_C7_WEST",2,"C7 H&SA Only","RJD Associates (North West) Limited",4.0000000000000002E-4,1500,4750]
["_C7_WEST",1,"C7 PD & H&SA","RJD Associates (North West) Limited",1.1999999999999999E-3,2500,9000]
["_C7_WEST",2,"C7 PD & H&SA","RJD Associates (North West) Limited",8.0000000000000004E-4,2500,9000]
["_C7_WEST",1,"C7 H&SA Only","Thornton Firkin & Partners",1.4499999999999999E-3,2000,6000]
["_C7_WEST",2,"C7 H&SA Only","Thornton Firkin & Partners",1E-3,2000,6000]
["_C7_WEST",1,"C7 PD & H&SA","Thornton Firkin & Partners",1.8E-3,3000,15000]
["_C7_WEST",2,"C7 PD & H&SA","Thornton Firkin & Partners",1.2999999999999999E-3,3000,15000]
["_C7_WEST",1,"C7 H&SA Only","Urbn Design & Consult Ltd",1E-3,550,5000]
["_C7_WEST",2,"C7 H&SA Only","Urbn Design & Consult Ltd",5.0000000000000001E-4,550,5000]
["_C7_WEST",1,"C7 PD & H&SA","Urbn Design & Consult Ltd",2E-3,1150,20000]
["_C7_WEST",2,"C7 PD & H&SA","Urbn Design & Consult Ltd",1E-3,1150,20000]
["_C7_WEST",1,"C7 H&SA Only","Vextrix",1.5E-3,6935,11680]
["_C7_WEST",2,"C7 H&SA Only","Vextrix",1.2999999999999999E-3,6935,11680]
["_C7_WEST",1,"C7 PD & H&SA","Vextrix",2.5000000000000001E-3,10000,17447]
["_C7_WEST",2,"C7 PD & H&SA","Vextrix",2E-3,10000,17447]
["_C7_WEST",1,"C7 H&SA Only","Whiteley Eaves Ltd",1.2999999999999999E-3,650,7000]
["_C7_WEST",2,"C7 H&SA Only","Whiteley Eaves Ltd",6.9999999999999999E-4,650,7000]
["_C7_WEST",1,"C7 PD & H&SA","Whiteley Eaves Ltd",1.2999999999999999E-3,650,7000]
["_C7_WEST",2,"C7 PD & H&SA","Whiteley Eaves Ltd",6.9999999999999999E-4,650,7000]
["_C7_WEST",1,"C7 H&SA Only","Wilkinson Cowan Partnership",1.1999999999999999E-3,3500,7500]
["_C7_WEST",2,"C7 H&SA Only","Wilkinson Cowan Partnership",5.5000000000000003E-4,3500,7500]
["_C7_WEST",1,"C7 PD & H&SA","Wilkinson Cowan Partnership",1.8E-3,3500,7500]
["_C7_WEST",2,"C7 PD & H&SA","Wilkinson Cowan Partnership",8.0000000000000004E-4,3500,7500]
["_C7_WEST",1,"C7 H&SA Only","WYG Engineering Limited",1E-3,1000,10500]
["_C7_WEST",2,"C7 H&SA Only","WYG Engineering Limited",6.9999999999999999E-4,1000,10500]
["_C7_WEST",1,"C7 PD & H&SA","WYG Engineering Limited",2E-3,2000,22500]
["_C7_WEST",2,"C7 PD & H&SA","WYG Engineering Limited",1.5E-3,2000,22500]

{"sheet":"Lists","index":7,"n_rows":21,"n_cols":42,"rows_kept":21,"cut":false,"hidden":true,"merged":[]}
["_C1A_WEST","_C1A_EAST","_C1B_WEST","_C1B_EAST","_C2_WEST","_C2_EAST","_C3_WEST","_C3_EAST","_C4A_WEST","_C4A_EAST","_C4B_WEST","_C4B_EAST","_C5_WEST","_C5_EAST","_C6_WEST","_C6_EAST","_C7_WEST","_C7_EAST","_C8_WEST","_C8_EAST","_C9_WEST","_C9_EAST","_H1_West","_H2_East","_L1","_L2","_L3","_L4","_L5","_L6","_G1_West","_G2_East","_P1_West","_P2_East",null,null,"_C2_WEST","_C2_EAST","_C3_WEST","_C3_EAST","_C5_WEST","_C5_EAST"]
["AA Projects Ltd","AA Projects Ltd","AA Projects Ltd","AA Projects Ltd","Alan Johnston Partnership","Align Property Partners","Align Property Partners","Align Property Partners","AEW Architects","Acanthus WSM Architects","Bernard Taylor Partnership","Ainsley Gommon Architects","Aegis Services Ltd","Amrin Resources Ltd","AA Projects Ltd","AA Projects Ltd","AA Projects Ltd","AA Projects Ltd","DPP One Ltd","Cushman & Wakefield","Campbell Reith Hill LLP","Campbell Reith Hill LLP","Caddick Construction Ltd","Caddick Construction Ltd","A Connolly Ltd","A Connolly Ltd","A Connolly Ltd","ENGIE Regeneration Ltd","Esh Construction Ltd","Esh Construction Ltd","A Connolly Ltd","PLP Construction Ltd","A Connolly Ltd","PLP Construction Ltd"]
["Appleyard & Trew LLP","Appleyard & Trew LLP","AECOM","AECOM","Align Property Partners","Campbell Reith Hill LLP","Anderton Gables","Anderton Gables","Bernard Taylor Partnership","AEW Architects","Bowker Sadler Partnership","Bernard Taylor Partnership","Amrin Resources Ltd","Currie & Brown UK Ltd","Arcus Consulting LLP","Arcus Consulting LLP","Aegis Services Ltd","Arcus Consulting LLP","Hive Land & Planning Limited","DPP One Ltd","Carley Daines & Partners","Carley Daines & Partners","Carroll Build Ltd","ENGIE Regeneration Ltd","Carroll Build Ltd","Carroll Build Ltd","Carroll Build Ltd","Esh Construction Ltd","J Greenwood (Builders) Ltd","Gelder Ltd","Karmo Ltd","S&I Groundworks Ltd","PLP Construction Ltd","Space Modular Ltd"]
["CPC Project Services LLP","BWA","Anderton Gables","Anderton Gables","Bradshaw Gass & Hope LLP","Carley Daines & Partners","Faithful & Gould","Faithful & Gould","Bowker Sadler Partnership","Bernard Taylor Partnership","Buttress Architects Ltd","Bowker Sadler Partnership","Currie & Brown UK Ltd","Hickton Consultants","CPC Project Services LLP","CPC Project Services LLP","Arcus Consulting LLP","Curtins Consulting Ltd","Mosaic Town Planning","Hive Land & Planning Limited","Curtins Consulting Ltd","Curtins Consulting Ltd","Crossfield Construction LTD","Esh Construction Ltd","Crossfield Construction LTD","Crossfield Construction LTD","Crossfield Construction LTD","Lovell Partnerships Ltd","John Southworth Builders Ltd","Lovell Partnerships Ltd","PLP Construction Ltd",null,"Space Modular Ltd"]
["Currie & Brown UK Ltd","CPC Project Services LLP","Arcus Consulting LLP","Arcus Consulting LLP","Brennan Consult","Elluc Projects","MAC Construction Consultants Ltd","MAC Construction Consultants Ltd","Brewster Bye Architects","Brewster Bye Architects","BYA Architects","Buttress Architects Ltd","Hickton Consultants","MAC Construction Consultants Ltd","Identity Consult","Identity Consult","Curtins Consulting Ltd","Faithful & Gould","Nexus Planning","Nathaniel Lichfield & Partners","Omnia Environmental Consulting","Omnia Environmental Consulting","ENGIE Regeneration Ltd","Lovell Partnerships Ltd","ENGIE Regeneration Ltd","ENGIE Regeneration Ltd","ENGIE Regeneration Ltd","Mears Limited","Lovell Partnerships Ltd","Mears Limited","PP O’Connor Group Limited",null,"Whitfield & Brown (Developments) Ltd"]
["Edge Property Solutions","Currie & Brown UK Ltd","Bradshaw Gass & Hope LLP","CPC Project Services LLP","Campbell Reith Hill LLP","Pell Frischmann Consultants","Rider Levett Bucknall UK Ltd","Rider Levett Bucknall UK Ltd","Brock Carmichael Architects","Condy & Lofthouse Ltd","Langtry-Langton Architects","Darnton B3 Architecture","MAC Construction Consultants Ltd","Waldeck Associates Limited","Markhams Ltd","Markhams Ltd","Faithful & Gould","Rider Levett Bucknall UK Ltd","NJL Consulting Limited","Nexus Planning","RoC Consulting","RoC Consulting","Hargreaves Contracting Ltd","Mears Limited","Hargreaves Contracting Ltd","J Greenwood (Builders) Ltd","Hargreaves Contracting Ltd",null,"Mears Limited","Novus Property Solutions Limited","S&I Groundworks Ltd"]
["Faithful & Gould","Edge Property Solutions","CPC Project Services LLP","Edge Property Solutions","Carley Daines & Partners","Portland Consulting","Sutcliffe","Sutcliffe","Condy & Lofthouse Ltd","DK Architects","Michael Dyson Associates Limited","Halsall Lloyd Partnership","SDA Consulting LLP","Whiteley Eaves Ltd","Poole Dick Associates","Poole Dick Associates","Paddock Johnson Partnership","RJD Associates (North West) Limited","Paul Butler Associates","NJL Consulting Limited","RPS Consulting Services Ltd","RPS Consulting Services Ltd","Lovell Partnerships Ltd","Seddon Construction Ltd","J Greenwood (Builders) Ltd","John Southworth Builders Ltd","J Greenwood (Builders) Ltd",null,"PLP Construction Ltd","PLP Construction Ltd"]
["Identity Consult","Faithful & Gould","Edge Property Solutions","Faithful & Gould","Elluc Projects","Ridge and Partners LLP","Waldeck Associates Limited","Waldeck Associates Limited","DK Architects","GWP Architecture Ltd","Michael Hyde and Associated Ltd","Langtry-Langton Architects","Waldeck Associates Limited","Wilkinson Cowan Partnership","RPS Consulting Services Ltd","RPS Consulting Services Ltd","Rider Levett Bucknall UK Ltd","Thornton Firkin & Partners","Satplan Ltd","Savills UK Limited - Lot 8","RSK Environment Ltd","RSK Environment Ltd","Mears Limited","Termrim Construction Ltd","John Southworth Builders Ltd","Karmo Ltd","John Southworth Builders Ltd",null,"Termrim Construction Ltd","Termrim Construction Ltd"]
["Markhams Ltd","Identity Consult","Faithful & Gould","Markhams Ltd","Pell Frischmann Consultants","Shape Consulting Engineers","Wilkinson Cowan Partnership","Wilkinson Cowan Partnership","GWP Architecture Ltd","John McCall Architects","Paddock Johnson Partnership","Michael Dyson Associates Limited","Whiteley Eaves Ltd",null,"Simon Fenton Partnership","Thornton Firkin & Partners","RJD Associates (North West) Limited","Urbn Design & Consult Ltd",null,"Spawforths","Sutcliffe","Sutcliffe","Novus Property Solutions Limited","The Casey Group Ltd","Karmo Ltd","Lovell Partnerships Ltd","Karmo Ltd",null,"The Casey Group Ltd","The Casey Group Ltd"]
["Michael Dyson Associates Limited","Markhams Ltd","Markhams Ltd","Michael Dyson Associates Limited","Portland Consulting","Sutcliffe",null,null,"John McCall Architects","Langtry-Langton Architects","Ridge and Partners LLP","Michael Hyde and Associated Ltd","Wilkinson Cowan Partnership",null,"Thornton Firkin & Partners","Waldeck Associates Limited","Thornton Firkin & Partners","Vextrix",null,"WYG Engineering Limited","The LK Group","The LK Group","Rowlinson Construction Limited","United Living (North) Limited","Lovell Partnerships Ltd","M&Y Maintenance & Construction Ltd","Lovell Partnerships Ltd",null,"Wiggett Construction Ltd"]
["Poole Dick Associates","Michael Dyson Associates Limited","Michael Dyson Associates Limited","Rider Levett Bucknall UK Ltd","Ridge and Partners LLP",null,null,null,"Langtry-Langton Architects","Michael Hyde and Associated Ltd",null,"Paddock Johnson Partnership",null,null,"Waldeck Associates Limited","Whiteley Eaves Ltd","Urbn Design & Consult Ltd","Whiteley Eaves Ltd",null,null,null,null,"RP Tyson Construction Ltd","Vistry Partnerships North West","M&Y Maintenance & Construction Ltd","Mears Limited","M&Y Maintenance & Construction Ltd"]
["Rider Levett Bucknall UK Ltd","Poole Dick Associates","Rider Levett Bucknall UK Ltd","Ridge and Partners LLP","Shape Consulting Engineers",null,null,null,"Michael Hyde and Associated Ltd","MPSL Planning and Design",null,"Ridge and Partners LLP",null,null,"Whiteley Eaves Ltd","Wilkinson Cowan Partnership","Vextrix","Wilkinson Cowan Partnership",null,null,null,null,"Seddon Construction Ltd",null,"Mears Limited","Novus Property Solutions Limited","Mears Limited"]
["Ridge and Partners LLP","Rider Levett Bucknall UK Ltd","Ridge and Partners LLP","RJD Associates (North West) Limited","Sutcliffe",null,null,null,"MPSL Planning and Design","Paddock Johnson Partnership",null,null,null,null,"Wilkinson Cowan Partnership",null,"Whiteley Eaves Ltd","WYG Engineering Limited",null,null,null,null,"Termrim Construction Ltd",null,"Novus Property Solutions Limited","PLP Construction Ltd","PLP Construction Ltd"]
["Savills UK Limited - Lot1A","Ridge and Partners LLP","RJD Associates (North West) Limited","Simon Fenton Partnership",null,null,null,null,"Paddock Johnson Partnership","Pozzoni LLP",null,null,null,null,null,null,"Wilkinson Cowan Partnership",null,null,null,null,null,"The Casey Group Ltd",null,"PLP Construction Ltd","Rowlinson Construction Limited","Ring Stones Maintenance and Construction LLP"]
["SDA Consulting LLP","Savills UK Limited - Lot1A","Simon Fenton Partnership","Thornton Firkin & Partners",null,null,null,null,"Pozzoni LLP","Ridge and Partners LLP",null,null,null,null,null,null,"WYG Engineering Limited",null,null,null,null,null,"United Living (North) Limited",null,"Ring Stones Maintenance and Construction LLP","The Casey Group Ltd","Rowlinson Construction Limited"]
["Simon Fenton Partnership","Tozer Gallagher LLP","Thornton Firkin & Partners","Tozer Gallagher LLP",null,null,null,null,"Ridge and Partners LLP","Triangle Architects",null,null,null,null,null,null,null,null,null,null,null,null,"Vistry Partnerships North West",null,"Rowlinson Construction Limited","Whitfield & Brown (Developments) Ltd","RP Tyson Construction Ltd"]
["Tozer Gallagher LLP","Vextrix","Tozer Gallagher LLP","Whiteley Eaves Ltd",null,null,null,null,"TADW Architects","Walker Simpson Architects",null,null,null,null,null,null,null,null,null,null,null,null,"Whitfield & Brown (Developments) Ltd",null,"RP Tyson Construction Ltd","Wiggett Construction Ltd","The Casey Group Ltd"]
["Vextrix","Whiteley Eaves Ltd","Whiteley Eaves Ltd","Wilkinson Cowan Partnership",null,null,null,null,"Triangle Architects",null,null,null,null,null,null,null,null,null,null,null,null,null,null,null,"Termrim Construction Ltd"]
["Whiteley Eaves Ltd","Wilkinson Cowan Partnership","Wilkinson Cowan Partnership","WYG Engineering Limited",null,null,null,null,"Walker Simpson Architects",null,null,null,null,null,null,null,null,null,null,null,null,null,null,null,"The Casey Group Ltd"]
["Wilkinson Cowan Partnership",null,"WYG Engineering Limited",null,null,null," ",null,null,null,null,null,null,null,null,null,null,null,null,null,null,null,null,null,"Whitfield & Brown (Developments) Ltd"]
[null,null,null,null,null,null,null,null,null,null,null,null,null,null,null,null,null,null,null,null,null,null,null,null,"Wiggett Construction Ltd"]

{"sheet":"Main Contractor","index":8,"n_rows":38,"n_cols":12,"rows_kept":38,"cut":false,"hidden":false,"merged":[[25,2,34,4],[25,0,32,1]]}
[]
[{"$f":"'SVT Calculator'!C11","v":0}]
[{"$f":"'SVT Calculator'!C13","v":0}]
[{"$f":"'SVT Calculator'!C9","v":0}]
[{"$f":"'SVT Calculator'!C3","v":0},"Pledge Target","Pledge Value","Target Adjustment","Adjustment value","How will this be achieved? Specific Activities","Actions \n(Who is doing what / next steps)","How will this be evidenced? ","Start Date","End Date","Outcomes Running Total ","Progress / Updates"]
["Full time, 6 month roles",{"$f":"'SVT Calculator'!C14","v":0},{"$f":"'Social Value Proxies'!C11","v":0},null,{"$f":"D6*'Social Value Proxies'!Q11","v":0}]
["New jobs targeted for disadvantaged customers",{"$f":"'SVT Calculator'!C15","v":0},{"$f":"'Social Value Proxies'!C12","v":0},null,{"$f":"D7*'Social Value Proxies'!Q12","v":0}]
["Work placement weeks",{"$f":"'SVT Calculator'!C16","v":0},{"$f":"'Social Value Proxies'!C13","v":0},null,{"$f":"D8*'Social Value Proxies'!Q13","v":0}]
["% Spend with local suppliers",{"$f":"'SVT Calculator'!C17","v":0},{"$f":"'Social Value Proxies'!C14","v":0},null,{"$f":"(D9*'Social Value Proxies'!Q14*0.4)*A3","v":0}]
["% Spend with VCSE",{"$f":"'SVT Calculator'!C18","v":0},{"$f":"'Social Value Proxies'!C15","v":0},null,{"$f":"(D10*'Social Value Proxies'!Q15*0.4)*A3","v":0}]
["% Waste diverted from landfill.",{"$f":"'SVT Calculator'!C19","v":0},{"$f":"'Social Value Proxies'!C16","v":0},null,{"$f":"D11*'Social Value Proxies'!Q16","v":0}]
["Specialist advice hours for VCSE or SME",{"$f":"'SVT Calculator'!C20","v":0},{"$f":"'Social Value Proxies'!C17","v":0},null,{"$f":"D12*'Social Value Proxies'!Q17","v":0}]
["Specialist advice hours for Careers IAG",{"$f":"'SVT Calculator'!C21","v":0},{"$f":"'Social Value Proxies'!C18","v":0},null,{"$f":"D13*'Social Value Proxies'!Q18","v":0}]
["Carbon Literacy training provided",{"$f":"'SVT Calculator'!C22","v":0},{"$f":"'Social Value Proxies'!C19","v":0},null,{"$f":"D14*'Social Value Proxies'!Q19","v":0}]
["£100s for poverty initiatives",{"$f":"'SVT Calculator'!C23","v":0},{"$f":"'Social Value Proxies'!C20","v":0},null,{"$f":"D15*'Social Value Proxies'!Q20","v":0}]
["£100's towards Digital equipment",{"$f":"'SVT Calculator'!C24","v":0},{"$f":"'Social Value Proxies'!C21","v":0},null,{"$f":"D16*'Social Value Proxies'!Q21","v":0}]
["£100s towards community projects",{"$f":"'SVT Calculator'!C25","v":0},{"$f":"'Social Value Proxies'!C22","v":0},null,{"$f":"D17*'Social Value Proxies'!Q22","v":0}]
["Hours volunteered for community project",{"$f":"'SVT Calculator'!C26","v":0},{"$f":"'Social Value Proxies'!C23","v":0},null,{"$f":"D18*'Social Value Proxies'!Q23","v":0}]
["Hours for Homelessness projects ",{"$f":"'SVT Calculator'!C27","v":0},{"$f":"'Social Value Proxies'!C24","v":0},null,{"$f":"D19*'Social Value Proxies'!Q24","v":0}]
["Hours for Digital Inclusion",{"$f":"'SVT Calculator'!C28","v":0},{"$f":"'Social Value Proxies'!C25","v":0},null,{"$f":"D20*'Social Value Proxies'!Q25","v":0}]
["Hours to promote healthy living",{"$f":"'SVT Calculator'!C29","v":0},{"$f":"'Social Value Proxies'!C26","v":0},null,{"$f":"D21*'Social Value Proxies'!Q26","v":0}]
["Service Provider total",null,{"$f":"'Social Value Proxies'!C27","v":0},null,{"$f":"SUM(E6:E21)","v":0}]
["Social Return on Investment",null,{"$f":"'Social Value Proxies'!C31","v":""},null,{"$f":"E22/A3","v":{"$error":"#DIV/0!"}}]
[]
[]
["For advice on how social value targets could be allocated to have the most impact, plus get help with place based delivery, get in touch with CommunityInvestment@greatplaces.org.uk ",null,"They can help by:\n•Engaging the relevant internal stakeholders\n•Provide community insight and data\n•Foster links between partners and external stakeholders\n•Share knowledge on existing projects and partnerships\n•Signpost Great Places customers to opportunities\n•Assist with delivery of targets"]
[]
[]
[]
[]
[]
[]
[]
[]
["This calculator uses data from National Toms Framework, 2019 version. "]
["**National TOMS"]
["Attribution\nTitle: National TOMs 2019\nAuthor: Social Value Portal Ltd\nSource: socialvalueportal.com\nLicense: Creative Commons Attribution-NonCommercial-NoDerivatives 4.0 International License "]
["https://creativecommons.org/licenses/by-nc-nd/4.0/"]

{"sheet":"Consultant 1","index":9,"n_rows":36,"n_cols":12,"rows_kept":36,"cut":false,"hidden":false,"merged":[[21,0,23,1],[21,2,30,4]]}
[]
[{"$f":"'SVT Calculator'!D11","v":0},"Stage 1"]
[{"$f":"'SVT Calculator'!D13","v":0}]
[{"$f":"'SVT Calculator'!D9","v":0}]
[{"$f":"'SVT Calculator'!C3","v":0},"Pledge Target","Pledge Value","Target Adjustment","Adjustment value","How will this be achieved? Specific Activities or Projects","Actions \n(Who is doing what / next steps)","How will this be evidenced? ","Start Date","End Date","Outcomes Running Total ","Progress / Updates"]
["Work placement weeks",{"$f":"'SVT Calculator'!D16","v":0},{"$f":"'Social Value Proxies'!D13","v":0},null,{"$f":"D6*'Social Value Proxies'!Q13","v":0}]
["% Spend with VCSE",{"$f":"'SVT Calculator'!D18","v":0},{"$f":"'Social Value Proxies'!D15","v":0},null,{"$f":"(D7*'Social Value Proxies'!Q15*0.4)*A3","v":0}]
["Specialist advice hours for VCSE or SME",{"$f":"'SVT Calculator'!D20","v":0},{"$f":"'Social Value Proxies'!D17","v":0},null,{"$f":"D8*'Social Value Proxies'!Q17","v":0}]
["Specialist advice hours for Careers IAG",{"$f":"'SVT Calculator'!D21","v":0},{"$f":"'Social Value Proxies'!D18","v":0},null,{"$f":"D9*'Social Value Proxies'!Q18","v":0}]
["Carbon Literacy training provided",{"$f":"'SVT Calculator'!D22","v":0},{"$f":"'Social Value Proxies'!D19","v":0},null,{"$f":"D10*'Social Value Proxies'!Q19","v":0}]
["£100s for poverty initiatives",{"$f":"'SVT Calculator'!D23","v":0},{"$f":"'Social Value Proxies'!D20","v":0},null,{"$f":"D11*'Social Value Proxies'!Q20","v":0}]
["£100's towards Digital equipment",{"$f":"'SVT Calculator'!D24","v":0},{"$f":"'Social Value Proxies'!D21","v":0},null,{"$f":"D12*'Social Value Proxies'!Q21","v":0}]
["£100s towards community projects",{"$f":"'SVT Calculator'!D25","v":0},{"$f":"'Social Value Proxies'!D22","v":0},null,{"$f":"D13*'Social Value Proxies'!Q22","v":0}]
["Hours volunteered for community project",{"$f":"'SVT Calculator'!D26","v":0},{"$f":"'Social Value Proxies'!D23","v":0},null,{"$f":"D14*'Social Value Proxies'!Q23","v":0}]
["Hours for Homelessness projects ",{"$f":"'SVT Calculator'!D27","v":0},{"$f":"'Social Value Proxies'!D24","v":0},null,{"$f":"D15*'Social Value Proxies'!Q24","v":0}]
["Hours for Digital Inclusion",{"$f":"'SVT Calculator'!D28","v":0},{"$f":"'Social Value Proxies'!D25","v":0},null,{"$f":"D16*'Social Value Proxies'!Q25","v":0}]
["Hours to promote healthy living",{"$f":"'SVT Calculator'!D29","v":0},{"$f":"'Social Value Proxies'!D26","v":0},null,{"$f":"D17*'Social Value Proxies'!Q26","v":0}]
["Service Provider total",null,{"$f":"'Social Value Proxies'!D27","v":0},null,{"$f":"SUM(E6:E17)","v":0}]
["Social Return on Investment",null,{"$f":"'Social Value Proxies'!D31","v":""},null,{"$f":"E18/A3","v":{"$error":"#DIV/0!"}}]
[]
[]
["For advice on how social value targets could be allocated to have the most impact, plus get help with place based delivery, get in touch with CommunityInvestment@greatplaces.org.uk ",null,"They can help by:\n•Engaging the relevant internal stakeholders\n•Provide community insight and data\n•Foster links between partners and external stakeholders\n•Share knowledge on existing projects and partnerships\n•Signpost Great Places customers to opportunities\n•Assist with delivery of targets"]
[]
[]
[]
[]
[]
[]
[]
[]
[]
[]
["This calculator uses data from National Toms Framework, 2019 version. "]
["**National TOMS"]
["Attribution\nTitle: National TOMs 2019\nAuthor: Social Value Portal Ltd\nSource: socialvalueportal.com\nLicense: Creative Commons Attribution-NonCommercial-NoDerivatives 4.0 International License "]
["https://creativecommons.org/licenses/by-nc-nd/4.0/"]

{"sheet":"Consultant 2","index":10,"n_rows":36,"n_cols":12,"rows_kept":36,"cut":false,"hidden":false,"merged":[[0,6,3,7],[0,5,1,5],[21,2,30,4],[21,0,23,1]]}
[]
[{"$f":"'SVT Calculator'!E11","v":0}]
[{"$f":"'SVT Calculator'!E13","v":0}]
[{"$f":"'SVT Calculator'!E9","v":0}]
[{"$f":"'SVT Calculator'!C3","v":0},"Pledge Target","Pledge Value","Target Adjustment","Adjustment value","How will this be achieved? Specific Activities or Projects","Actions \n(Who is doing what / next steps)","How will this be evidenced? ","Start Date","End Date","Outcomes Running Total ","Progress / Updates"]
["Work placement weeks",{"$f":"'SVT Calculator'!E16","v":0},{"$f":"'Social Value Proxies'!E13","v":0},null,{"$f":"D6*'Social Value Proxies'!Q13","v":0}]
["% Spend with VCSE",{"$f":"'SVT Calculator'!E18","v":0},{"$f":"'Social Value Proxies'!E15","v":0},null,{"$f":"(D7*'Social Value Proxies'!Q15*0.4)*A3","v":0}]
["Specialist advice hours for VCSE or SME",{"$f":"'SVT Calculator'!E20","v":0},{"$f":"'Social Value Proxies'!E17","v":0},null,{"$f":"D8*'Social Value Proxies'!Q17","v":0}]
["Specialist advice hours for Careers IAG",{"$f":"'SVT Calculator'!E21","v":0},{"$f":"'Social Value Proxies'!E18","v":0},null,{"$f":"D9*'Social Value Proxies'!Q18","v":0}]
["Carbon Literacy training provided",{"$f":"'SVT Calculator'!E22","v":0},{"$f":"'Social Value Proxies'!E19","v":0},null,{"$f":"D10*'Social Value Proxies'!Q19","v":0}]
["£100s for poverty initiatives",{"$f":"'SVT Calculator'!E23","v":0},{"$f":"'Social Value Proxies'!E20","v":0},null,{"$f":"D11*'Social Value Proxies'!Q20","v":0}]
["£100's towards Digital equipment",{"$f":"'SVT Calculator'!E24","v":0},{"$f":"'Social Value Proxies'!E21","v":0},null,{"$f":"D12*'Social Value Proxies'!Q21","v":0}]
["£100s towards community projects",{"$f":"'SVT Calculator'!E25","v":0},{"$f":"'Social Value Proxies'!E22","v":0},null,{"$f":"D13*'Social Value Proxies'!Q22","v":0}]
["Hours volunteered for community project",{"$f":"'SVT Calculator'!E26","v":0},{"$f":"'Social Value Proxies'!E23","v":0},null,{"$f":"D14*'Social Value Proxies'!Q23","v":0}]
["Hours for Homelessness projects ",{"$f":"'SVT Calculator'!E27","v":0},{"$f":"'Social Value Proxies'!E24","v":0},null,{"$f":"D15*'Social Value Proxies'!Q24","v":0}]
["Hours for Digital Inclusion",{"$f":"'SVT Calculator'!E28","v":0},{"$f":"'Social Value Proxies'!E25","v":0},null,{"$f":"D16*'Social Value Proxies'!Q25","v":0}]
["Hours to promote healthy living",{"$f":"'SVT Calculator'!E29","v":0},{"$f":"'Social Value Proxies'!E26","v":0},null,{"$f":"D17*'Social Value Proxies'!Q26","v":0}]
["Service Provider total",null,{"$f":"'Social Value Proxies'!E27","v":0},null,{"$f":"SUM(E6:E17)","v":0}]
["Social Return on Investment",null,{"$f":"'Social Value Proxies'!E31","v":""},null,{"$f":"E18/A3","v":{"$error":"#DIV/0!"}}]
[]
[]
["For advice on how social value targets could be allocated to have the most impact, plus get help with place based delivery, get in touch with CommunityInvestment@greatplaces.org.uk ",null,"They can help by:\n•Engaging the relevant internal stakeholders\n•Provide community insight and data\n•Foster links between partners and external stakeholders\n•Share knowledge on existing projects and partnerships\n•Signpost Great Places customers to opportunities\n•Assist with delivery of targets"]
[]
[]
[]
[]
[]
[]
[]
[]
[]
[]
["This calculator uses data from National Toms Framework, 2019 version. "]
["**National TOMS"]
["Attribution\nTitle: National TOMs 2019\nAuthor: Social Value Portal Ltd\nSource: socialvalueportal.com\nLicense: Creative Commons Attribution-NonCommercial-NoDerivatives 4.0 International License "]
["https://creativecommons.org/licenses/by-nc-nd/4.0/"]

{"sheet":"Consultant 3","index":11,"n_rows":36,"n_cols":12,"rows_kept":36,"cut":false,"hidden":false,"merged":[[0,6,3,7],[0,5,1,5],[21,2,30,4],[21,0,23,1]]}
[]
[{"$f":"'SVT Calculator'!F11","v":0}]
[{"$f":"'SVT Calculator'!F13","v":0}]
[{"$f":"'SVT Calculator'!F9","v":0}]
[{"$f":"'SVT Calculator'!C3","v":0},"Pledge Target","Pledge Value","Target Adjustment","Adjustment value","How will this be achieved? Specific Activities or Projects","Actions \n(Who is doing what / next steps)","How will this be evidenced? ","Start Date","End Date","Outcomes Running Total ","Progress / Updates"]
["Work placement weeks",{"$f":"'SVT Calculator'!F16","v":0},{"$f":"'Social Value Proxies'!F13","v":0},null,{"$f":"D6*'Social Value Proxies'!Q13","v":0}]
["% Spend with VCSE",{"$f":"'SVT Calculator'!F18","v":0},{"$f":"'Social Value Proxies'!F15","v":0},null,{"$f":"(D7*'Social Value Proxies'!Q15*0.4)*A3","v":0}]
["Specialist advice hours for VCSE or SME",{"$f":"'SVT Calculator'!F20","v":0},{"$f":"'Social Value Proxies'!F17","v":0},null,{"$f":"D8*'Social Value Proxies'!Q17","v":0}]
["Specialist advice hours for Careers IAG",{"$f":"'SVT Calculator'!F21","v":0},{"$f":"'Social Value Proxies'!F18","v":0},null,{"$f":"D9*'Social Value Proxies'!Q18","v":0}]
["Carbon Literacy training provided",{"$f":"'SVT Calculator'!F22","v":0},{"$f":"'Social Value Proxies'!F19","v":0},null,{"$f":"D10*'Social Value Proxies'!Q19","v":0}]
["£100s for poverty initiatives",{"$f":"'SVT Calculator'!F23","v":0},{"$f":"'Social Value Proxies'!F20","v":0},null,{"$f":"D11*'Social Value Proxies'!Q20","v":0}]
["£100's towards Digital equipment",{"$f":"'SVT Calculator'!F24","v":0},{"$f":"'Social Value Proxies'!F21","v":0},null,{"$f":"D12*'Social Value Proxies'!Q21","v":0}]
["£100s towards community projects",{"$f":"'SVT Calculator'!F25","v":0},{"$f":"'Social Value Proxies'!F22","v":0},null,{"$f":"D13*'Social Value Proxies'!Q22","v":0}]
["Hours volunteered for community project",{"$f":"'SVT Calculator'!F26","v":0},{"$f":"'Social Value Proxies'!F23","v":0},null,{"$f":"D14*'Social Value Proxies'!Q23","v":0}]
["Hours for Homelessness projects ",{"$f":"'SVT Calculator'!F27","v":0},{"$f":"'Social Value Proxies'!F24","v":0},null,{"$f":"D15*'Social Value Proxies'!Q24","v":0}]
["Hours for Digital Inclusion",{"$f":"'SVT Calculator'!F28","v":0},{"$f":"'Social Value Proxies'!F25","v":0},null,{"$f":"D16*'Social Value Proxies'!Q25","v":0}]
["Hours to promote healthy living",{"$f":"'SVT Calculator'!F29","v":0},{"$f":"'Social Value Proxies'!F26","v":0},null,{"$f":"D17*'Social Value Proxies'!Q26","v":0}]
["Service Provider total",null,{"$f":"'Social Value Proxies'!F27","v":0},null,{"$f":"SUM(E6:E17)","v":0}]
["Social Return on Investment",null,{"$f":"'Social Value Proxies'!F31","v":""},null,{"$f":"E18/A3","v":{"$error":"#DIV/0!"}}]
[]
[]
["For advice on how social value targets could be allocated to have the most impact, plus get help with place based delivery, get in touch with CommunityInvestment@greatplaces.org.uk ",null,"They can help by:\n•Engaging the relevant internal stakeholders\n•Provide community insight and data\n•Foster links between partners and external stakeholders\n•Share knowledge on existing projects and partnerships\n•Signpost Great Places customers to opportunities\n•Assist with delivery of targets"]
[]
[]
[]
[]
[]
[]
[]
[]
[]
[]
["This calculator uses data from National Toms Framework, 2019 version. "]
["**National TOMS"]
["Attribution\nTitle: National TOMs 2019\nAuthor: Social Value Portal Ltd\nSource: socialvalueportal.com\nLicense: Creative Commons Attribution-NonCommercial-NoDerivatives 4.0 International License "]
["https://creativecommons.org/licenses/by-nc-nd/4.0/"]

{"sheet":"Consultant 4","index":12,"n_rows":36,"n_cols":12,"rows_kept":36,"cut":false,"hidden":false,"merged":[[0,6,3,7],[0,5,1,5],[21,2,30,4],[21,0,23,1]]}
[]
[{"$f":"'SVT Calculator'!G11","v":0}]
[{"$f":"'SVT Calculator'!G13","v":0}]
[{"$f":"'SVT Calculator'!G9","v":0}]
[{"$f":"'SVT Calculator'!C3","v":0},"Pledge Target","Pledge Value","Target Adjustment","Adjustment value","How will this be achieved? Specific Activities or Projects","Actions \n(Who is doing what / next steps)","How will this be evidenced? ","Start Date","End Date","Outcomes Running Total ","Progress / Updates"]
["Work placement weeks",{"$f":"'SVT Calculator'!G16","v":0},{"$f":"'Social Value Proxies'!G13","v":0},null,{"$f":"D6*'Social Value Proxies'!Q13","v":0}]
["% Spend with VCSE",{"$f":"'SVT Calculator'!G18","v":0},{"$f":"'Social Value Proxies'!G15","v":0},null,{"$f":"(D7*'Social Value Proxies'!Q15*0.4)*A3","v":0}]
["Specialist advice hours for VCSE or SME",{"$f":"'SVT Calculator'!G20","v":0},{"$f":"'Social Value Proxies'!G17","v":0},null,{"$f":"D8*'Social Value Proxies'!Q17","v":0}]
["Specialist advice hours for Careers IAG",{"$f":"'SVT Calculator'!G21","v":0},{"$f":"'Social Value Proxies'!G18","v":0},null,{"$f":"D9*'Social Value Proxies'!Q18","v":0}]
["Carbon Literacy training provided",{"$f":"'SVT Calculator'!G22","v":0},{"$f":"'Social Value Proxies'!G19","v":0},null,{"$f":"D10*'Social Value Proxies'!Q19","v":0}]
["£100s for poverty initiatives",{"$f":"'SVT Calculator'!G23","v":0},{"$f":"'Social Value Proxies'!G20","v":0},null,{"$f":"D11*'Social Value Proxies'!Q20","v":0}]
["£100's towards Digital equipment",{"$f":"'SVT Calculator'!G24","v":0},{"$f":"'Social Value Proxies'!G21","v":0},null,{"$f":"D12*'Social Value Proxies'!Q21","v":0}]
["£100s towards community projects",{"$f":"'SVT Calculator'!G25","v":0},{"$f":"'Social Value Proxies'!G22","v":0},null,{"$f":"D13*'Social Value Proxies'!Q22","v":0}]
["Hours volunteered for community project",{"$f":"'SVT Calculator'!G26","v":0},{"$f":"'Social Value Proxies'!G23","v":0},null,{"$f":"D14*'Social Value Proxies'!Q23","v":0}]
["Hours for Homelessness projects ",{"$f":"'SVT Calculator'!G27","v":0},{"$f":"'Social Value Proxies'!G24","v":0},null,{"$f":"D15*'Social Value Proxies'!Q24","v":0}]
["Hours for Digital Inclusion",{"$f":"'SVT Calculator'!G28","v":0},{"$f":"'Social Value Proxies'!G25","v":0},null,{"$f":"D16*'Social Value Proxies'!Q25","v":0}]
["Hours to promote healthy living",{"$f":"'SVT Calculator'!G29","v":0},{"$f":"'Social Value Proxies'!G26","v":0},null,{"$f":"D17*'Social Value Proxies'!Q26","v":0}]
["Service Provider total",null,{"$f":"'Social Value Proxies'!G27","v":0},null,{"$f":"SUM(E6:E17)","v":0}]
["Social Return on Investment",{"$f":"'SVT Calculator'!G34","v":""},{"$f":"'Social Value Proxies'!G31","v":""},null,{"$f":"E18/A3","v":{"$error":"#DIV/0!"}}]
[]
[]
["For advice on how social value targets could be allocated to have the most impact, plus get help with place based delivery, get in touch with CommunityInvestment@greatplaces.org.uk ",null,"They can help by:\n•Engaging the relevant internal stakeholders\n•Provide community insight and data\n•Foster links between partners and external stakeholders\n•Share knowledge on existing projects and partnerships\n•Signpost Great Places customers to opportunities\n•Assist with delivery of targets"]
[]
[]
[]
[]
[]
[]
[]
[]
[]
[]
["This calculator uses data from National Toms Framework, 2019 version. "]
["**National TOMS"]
["Attribution\nTitle: National TOMs 2019\nAuthor: Social Value Portal Ltd\nSource: socialvalueportal.com\nLicense: Creative Commons Attribution-NonCommercial-NoDerivatives 4.0 International License "]
["https://creativecommons.org/licenses/by-nc-nd/4.0/"]

{"sheet":"Consultant 5","index":13,"n_rows":36,"n_cols":12,"rows_kept":36,"cut":false,"hidden":false,"merged":[[0,6,3,7],[0,5,1,5],[21,2,30,4],[21,0,23,1]]}
[]
[{"$f":"'SVT Calculator'!H11","v":0}]
[{"$f":"'SVT Calculator'!H13","v":0}]
[{"$f":"'SVT Calculator'!H9","v":0}]
[{"$f":"'SVT Calculator'!C3","v":0},"Pledge Target","Pledge Value","Target Adjustment","Adjustment value","How will this be achieved? Specific Activities or Projects","Actions \n(Who is doing what / next steps)","How will this be evidenced? ","Start Date","End Date","Outcomes Running Total ","Progress / Updates"]
["Work placement weeks",{"$f":"'SVT Calculator'!H16","v":0},{"$f":"'Social Value Proxies'!H13","v":0},null,{"$f":"D6*'Social Value Proxies'!Q13","v":0}]
["% Spend with VCSE",{"$f":"'SVT Calculator'!H18","v":0},{"$f":"'Social Value Proxies'!H15","v":0},null,{"$f":"(D7*'Social Value Proxies'!Q15*0.4)*A3","v":0}]
["Specialist advice hours for VCSE or SME",{"$f":"'SVT Calculator'!H20","v":0},{"$f":"'Social Value Proxies'!H17","v":0},null,{"$f":"D8*'Social Value Proxies'!Q17","v":0}]
["Specialist advice hours for Careers IAG",{"$f":"'SVT Calculator'!H21","v":0},{"$f":"'Social Value Proxies'!H18","v":0},null,{"$f":"D9*'Social Value Proxies'!Q18","v":0}]
["Carbon Literacy training provided",{"$f":"'SVT Calculator'!H22","v":0},{"$f":"'Social Value Proxies'!H19","v":0},null,{"$f":"D10*'Social Value Proxies'!Q19","v":0}]
["£100s for poverty initiatives",{"$f":"'SVT Calculator'!H23","v":0},{"$f":"'Social Value Proxies'!H20","v":0},null,{"$f":"D11*'Social Value Proxies'!Q20","v":0}]
["£100's towards Digital equipment",{"$f":"'SVT Calculator'!H24","v":0},{"$f":"'Social Value Proxies'!H21","v":0},null,{"$f":"D12*'Social Value Proxies'!Q21","v":0}]
["£100s towards community projects",{"$f":"'SVT Calculator'!H25","v":0},{"$f":"'Social Value Proxies'!H22","v":0},null,{"$f":"D13*'Social Value Proxies'!Q22","v":0}]
["Hours volunteered for community project",{"$f":"'SVT Calculator'!H26","v":0},{"$f":"'Social Value Proxies'!H23","v":0},null,{"$f":"D14*'Social Value Proxies'!Q23","v":0}]
["Hours for Homelessness projects ",{"$f":"'SVT Calculator'!H27","v":0},{"$f":"'Social Value Proxies'!H24","v":0},null,{"$f":"D15*'Social Value Proxies'!Q24","v":0}]
["Hours for Digital Inclusion",{"$f":"'SVT Calculator'!H28","v":0},{"$f":"'Social Value Proxies'!H25","v":0},null,{"$f":"D16*'Social Value Proxies'!Q25","v":0}]
["Hours to promote healthy living",{"$f":"'SVT Calculator'!H29","v":0},{"$f":"'Social Value Proxies'!H26","v":0},null,{"$f":"D17*'Social Value Proxies'!Q26","v":0}]
["Service Provider total",null,{"$f":"'Social Value Proxies'!H27","v":0},null,{"$f":"SUM(E6:E17)","v":0}]
["Social Return on Investment",{"$f":"'SVT Calculator'!H34","v":""},{"$f":"'Social Value Proxies'!H31","v":""},null,{"$f":"E18/A3","v":{"$error":"#DIV/0!"}}]
[]
[]
["For advice on how social value targets could be allocated to have the most impact, plus get help with place based delivery, get in touch with CommunityInvestment@greatplaces.org.uk ",null,"They can help by:\n•Engaging the relevant internal stakeholders\n•Provide community insight and data\n•Foster links between partners and external stakeholders\n•Share knowledge on existing projects and partnerships\n•Signpost Great Places customers to opportunities\n•Assist with delivery of targets"]
[]
[]
[]
[]
[]
[]
[]
[]
[]
[]
["This calculator uses data from National Toms Framework, 2019 version. "]
["**National TOMS"]
["Attribution\nTitle: National TOMs 2019\nAuthor: Social Value Portal Ltd\nSource: socialvalueportal.com\nLicense: Creative Commons Attribution-NonCommercial-NoDerivatives 4.0 International License "]
["https://creativecommons.org/licenses/by-nc-nd/4.0/"]

{"sheet":"C8 - C9 (1)","index":14,"n_rows":36,"n_cols":12,"rows_kept":36,"cut":false,"hidden":false,"merged":[[0,6,3,7],[0,5,1,5],[21,2,30,4],[21,0,23,1]]}
[]
[{"$f":"'SVT Calculator'!I11","v":0}]
[{"$f":"'SVT Calculator'!I13","v":0}]
[{"$f":"'SVT Calculator'!I9","v":0}]
[{"$f":"'SVT Calculator'!C3","v":0},"Pledge Target","Pledge Value","Target Adjustment","Adjustment value","How will this be achieved? Specific Activities or Projects","Actions \n(Who is doing what / next steps)","How will this be evidenced? ","Start Date","End Date","Outcomes Running Total ","Progress / Updates"]
["Work placement weeks",{"$f":"'SVT Calculator'!I16","v":0},{"$f":"'Social Value Proxies'!I13","v":0},null,{"$f":"D6*'Social Value Proxies'!Q13","v":0}]
["% Spend with VCSE",{"$f":"'SVT Calculator'!I18","v":0},{"$f":"'Social Value Proxies'!I15","v":0},null,{"$f":"(D7*'Social Value Proxies'!Q15*0.4)*A3","v":0}]
["Specialist advice hours for VCSE or SME",{"$f":"'SVT Calculator'!I20","v":0},{"$f":"'Social Value Proxies'!I17","v":0},null,{"$f":"D8*'Social Value Proxies'!Q17","v":0}]
["Specialist advice hours for Careers IAG",{"$f":"'SVT Calculator'!I21","v":0},{"$f":"'Social Value Proxies'!I18","v":0},null,{"$f":"D9*'Social Value Proxies'!Q18","v":0}]
["Carbon Literacy training provided",{"$f":"'SVT Calculator'!I22","v":0},{"$f":"'Social Value Proxies'!I19","v":0},null,{"$f":"D10*'Social Value Proxies'!Q19","v":0}]
["£100s for poverty initiatives",{"$f":"'SVT Calculator'!I23","v":0},{"$f":"'Social Value Proxies'!I20","v":0},null,{"$f":"D11*'Social Value Proxies'!Q20","v":0}]
["£100's towards Digital equipment",{"$f":"'SVT Calculator'!I24","v":0},{"$f":"'Social Value Proxies'!I21","v":0},null,{"$f":"D12*'Social Value Proxies'!Q21","v":0}]
["£100s towards community projects",{"$f":"'SVT Calculator'!I25","v":0},{"$f":"'Social Value Proxies'!I22","v":0},null,{"$f":"D13*'Social Value Proxies'!Q22","v":0}]
["Hours volunteered for community project",{"$f":"'SVT Calculator'!I26","v":0},{"$f":"'Social Value Proxies'!I23","v":0},null,{"$f":"D14*'Social Value Proxies'!Q23","v":0}]
["Hours for Homelessness projects ",{"$f":"'SVT Calculator'!I27","v":0},{"$f":"'Social Value Proxies'!I24","v":0},null,{"$f":"D15*'Social Value Proxies'!Q24","v":0}]
["Hours for Digital Inclusion",{"$f":"'SVT Calculator'!I28","v":0},{"$f":"'Social Value Proxies'!I25","v":0},null,{"$f":"D16*'Social Value Proxies'!Q25","v":0}]
["Hours to promote healthy living",{"$f":"'SVT Calculator'!I29","v":0},{"$f":"'Social Value Proxies'!I26","v":0},null,{"$f":"D17*'Social Value Proxies'!Q26","v":0}]
["Service Provider total",null,{"$f":"'Social Value Proxies'!I27","v":0},null,{"$f":"SUM(E6:E17)","v":0}]
["Social Return on Investment",null,{"$f":"'Social Value Proxies'!I31","v":""},null,{"$f":"E18/A3","v":{"$error":"#DIV/0!"}}]
[]
[]
["For advice on how social value targets could be allocated to have the most impact, plus get help with place based delivery, get in touch with CommunityInvestment@greatplaces.org.uk ",null,"They can help by:\n•Engaging the relevant internal stakeholders\n•Provide community insight and data\n•Foster links between partners and external stakeholders\n•Share knowledge on existing projects and partnerships\n•Signpost Great Places customers to opportunities\n•Assist with delivery of targets"]
[]
[]
[]
[]
[]
[]
[]
[]
[]
[]
["This calculator uses data from National Toms Framework, 2019 version. "]
["**National TOMS"]
["Attribution\nTitle: National TOMs 2019\nAuthor: Social Value Portal Ltd\nSource: socialvalueportal.com\nLicense: Creative Commons Attribution-NonCommercial-NoDerivatives 4.0 International License "]
["https://creativecommons.org/licenses/by-nc-nd/4.0/"]

{"sheet":"C8 - C9 (2)","index":15,"n_rows":36,"n_cols":12,"rows_kept":36,"cut":false,"hidden":false,"merged":[[0,6,3,7],[0,5,1,5],[21,2,30,4],[21,0,23,1]]}
[]
[{"$f":"'SVT Calculator'!J11","v":0}]
[{"$f":"'SVT Calculator'!I13","v":0}]
[{"$f":"'SVT Calculator'!I9","v":0}]
[{"$f":"'SVT Calculator'!C3","v":0},"Pledge Target","Pledge Value","Target Adjustment","Adjustment value","How will this be achieved? Specific Activities or Projects","Actions \n(Who is doing what / next steps)","How will this be evidenced? ","Start Date","End Date","Outcomes Running Total ","Progress / Updates"]
["Work placement weeks",{"$f":"'SVT Calculator'!I16","v":0},{"$f":"'Social Value Proxies'!I13","v":0},null,{"$f":"D6*'Social Value Proxies'!Q13","v":0}]
["% Spend with VCSE",{"$f":"'SVT Calculator'!I18","v":0},{"$f":"'Social Value Proxies'!I15","v":0},null,{"$f":"(D7*'Social Value Proxies'!Q15*0.4)*A3","v":0}]
["Specialist advice hours for VCSE or SME",{"$f":"'SVT Calculator'!I20","v":0},{"$f":"'Social Value Proxies'!I17","v":0},null,{"$f":"D8*'Social Value Proxies'!Q17","v":0}]
["Specialist advice hours for Careers IAG",{"$f":"'SVT Calculator'!I21","v":0},{"$f":"'Social Value Proxies'!I18","v":0},null,{"$f":"D9*'Social Value Proxies'!Q18","v":0}]
["Carbon Literacy training provided",{"$f":"'SVT Calculator'!I22","v":0},{"$f":"'Social Value Proxies'!I19","v":0},null,{"$f":"D10*'Social Value Proxies'!Q19","v":0}]
["£100s for poverty initiatives",{"$f":"'SVT Calculator'!I23","v":0},{"$f":"'Social Value Proxies'!I20","v":0},null,{"$f":"D11*'Social Value Proxies'!Q20","v":0}]
["£100's towards Digital equipment",{"$f":"'SVT Calculator'!I24","v":0},{"$f":"'Social Value Proxies'!I21","v":0},null,{"$f":"D12*'Social Value Proxies'!Q21","v":0}]
["£100s towards community projects",{"$f":"'SVT Calculator'!I25","v":0},{"$f":"'Social Value Proxies'!I22","v":0},null,{"$f":"D13*'Social Value Proxies'!Q22","v":0}]
["Hours volunteered for community project",{"$f":"'SVT Calculator'!I26","v":0},{"$f":"'Social Value Proxies'!I23","v":0},null,{"$f":"D14*'Social Value Proxies'!Q23","v":0}]
["Hours for Homelessness projects ",{"$f":"'SVT Calculator'!I27","v":0},{"$f":"'Social Value Proxies'!I24","v":0},null,{"$f":"D15*'Social Value Proxies'!Q24","v":0}]
["Hours for Digital Inclusion",{"$f":"'SVT Calculator'!I28","v":0},{"$f":"'Social Value Proxies'!I25","v":0},null,{"$f":"D16*'Social Value Proxies'!Q25","v":0}]
["Hours to promote healthy living",{"$f":"'SVT Calculator'!I29","v":0},{"$f":"'Social Value Proxies'!I26","v":0},null,{"$f":"D17*'Social Value Proxies'!Q26","v":0}]
["Service Provider total",null,{"$f":"'Social Value Proxies'!I27","v":0},null,{"$f":"SUM(E6:E17)","v":0}]
["Social Return on Investment",null,{"$f":"'Social Value Proxies'!I31","v":""},null,{"$f":"E18/A3","v":{"$error":"#DIV/0!"}}]
[]
[]
["For advice on how social value targets could be allocated to have the most impact, plus get help with place based delivery, get in touch with CommunityInvestment@greatplaces.org.uk ",null,"They can help by:\n•Engaging the relevant internal stakeholders\n•Provide community insight and data\n•Foster links between partners and external stakeholders\n•Share knowledge on existing projects and partnerships\n•Signpost Great Places customers to opportunities\n•Assist with delivery of targets"]
[]
[]
[]
[]
[]
[]
[]
[]
[]
[]
["This calculator uses data from National Toms Framework, 2019 version. "]
["**National TOMS"]
["Attribution\nTitle: National TOMs 2019\nAuthor: Social Value Portal Ltd\nSource: socialvalueportal.com\nLicense: Creative Commons Attribution-NonCommercial-NoDerivatives 4.0 International License "]
["https://creativecommons.org/licenses/by-nc-nd/4.0/"]

{"sheet":"Day Rates (1)","index":16,"n_rows":36,"n_cols":12,"rows_kept":36,"cut":false,"hidden":false,"merged":[[0,6,3,7],[0,5,1,5],[21,2,30,4],[21,0,23,1]]}
[]
[{"$f":"'SVT Calculator'!K11","v":0}]
[{"$f":"'SVT Calculator'!K13","v":0}]
[{"$f":"'SVT Calculator'!K9","v":0}]
[{"$f":"'SVT Calculator'!C3","v":0},"Pledge Target","Pledge Value","Target Adjustment","Adjustment value","How will this be achieved? Specific Activities or Projects","Actions \n(Who is doing what / next steps)","How will this be evidenced? ","Start Date","End Date","Outcomes Running Total ","Progress / Updates"]
["Work placement weeks",{"$f":"'SVT Calculator'!K16","v":0},{"$f":"'Social Value Proxies'!K13","v":0},null,{"$f":"D6*'Social Value Proxies'!Q13","v":0}]
["% Spend with VCSE",{"$f":"'SVT Calculator'!K17","v":0},{"$f":"'Social Value Proxies'!K14","v":0},null,{"$f":"(D7*'Social Value Proxies'!Q15*0.4)*A3","v":0}]
["Specialist advice hours for VCSE or SME",{"$f":"'SVT Calculator'!K18","v":0},{"$f":"'Social Value Proxies'!K15","v":0},null,{"$f":"D8*'Social Value Proxies'!Q17","v":0}]
["Specialist advice hours for Careers IAG",{"$f":"'SVT Calculator'!K19","v":0},{"$f":"'Social Value Proxies'!K16","v":0},null,{"$f":"D9*'Social Value Proxies'!Q18","v":0}]
["Carbon Literacy training provided",{"$f":"'SVT Calculator'!K20","v":0},{"$f":"'Social Value Proxies'!K17","v":0},null,{"$f":"D10*'Social Value Proxies'!Q19","v":0}]
["£100s for poverty initiatives",{"$f":"'SVT Calculator'!K21","v":0},{"$f":"'Social Value Proxies'!K18","v":0},null,{"$f":"D11*'Social Value Proxies'!Q20","v":0}]
["£100's towards Digital equipment",{"$f":"'SVT Calculator'!K22","v":0},{"$f":"'Social Value Proxies'!K19","v":0},null,{"$f":"D12*'Social Value Proxies'!Q21","v":0}]
["£100s towards community projects",{"$f":"'SVT Calculator'!K23","v":0},{"$f":"'Social Value Proxies'!K20","v":0},null,{"$f":"D13*'Social Value Proxies'!Q22","v":0}]
["Hours volunteered for community project",{"$f":"'SVT Calculator'!K24","v":0},{"$f":"'Social Value Proxies'!K21","v":0},null,{"$f":"D14*'Social Value Proxies'!Q23","v":0}]
["Hours for Homelessness projects ",{"$f":"'SVT Calculator'!K25","v":0},{"$f":"'Social Value Proxies'!K22","v":0},null,{"$f":"D15*'Social Value Proxies'!Q24","v":0}]
["Hours for Digital Inclusion",{"$f":"'SVT Calculator'!K26","v":0},{"$f":"'Social Value Proxies'!K23","v":0},null,{"$f":"D16*'Social Value Proxies'!Q25","v":0}]
["Hours to promote healthy living",{"$f":"'SVT Calculator'!K27","v":0},{"$f":"'Social Value Proxies'!K24","v":0},null,{"$f":"D17*'Social Value Proxies'!Q26","v":0}]
["Service Provider total",null,{"$f":"SUM(C6:C17)","v":0},null,{"$f":"SUM(E6:E17)","v":0}]
["Social Return on Investment",null,{"$f":"'Social Value Proxies'!I31","v":""},null,{"$f":"E18/A3","v":{"$error":"#DIV/0!"}}]
[]
[]
["For advice on how social value targets could be allocated to have the most impact, plus get help with place based delivery, get in touch with CommunityInvestment@greatplaces.org.uk ",null,"They can help by:\n•Engaging the relevant internal stakeholders\n•Provide community insight and data\n•Foster links between partners and external stakeholders\n•Share knowledge on existing projects and partnerships\n•Signpost Great Places customers to opportunities\n•Assist with delivery of targets"]
[]
[]
[]
[]
[]
[]
[]
[]
[]
[]
["This calculator uses data from National Toms Framework, 2019 version. "]
["**National TOMS"]
["Attribution\nTitle: National TOMs 2019\nAuthor: Social Value Portal Ltd\nSource: socialvalueportal.com\nLicense: Creative Commons Attribution-NonCommercial-NoDerivatives 4.0 International License "]
["https://creativecommons.org/licenses/by-nc-nd/4.0/"]

{"sheet":"Day Rates (2)","index":17,"n_rows":36,"n_cols":12,"rows_kept":36,"cut":false,"hidden":false,"merged":[[0,6,3,7],[0,5,1,5],[21,2,30,4],[21,0,23,1]]}
[]
[{"$f":"'SVT Calculator'!L11","v":0}]
[{"$f":"'SVT Calculator'!L13","v":0}]
[{"$f":"'SVT Calculator'!L9","v":0}]
[{"$f":"'SVT Calculator'!C3","v":0},"Pledge Target","Pledge Value","Target Adjustment","Adjustment value","How will this be achieved? Specific Activities or Projects","Actions \n(Who is doing what / next steps)","How will this be evidenced? ","Start Date","End Date","Outcomes Running Total ","Progress / Updates"]
["Work placement weeks",{"$f":"'SVT Calculator'!L16","v":0},{"$f":"'Social Value Proxies'!L13","v":0},null,{"$f":"D6*'Social Value Proxies'!Q13","v":0}]
["% Spend with VCSE",{"$f":"'SVT Calculator'!L17","v":0},{"$f":"'Social Value Proxies'!L14","v":0},null,{"$f":"(D7*'Social Value Proxies'!Q15*0.4)*A3","v":0}]
["Specialist advice hours for VCSE or SME",{"$f":"'SVT Calculator'!L18","v":0},{"$f":"'Social Value Proxies'!L15","v":0},null,{"$f":"D8*'Social Value Proxies'!Q17","v":0}]
["Specialist advice hours for Careers IAG",{"$f":"'SVT Calculator'!L19","v":0},{"$f":"'Social Value Proxies'!L16","v":0},null,{"$f":"D9*'Social Value Proxies'!Q18","v":0}]
["Carbon Literacy training provided",{"$f":"'SVT Calculator'!L20","v":0},{"$f":"'Social Value Proxies'!L17","v":0},null,{"$f":"D10*'Social Value Proxies'!Q19","v":0}]
["£100s for poverty initiatives",{"$f":"'SVT Calculator'!L21","v":0},{"$f":"'Social Value Proxies'!L18","v":0},null,{"$f":"D11*'Social Value Proxies'!Q20","v":0}]
["£100's towards Digital equipment",{"$f":"'SVT Calculator'!L22","v":0},{"$f":"'Social Value Proxies'!L19","v":0},null,{"$f":"D12*'Social Value Proxies'!Q21","v":0}]
["£100s towards community projects",{"$f":"'SVT Calculator'!L23","v":0},{"$f":"'Social Value Proxies'!L20","v":0},null,{"$f":"D13*'Social Value Proxies'!Q22","v":0}]
["Hours volunteered for community project",{"$f":"'SVT Calculator'!L24","v":0},{"$f":"'Social Value Proxies'!L21","v":0},null,{"$f":"D14*'Social Value Proxies'!Q23","v":0}]
["Hours for Homelessness projects ",{"$f":"'SVT Calculator'!L25","v":0},{"$f":"'Social Value Proxies'!L22","v":0},null,{"$f":"D15*'Social Value Proxies'!Q24","v":0}]
["Hours for Digital Inclusion",{"$f":"'SVT Calculator'!L26","v":0},{"$f":"'Social Value Proxies'!L23","v":0},null,{"$f":"D16*'Social Value Proxies'!Q25","v":0}]
["Hours to promote healthy living",{"$f":"'SVT Calculator'!L27","v":0},{"$f":"'Social Value Proxies'!L24","v":0},null,{"$f":"D17*'Social Value Proxies'!Q26","v":0}]
["Service Provider total",null,{"$f":"SUM(C6:C17)","v":0},null,{"$f":"SUM(E6:E17)","v":0}]
["Social Return on Investment",null,{"$f":"'Social Value Proxies'!I31","v":""},null,{"$f":"E18/A3","v":{"$error":"#DIV/0!"}}]
[]
[]
["For advice on how social value targets could be allocated to have the most impact, plus get help with place based delivery, get in touch with CommunityInvestment@greatplaces.org.uk ",null,"They can help by:\n•Engaging the relevant internal stakeholders\n•Provide community insight and data\n•Foster links between partners and external stakeholders\n•Share knowledge on existing projects and partnerships\n•Signpost Great Places customers to opportunities\n•Assist with delivery of targets"]
[]
[]
[]
[]
[]
[]
[]
[]
[]
[]
["This calculator uses data from National Toms Framework, 2019 version. "]
["**National TOMS"]
["Attribution\nTitle: National TOMs 2019\nAuthor: Social Value Portal Ltd\nSource: socialvalueportal.com\nLicense: Creative Commons Attribution-NonCommercial-NoDerivatives 4.0 International License "]
["https://creativecommons.org/licenses/by-nc-nd/4.0/"]

{"sheet":"Pricing Schedules","index":18,"n_rows":235,"n_cols":164,"rows_kept":235,"cut":false,"hidden":false,"merged":[[1,1,1,2],[6,1,6,5],[8,1,9,1],[8,2,8,4],[8,5,8,7],[8,8,8,10],[8,11,8,13],[8,50,8,52],[8,53,8,55],[8,56,8,58],[8,38,8,40],[8,41,8,43],[8,44,8,46],[8,47,8,49],[15,1,15,5],[17,2,17,4],[17,5,17,7],[17,8,17,10],[17,11,17,13],[17,14,17,16],[17,17,17,19],[8,32,8,34],[8,35,8,37],[8,14,8,16],[8,17,8,19],[8,20,8,22],[8,23,8,25],[8,26,8,28],[8,29,8,31],[17,47,17,49],[17,50,17,52],[17,53,17,55],[17,20,17,22],[17,23,17,25],[17,26,17,28],[17,29,17,31],[17,32,17,34],[17,35,17,37],[24,1,24,9],[26,2,26,4],[26,5,26,7],[26,8,26,10],[26,11,26,13],[26,14,26,16],[26,32,26,34],[17,38,17,40],[17,41,17,43],[17,44,17,46],[26,53,26,55],[26,56,26,58],[33,1,33,11],[35,2,35,4],[35,5,35,7],[35,8,35,10],[35,11,35,13],[35,14,35,16],[35,17,35,19],[35,20,35,22],[26,35,26,37],[26,38,26,40],[26,41,26,43],[26,44,26,46],[26,47,26,49],[26,50,26,52],[26,17,26,19],[26,20,26,22],[26,23,26,25],[26,26,26,28],[26,29,26,31],[35,41,35,43],[35,44,35,46],[35,47,35,49],[35,50,35,52],[35,53,35,55],[42,1,42,7],[35,23,35,25],[35,26,35,28],[35,29,35,31],[35,32,35,34],[35,35,35,37],[35,38,35,40],[44,20,44,22],[44,23,44,25],[44,26,44,28],[44,29,44,31],[44,32,44,34],[44,35,44,37],[44,2,44,4],[44,5,44,7],[44,8,44,10],[44,11,44,13],[44,14,44,16],[44,17,44,19],[48,29,48,31],[48,32,48,34],[48,35,48,37],[48,2,48,4],[48,5,48,7],[48,8,48,10],[48,11,48,13],[48,14,48,16],[48,17,48,19],[55,1,55,7],[57,2,57,4],[57,5,57,7],[57,8,57,10],[57,11,57,13],[57,14,57,16],[48,20,48,22],[48,23,48,25],[48,26,48,28],[57,17,57,19],[57,20,57,22],[57,23,57,25],[57,26,57,28],[61,2,61,4],[61,5,61,7],[61,8,61,10],[61,11,61,13],[61,14,61,16],[61,17,61,19],[61,20,61,22],[61,23,61,25],[61,26,61,28],[68,1,68,7],[70,2,70,4],[70,5,70,7],[70,8,70,10],[70,11,70,13],[70,14,70,16],[70,17,70,19],[82,1,82,7],[84,2,84,4],[84,5,84,7],[84,8,84,10],[84,11,84,13],[84,14,84,16],[70,20,70,22],[70,23,70,25],[74,2,74,4],[74,5,74,7],[74,8,74,10],[74,11,74,13],[74,14,74,16],[74,17,74,19],[74,20,74,22],[74,23,74,25],[88,23,88,25],[96,1,96,7],[98,1,99,1],[98,2,98,10],[98,11,98,19],[98,20,98,28],[99,23,99,25],[99,26,99,28],[84,17,84,19],[84,20,84,22],[84,23,84,25],[88,2,88,4],[88,5,88,7],[88,8,88,10],[88,11,88,13],[88,14,88,16],[88,17,88,19],[88,20,88,22],[99,2,99,4],[99,5,99,7],[99,8,99,10],[99,11,99,13],[99,14,99,16],[99,17,99,19],[98,83,98,91],[98,92,98,100],[98,29,98,37],[98,38,98,46],[98,47,98,55],[98,56,98,64],[98,65,98,73],[98,74,98,82],[99,29,99,31],[99,32,99,34],[99,35,99,37],[99,38,99,40],[99,41,99,43],[99,44,99,46],[99,47,99,49],[99,50,99,52],[99,53,99,55],[99,56,99,58],[99,59,99,61],[99,62,99,64],[98,137,98,145],[98,146,98,154],[98,155,98,163],[98,101,98,109],[98,110,98,118],[98,119,98,127],[98,128,98,136],[99,65,99,67],[99,68,99,70],[99,71,99,73],[99,74,99,76],[99,77,99,79],[99,80,99,82],[99,107,99,109],[99,110,99,112],[99,113,99,115],[99,116,99,118],[99,83,99,85],[99,86,99,88],[99,89,99,91],[99,92,99,94],[99,95,99,97],[99,98,99,100],[99,155,99,157],[99,161,99,163],[106,1,106,7],[108,1,109,1],[108,2,108,10],[108,11,108,19],[108,20,108,28],[108,29,108,37],[99,137,99,139],[99,140,99,142],[99,143,99,145],[99,146,99,148],[99,149,99,151],[99,152,99,154],[99,119,99,121],[99,122,99,124],[99,125,99,127],[99,128,99,130],[99,131,99,133],[99,134,99,136],[99,101,99,103],[99,104,99,106],[108,92,108,100],[99,20,99,22],[108,128,108,136],[108,137,108,145],[108,38,108,46],[108,47,108,55],[108,56,108,64],[108,65,108,73],[108,74,108,82],[108,83,108,91],[99,158,99,160],[109,2,109,4],[109,5,109,7],[109,8,109,10],[109,11,109,13],[109,14,109,16],[109,17,109,19],[108,101,108,109],[108,110,108,118],[108,119,108,127],[109,47,109,49],[109,50,109,52],[109,53,109,55],[109,20,109,22],[109,23,109,25],[109,26,109,28],[109,29,109,31],[109,32,109,34],[109,35,109,37],[109,143,109,145],[109,110,109,112],[109,113,109,115],[109,116,109,118],[109,119,109,121],[109,122,109,124],[109,125,109,127],[109,92,109,94],[109,95,109,97],[109,98,109,100],[109,101,109,103],[109,104,109,106],[109,107,109,109],[119,38,119,40],[119,41,119,43],[119,44,119,46],[118,38,118,46],[109,128,109,130],[109,131,109,133],[109,134,109,136],[109,137,109,139],[109,140,109,142],[109,74,109,76],[109,77,109,79],[109,80,109,82],[109,83,109,85],[109,86,109,88],[109,89,109,91],[109,56,109,58],[109,59,109,61],[109,62,109,64],[109,65,109,67],[109,68,109,70],[109,71,109,73],[109,38,109,40],[109,41,109,43],[109,44,109,46],[118,20,118,28],[118,29,118,37],[119,17,119,19],[119,20,119,22],[119,23,119,25],[119,26,119,28],[119,29,119,31],[119,32,119,34],[119,35,119,37],[119,2,119,4],[119,5,119,7],[119,8,119,10],[119,11,119,13],[119,14,119,16],[116,1,116,10],[118,1,119,1],[118,2,118,10],[118,11,118,19],[118,47,118,55],[118,56,118,64],[119,65,119,67],[119,68,119,70],[119,71,119,73],[119,74,119,76],[119,77,119,79],[119,80,119,82],[119,47,119,49],[119,50,119,52],[119,53,119,55],[119,56,119,58],[119,59,119,61],[119,62,119,64],[118,65,118,73],[118,74,118,82],[126,1,126,11],[128,1,129,1],[128,2,128,10],[128,11,128,19],[128,20,128,28],[128,29,128,37],[129,29,129,31],[129,32,129,34],[129,35,129,37],[128,92,128,100],[129,2,129,4],[129,5,129,7],[129,8,129,10],[129,11,129,13],[129,14,129,16],[129,17,129,19],[129,20,129,22],[129,23,129,25],[129,26,129,28],[128,38,128,46],[128,47,128,55],[128,56,128,64],[128,65,128,73],[128,74,128,82],[128,83,128,91],[129,92,129,94],[129,95,129,97],[129,98,129,100],[129,80,129,82],[129,83,129,85],[129,86,129,88],[129,89,129,91],[136,1,136,6],[138,2,138,4],[138,5,138,7],[138,8,138,10],[138,11,138,13],[138,14,138,16],[138,17,138,19],[129,74,129,76],[129,77,129,79],[129,38,129,40],[129,41,129,43],[138,20,138,22],[138,23,138,25],[138,26,138,28],[129,44,129,46],[129,47,129,49],[129,50,129,52],[129,53,129,55],[129,56,129,58],[129,59,129,61],[129,62,129,64],[129,65,129,67],[129,68,129,70],[129,71,129,73],[147,1,147,6],[149,2,149,4],[149,5,149,7],[149,8,149,10],[149,11,149,13],[149,14,149,16],[149,17,149,19],[160,23,160,25],[160,26,160,28],[160,29,160,31],[160,32,160,34],[160,35,160,37],[167,1,167,8],[149,20,149,22],[158,1,158,7],[160,2,160,4],[160,5,160,7],[160,8,160,10],[160,11,160,13],[160,14,160,16],[160,17,160,19],[160,20,160,22],[178,26,178,31],[178,32,178,37],[169,20,169,22],[169,23,169,25],[169,26,169,28],[169,29,169,31],[169,32,169,34],[176,1,176,9],[169,2,169,4],[169,5,169,7],[169,8,169,10],[169,11,169,13],[169,14,169,16],[169,17,169,19],[187,56,187,61],[187,62,187,67],[187,68,187,73],[194,1,194,4],[178,74,178,79],[178,80,178,85],[185,1,185,9],[187,2,187,7],[187,8,187,13],[187,14,187,19],[187,20,187,25],[187,26,187,31],[187,32,187,37],[187,38,187,43],[178,38,178,43],[178,44,178,49],[178,50,178,55],[178,56,178,61],[178,62,178,67],[178,68,178,73],[178,2,178,7],[178,8,178,13],[178,14,178,19],[178,20,178,25],[228,1,229,1],[196,1,197,1],[205,1,205,7],[207,1,208,1],[216,1,216,8],[218,1,219,1],[226,1,226,5],[187,44,187,49],[187,50,187,55]]}
[]
[null,"Pricing Schedules"]
[null,"Jump to Lot:"]
[null,"C1","C3","C5","C7","C9"]
[null,"C2","C4","C6","C8"]
[]
[null,"ICN - Fees for Employers Agent services (West)"]
[null,"C1A West"]
[null,"Fee based on contract sum (works only)","AA Projects Ltd",null,null,"Appleyard & Trew LLP",null,null,"CPC Project Services LLP",null,null,"Currie & Brown UK Ltd",null,null,"Edge Property Solutions",null,null,"Faithful & Gould ",null,null,"Identity Consult",null,null,"Markhams Ltd",null,null,"Michael Dyson Associates Limited",null,null,"Poole Dick Associates",null,null,"Rider Levett Bucknall UK Ltd",null,null,"Ridge and Partners LLP",null,null,"Savills UK Limited",null,null,"SDA Consulting LLP",null,null,"Simon Fenton Partnership",null,null,"Tozer Gallagher LLP",null,null,"Vextrix",null,null,"Whiteley Eaves Ltd",null,null,"Wilkinson Cowan Partnership"]
[null,null,"% fee of works only value","Minimum fee (£)","Maximum fee (£)","% fee of works only value","Minimum fee (£)","Maximum fee (£)","% fee of works only value","Minimum fee (£)","Maximum fee (£)","% fee of works only value","Minimum fee (£)","Maximum fee (£)","% fee of works only value","Minimum fee (£)","Maximum fee (£)","% fee of works only value","Minimum fee (£)","Maximum fee (£)","% fee of works only value","Minimum fee (£)","Maximum fee (£)","% fee of works only value","Minimum fee (£)","Maximum fee (£)","% fee of works only value","Minimum fee (£)","Maximum fee (£)","% fee of works only value","Minimum fee (£)","Maximum fee (£)","% fee of works only value","Minimum fee (£)","Maximum fee (£)","% fee of works only value","Minimum fee (£)","Maximum fee (£)","% fee of works only value","Minimum fee (£)","Maximum fee (£)","% fee of works only value","Minimum fee (£)","Maximum fee (£)","% fee of works only value","Minimum fee (£)","Maximum fee (£)","% fee of works only value","Minimum fee (£)","Maximum fee (£)","% fee of works only value","Minimum fee (£)","Maximum fee (£)","% fee of works only value","Minimum fee (£)","Maximum fee (£)","% fee of works only value","Minimum fee (£)","Maximum fee (£)"]
[null,"Band 1 - upto and including 34 homes",8.9999999999999993E-3,19500,null,1.2E-2,18000,null,8.9999999999999993E-3,10000,null,8.5000000000000006E-3,20000,null,0.01,5000,null,5.1999999999999998E-3,15000,null,1.2E-2,20000,null,8.5000000000000006E-3,12000,null,8.9999999999999993E-3,16500,null,8.9999999999999993E-3,13500,null,1.026E-2,10000,null,8.3999999999999995E-3,3500,null,8.9999999999999993E-3,9000,null,1.24E-2,12400,null,9.1000000000000004E-3,11750,null,7.0000000000000001E-3,25000,null,1.2999999999999999E-2,7500,null,6.4999999999999997E-3,3250,null,8.5000000000000006E-3,15000]
[null,"Band 2 - 35+ homes",6.8999999999999999E-3,null,97500,6.0000000000000001E-3,null,60000,6.4999999999999997E-3,null,80000,6.4999999999999997E-3,null,75000,7.4999999999999997E-3,null,112500,4.4000000000000003E-3,null,66000,8.0000000000000002E-3,null,85500,7.0000000000000001E-3,null,80000,6.0000000000000001E-3,null,75000,8.0000000000000002E-3,null,65000,8.3999999999999995E-3,null,63825,6.6E-3,null,99000,8.9999999999999993E-3,null,135000,7.4000000000000003E-3,null,91500,8.2000000000000007E-3,null,114800,6.4999999999999997E-3,null,75000,0.01,null,12500,5.4999999999999997E-3,null,55000,6.4999999999999997E-3,null,80000]
[]
[]
[]
[null,"ICN - Fees for Employers Agent services (East)"]
[null,"C1a EAST"]
[null,null,"AA Projects Ltd",null,null,"Appleyard & Trew LLP",null,null,"BWA",null,null,"CPC Project Services LLP",null,null,"Currie & Brown UK Ltd",null,null,"Edge Property Solutions",null,null,"Faithful & Gould ",null,null,"Identity Consult",null,null,"Markhams Ltd",null,null,"Michael Dyson Associates Limited",null,null,"Poole Dick Associates",null,null,"Rider Levett Bucknall UK Ltd",null,null,"Ridge and Partners LLP",null,null,"Savills UK Limited",null,null,"Tozer Gallagher LLP",null,null,"Vextrix",null,null,"Whiteley Eaves Ltd",null,null,"Wilkinson Cowan Partnership"]
[null,"Fee based on contract sum (works only)","% fee of works only value","Minimum fee (£)","Maximum fee (£)","% fee of works only value","Minimum fee (£)","Maximum fee (£)","% fee of works only value","Minimum fee (£)","Maximum fee (£)","% fee of works only value","Minimum fee (£)","Maximum fee (£)","% fee of works only value","Minimum fee (£)","Maximum fee (£)","% fee of works only value","Minimum fee (£)","Maximum fee (£)","% fee of works only value","Minimum fee (£)","Maximum fee (£)","% fee of works only value","Minimum fee (£)","Maximum fee (£)","% fee of works only value","Minimum fee (£)","Maximum fee (£)","% fee of works only value","Minimum fee (£)","Maximum fee (£)","% fee of works only value","Minimum fee (£)","Maximum fee (£)","% fee of works only value","Minimum fee (£)","Maximum fee (£)","% fee of works only value","Minimum fee (£)","Maximum fee (£)","% fee of works only value","Minimum fee (£)","Maximum fee (£)","% fee of works only value","Minimum fee (£)","Maximum fee (£)","% fee of works only value","Minimum fee (£)","Maximum fee (£)","% fee of works only value","Minimum fee (£)","Maximum fee (£)","% fee of works only value","Minimum fee (£)","Maximum fee (£)"]
[null,"Band 1 - upto and including 34 homes",8.9999999999999993E-3,19500,null,1.2E-2,18000,null,9.7999999999999997E-3,10000,null,8.9999999999999993E-3,10000,null,8.5000000000000006E-3,20000,null,0.01,5000,null,5.1999999999999998E-3,15000,null,1.2E-2,20000,null,8.5000000000000006E-3,12000,null,8.9999999999999993E-3,16500,null,8.9999999999999993E-3,13500,null,1.026E-2,10000,null,8.3999999999999995E-3,3500,null,8.9999999999999993E-3,9000,null,7.2500000000000004E-3,26500,null,1.2999999999999999E-2,7500,null,6.4999999999999997E-3,3250,null,8.5000000000000006E-3,15000]
[null,"Band 2 - 35+ homes",6.8999999999999999E-3,null,97500,6.0000000000000001E-3,null,60000,7.0000000000000001E-3,null,75000,6.4999999999999997E-3,null,80000,6.4999999999999997E-3,null,75000,7.4999999999999997E-3,null,112500,4.4000000000000003E-3,null,66000,8.0000000000000002E-3,null,85500,7.0000000000000001E-3,null,80000,6.0000000000000001E-3,null,75000,8.0000000000000002E-3,null,65000,8.3999999999999995E-3,null,63825,6.6E-3,null,99000,8.9999999999999993E-3,null,135000,6.7499999999999999E-3,null,77500,0.01,null,12500,5.4999999999999997E-3,null,19250,6.4999999999999997E-3,null,72500]
[]
[]
[]
[null,"ICN - Fee for combined Employers Agent  and Principal Designer Services (West)"]
[null,"C1B WEST"]
[null,null,"AA Projects Ltd",null,null,"AECOM",null,null,"Anderton Gables",null,null,"Arcus Consulting LLP",null,null,"Bradshaw Gass",null,null,"CPC Project Services LLP",null,null,"Edge Property Solutions",null,null,"Faithful & Gould ",null,null,"Markhams Ltd",null,null,"Michael Dyson Associates",null,null,"Rider Levett Bucknall",null,null,"Ridge and Partners LLP",null,null,"RJD Associates (North West) Limited",null,null,"Simon Fenton Partnership",null,null,"Thornton Firkin & Partners",null,null,"Tozer Gallagher LLP",null,null,"Whiteley Eaves Ltd",null,null,"Wilkinson Cowan Partnership",null,null,"WYG"]
[null,"Fee based on contract sum (works only)","% fee of works only value","Minimum fee (£)","Maximum fee (£)","% fee of works only value","Minimum fee (£)","Maximum fee (£)","% fee of works only value","Minimum fee (£)","Maximum fee (£)","% fee of works only value","Minimum fee (£)","Maximum fee (£)","% fee of works only value","Minimum fee (£)","Maximum fee (£)","% fee of works only value","Minimum fee (£)","Maximum fee (£)","% fee of works only value","Minimum fee (£)","Maximum fee (£)","% fee of works only value","Minimum fee (£)","Maximum fee (£)","% fee of works only value","Minimum fee (£)","Maximum fee (£)","% fee of works only value","Minimum fee (£)","Maximum fee (£)","% fee of works only value","Minimum fee (£)","Maximum fee (£)","% fee of works only value","Minimum fee (£)","Maximum fee (£)","% fee of works only value","Minimum fee (£)","Maximum fee (£)","% fee of works only value","Minimum fee (£)","Maximum fee (£)","% fee of works only value","Minimum fee (£)","Maximum fee (£)","% fee of works only value","Minimum fee (£)","Maximum fee (£)","% fee of works only value","Minimum fee (£)","Maximum fee (£)","% fee of works only value","Minimum fee (£)","Maximum fee (£)","% fee of works only value","Minimum fee (£)","Maximum fee (£)"]
[null,"Band 1 - upto and including 34 homes",1.2499999999999999E-2,25500,null,1.61E-2,15000,null,1.4999999999999999E-2,35000,null,9.4999999999999998E-3,12000,null,1.15E-2,7500,null,1.0500000000000001E-2,10000,null,1.15E-2,7000,null,8.3000000000000001E-3,17750,null,9.4999999999999998E-3,13500,null,0.01,17000,null,1.2760000000000001E-2,10975,null,0.01,4250,null,1.0699999999999999E-2,12500,null,1.12E-2,13130,null,1.15E-2,17000,null,8.9999999999999993E-3,30500,null,7.7999999999999996E-3,3900,null,1.03E-2,18500,null,1.35E-2,12000]
[null,"Band 2 - 35+ homes",8.6E-3,null,119500,1.0999999999999999E-2,null,111000,1.0999999999999999E-2,null,220000,7.4999999999999997E-3,null,107000,8.0000000000000002E-3,null,82500,8.0000000000000002E-3,null,80000,8.5000000000000006E-3,null,127500,6.3E-3,null,84000,7.4999999999999997E-3,null,83000,7.0000000000000001E-3,null,75000,9.2999999999999992E-3,null,77325,8.3000000000000001E-3,null,114000,7.7000000000000002E-3,null,96000,9.4000000000000004E-3,null,119975,8.0999999999999996E-3,null,100000,8.0000000000000002E-3,null,88500,6.1999999999999998E-3,null,62000,7.3000000000000001E-3,null,80000,9.1999999999999998E-3,null,115000]
[]
[null,"Back to top"]
[]
[null,"ICN - Fee for combined Employers Agent  and Principal Designer Services (East)"]
[null,"C1B EAST"]
[null,null,"AA Projects Ltd",null,null,"AECOM",null,null,"Anderton Gables",null,null,"Arcus Consulting LLP",null,null,"CPC Project Services LLP",null,null,"Edge Property Solutions",null,null,"Faithful & Gould ",null,null,"Markhams Ltd",null,null,"Michael Dyson Associates",null,null,"Rider Levett Bucknall",null,null,"Ridge and Partners LLP",null,null,"RJD Associates (North West) Limited",null,null,"SFP",null,null,"Thornton Firkin & Partners",null,null,"Tozer Gallagher LLP",null,null,"Whiteley Eaves Ltd",null,null,"Wilkinson Cowan Partnership",null,null,"WYG"]
[null,"Fee based on contract sum (works only)","% fee of works only value","Minimum fee (£)","Maximum fee (£)","% fee of works only value","Minimum fee (£)","Maximum fee (£)","% fee of works only value","Minimum fee (£)","Maximum fee (£)","% fee of works only value","Minimum fee (£)","Maximum fee (£)","% fee of works only value","Minimum fee (£)","Maximum fee (£)","% fee of works only value","Minimum fee (£)","Maximum fee (£)","% fee of works only value","Minimum fee (£)","Maximum fee (£)","% fee of works only value","Minimum fee (£)","Maximum fee (£)","% fee of works only value","Minimum fee (£)","Maximum fee (£)","% fee of works only value","Minimum fee (£)","Maximum fee (£)","% fee of works only value","Minimum fee (£)","Maximum fee (£)","% fee of works only value","Minimum fee (£)","Maximum fee (£)","% fee of works only value","Minimum fee (£)","Maximum fee (£)","% fee of works only value","Minimum fee (£)","Maximum fee (£)","% fee of works only value","Minimum fee (£)","Maximum fee (£)","% fee of works only value","Minimum fee (£)","Maximum fee (£)","% fee of works only value","Minimum fee (£)","Maximum fee (£)","% fee of works only value","Minimum fee (£)","Maximum fee (£)"]
[null,"Band 1 - upto and including 34 homes",1.2499999999999999E-2,25500,null,1.6500000000000001E-2,15000,null,1.4999999999999999E-2,35000,null,9.4999999999999998E-3,12000,null,1.0500000000000001E-2,10000,null,1.15E-2,7000,null,8.3000000000000001E-3,17750,null,9.4999999999999998E-3,13500,null,0.01,17000,null,1.2760000000000001E-2,10975,null,0.01,4250,null,1.0699999999999999E-2,12500,null,1.24E-2,15065,null,1.15E-2,17000,null,9.2499999999999995E-3,32000,null,7.7999999999999996E-3,3900,null,1.03E-2,18500,null,1.35E-2,12000]
[null,"Band 2 - 35+ homes",8.6E-3,null,119500,1.1299999999999999E-2,null,111000,1.0999999999999999E-2,null,220000,7.4999999999999997E-3,null,107000,8.0000000000000002E-3,null,80000,8.5000000000000006E-3,null,127500,6.3E-3,null,84000,7.4999999999999997E-3,null,83000,7.0000000000000001E-3,null,75000,9.2999999999999992E-3,null,77325,8.3000000000000001E-3,null,114000,7.7000000000000002E-3,null,96000,1.0500000000000001E-2,null,135500,8.0999999999999996E-3,null,100000,8.2500000000000004E-3,null,90000,6.1999999999999998E-3,null,62000,7.3000000000000001E-3,null,80000,9.1999999999999998E-3,null,115000]
[]
[]
[]
[null,"ICN - Fees for Engineering design services (West)"]
[null,"C2 WEST"]
[null,null,"Alan Johnston Partnership",null,null,"Align Property Partners",null,null,"Bradshaw Gass & Hope LLP",null,null,"Brennan Consult",null,null,"Campbell Reith Hill LLP",null,null,"Carley Daines & Partners",null,null,"Elluc Projects",null,null,"Pell Frischmann Consultants ",null,null,"Portland Consulting",null,null,"Ridge and Partners LLP",null,null,"Shape Consulting Engineers",null,null,"Sutcliffe"]
[null,"Fee based on contract sum (works only)","% fee of works only value","Minimum Fee (£)","Maximum Fee (£)","% fee of works only value","Minimum Fee (£)","Maximum Fee (£)","% fee of works only value","Minimum Fee (£)","Maximum Fee (£)","% fee of works only value","Minimum Fee (£)","Maximum Fee (£)","% fee of works only value","Minimum Fee (£)","Maximum Fee (£)","% fee of works only value","Minimum Fee (£)","Maximum Fee (£)","% fee of works only value","Minimum Fee (£)","Maximum Fee (£)","% fee of works only value","Minimum Fee (£)","Maximum Fee (£)","% fee of works only value","Minimum Fee (£)","Maximum Fee (£)","% fee of works only value","Minimum Fee (£)","Maximum Fee (£)","% fee of works only value","Minimum Fee (£)","Maximum Fee (£)","% fee of works only value","Minimum Fee (£)","Maximum Fee (£)"]
[null,"Band 1  - Up to and including 34 homes",7.0000000000000001E-3,6250,null,5.28E-3,5400,null,7.0000000000000001E-3,4500,null,6.4999999999999997E-3,4000,null,5.4999999999999997E-3,35000,null,7.4999999999999997E-3,9000,null,8.5000000000000006E-3,25000,null,0.01,500,null,8.0000000000000002E-3,9000,null,6.4000000000000003E-3,5000,null,7.0000000000000001E-3,5000,null,1.0999999999999999E-2,5000]
[null,"Band 2  - 35+ homes",6.4999999999999997E-3,null,90000,3.5999999999999999E-3,null,45600,6.0000000000000001E-3,null,78750,6.0000000000000001E-3,null,80000,5.4999999999999997E-3,null,82500,6.0000000000000001E-3,null,49500,8.0000000000000002E-3,null,55000,5.0000000000000001E-3,null,75000,7.0000000000000001E-3,null,99000,5.5999999999999999E-3,null,84000,6.0000000000000001E-3,null,90000,0.01,null,135000]
[null,null,"Day rate (£)",null,null,"Day rate (£)",null,null,"Day rate (£)",null,null,"Day rate (£)",null,null,"Day rate (£)",null,null,"Day rate (£)",null,null,"Day rate (£)",null,null,"Day rate (£)",null,null,"Day rate (£)",null,null,"Day rate (£)",null,null,"Day rate (£)",null,null,"Day rate (£)"]
[null,"(i) Executive Director with overall responsibility",562.5,null,null,502,null,null,600,null,null,680,null,null,800,null,null,525,null,null,637.5,null,null,750,null,null,600,null,null,675,null,null,480,null,null,675]
[null,"(ii) Day-to-day point of contact  ",412.5,null,null,430,null,null,480,null,null,560,null,null,550,null,null,455,null,null,525,null,null,500,null,null,450,null,null,450,null,null,400,null,null,525]
[null,"Total",975,null,null,932,null,null,1080,null,null,{"$f":"SUM(L50:L51)","v":1240},null,null,1350,null,null,980,null,null,1162.5,null,null,1250,null,null,{"$f":"SUM(AA50:AA51)","v":1050},null,null,1125,null,null,880,null,null,1200]
[]
[null,"Back to top"]
[]
[null,"ICN - Fees for Engineering design services (East)"]
[null,"C2 EAST"]
[null,null,"Align Property Partners",null,null,"Campbell Reith Hill LLP",null,null,"Carley Daines & Partners",null,null,"Elluc Projects",null,null,"Pell Frischmann Consultants",null,null,"Portland Consulting",null,null,"Ridge and Partners LLP",null,null,"Shape Consulting Engineers",null,null,"Sutcliffe"]
[null,"Fee based on contract sum (works only)","% fee of works only value","Minimum Fee (£)","Maximum Fee (£)","% fee of works only value","Minimum Fee (£)","Maximum Fee (£)","% fee of works only value","Minimum Fee (£)","Maximum Fee (£)","% fee of works only value","Minimum Fee (£)","Maximum Fee (£)","% fee of works only value","Minimum Fee (£)","Maximum Fee (£)","% fee of works only value","Minimum Fee (£)","Maximum Fee (£)","% fee of works only value","Minimum Fee (£)","Maximum Fee (£)","% fee of works only value","Minimum Fee (£)","Maximum Fee (£)","% fee of works only value","Minimum Fee (£)","Maximum Fee (£)"]
[null,"Band 1  - Up to and including 34 homes",5.28E-3,5400,null,5.4999999999999997E-3,35000,null,7.4999999999999997E-3,9000,null,8.5000000000000006E-3,25000,null,0.01,500,null,8.0000000000000002E-3,9000,null,6.4000000000000003E-3,5000,null,7.0000000000000001E-3,5000,null,1.2E-2,5000]
[null,"Band 2  - 35+ homes",3.5999999999999999E-3,null,45600,5.4999999999999997E-3,null,82500,6.0000000000000001E-3,null,49500,8.0000000000000002E-3,null,55000,5.0000000000000001E-3,null,75000,7.0000000000000001E-3,null,99000,5.5999999999999999E-3,null,84000,6.0000000000000001E-3,null,90000,1.0999999999999999E-2,null,135000]
[null,null,"Day rate (£)",null,null,"Day rate (£)",null,null,"Day rate (£)",null,null,"Day rate (£)",null,null,"Day rate (£)",null,null,"Day rate (£)",null,null,"Day rate (£)",null,null,"Day rate (£)",null,null,"Day rate (£)"]
[null,"(i) Executive Director with overall responsibility",502,null,null,800,null,null,525,null,null,637.5,null,null,750,null,null,600,null,null,675,null,null,480,null,null,675]
[null,"(ii) Day-to-day point of contact  ",430,null,null,550,null,null,455,null,null,525,null,null,500,null,null,450,null,null,450,null,null,400,null,null,525]
[null,"Total",932,null,null,1350,null,null,980,null,null,1162.5,null,null,1250,null,null,{"$f":"SUM(R63:R64)","v":1050},null,null,1125,null,null,880,null,null,1200]
[]
[null,"Back to top"]
[]
[null,"ICN - Fees for building surveying services (West)"]
[null,"C3 WEST"]
[null,null,"Align Property Partners",null,null,"Anderton Gables ",null,null,"Faithful & Gould",null,null,"MAC",null,null,"Rider Levett Bucknall",null,null,"Sutcliffe",null,null,"Waldeck Associates ",null,null,"Wilkinson Cowan Partnership"]
[null,"Fee based on contract sum (works only)","% fee of works only value","Minimum Fee (£)","Maximum Fee (£)","% fee of works only value","Minimum Fee (£)","Maximum Fee (£)","% fee of works only value","Minimum Fee (£)","Maximum Fee (£)","% fee of works only value","Minimum Fee (£)","Maximum Fee (£)","% fee of works only value","Minimum Fee (£)","Maximum Fee (£)","% fee of works only value","Minimum Fee (£)","Maximum Fee (£)","% fee of works only value","Minimum Fee (£)","Maximum Fee (£)","% fee of works only value","Minimum Fee (£)","Maximum Fee (£)"]
[null,"Band 1  - Up to and including 34 homes",3.9399999999999998E-2,48000,null,3.2500000000000001E-2,50000,null,4.8000000000000001E-2,13500,null,0.06,6000,null,3.5000000000000003E-2,4000,null,0.05,5000,null,2.1999999999999999E-2,9500,null,0.06,20000]
[null,"Band 2  - 35+ homes",3.61E-2,null,264000,0.03,null,450000,4.2000000000000003E-2,null,60000,4.4999999999999998E-2,null,65000,1.9E-2,null,210000,0.04,null,500000,1.7000000000000001E-2,null,180000,0.05,null,80000]
[null,"Staff Grade/Level","Day Rate (£)",null,null,"Day Rate (£)",null,null,"Day Rate (£)",null,null,"Day Rate (£)",null,null,"Day Rate (£)",null,null,"Day Rate (£)",null,null,"Day Rate (£)",null,null,"Day Rate (£)"]
[null,"(i) Executive Director ",502,null,null,960,null,null,550,null,null,500,null,null,712.5,null,null,675,null,null,650,null,null,520]
[null,"(ii) Building Surveyor ",427,null,null,600,null,null,420,null,null,350,null,null,502.5,null,null,525,null,null,575,null,null,320]
[null,"(iii) Party Wall Surveyor",427,null,null,880,null,null,450,null,null,350,null,null,502.5,null,null,675,null,null,650,null,null,600]
[null,"Total",1356,null,null,2440,null,null,1420,null,null,1200,null,null,1717.5,null,null,1875,null,null,1875,null,null,1440]
[]
[null,"Back to top"]
[]
[null,"ICN - Fees for building surveying services (East)"]
[null,"C3 EAST"]
[null,null,"Align Property Partners",null,null,"Anderton Gables ",null,null,"Faithful & Gould",null,null,"MAC",null,null,"Rider Levett Bucknall",null,null,"Sutcliffe",null,null,"Waldeck Associates ",null,null,"Wilkinson Cowan Partnership"]
[null,"Fee based on contract sum (works only)","% fee of works only value","Minimum Fee (£)","Maximum Fee (£)","% fee of works only value","Minimum Fee (£)","Maximum Fee (£)","% fee of works only value","Minimum Fee (£)","Maximum Fee (£)","% fee of works only value","Minimum Fee (£)","Maximum Fee (£)","% fee of works only value","Minimum Fee (£)","Maximum Fee (£)","% fee of works only value","Minimum Fee (£)","Maximum Fee (£)","% fee of works only value","Minimum Fee (£)","Maximum Fee (£)","% fee of works only value","Minimum Fee (£)","Maximum Fee (£)"]
[null,"Band 1  - Up to and including 34 homes",3.9399999999999998E-2,48000,null,3.2500000000000001E-2,50000,null,4.8000000000000001E-2,13500,null,0.06,6000,null,3.5000000000000003E-2,4000,null,0.05,5000,null,2.1999999999999999E-2,9500,null,0.06,20000]
[null,"Band 2  - 35+ homes",3.61E-2,null,264000,0.03,null,450000,4.2000000000000003E-2,null,60000,4.4999999999999998E-2,null,65000,1.9E-2,null,210000,0.04,null,500000,1.7000000000000001E-2,null,180000,0.05,null,80000]
[null,"Staff Grade/Level","Day Rate (£)",null,null,"Day Rate (£)",null,null,"Day Rate (£)",null,null,"Day Rate (£)",null,null,"Day Rate (£)",null,null,"Day Rate (£)",null,null,"Day Rate (£)",null,null,"Day Rate (£)"]
[null,"(i) Executive Director ",502,null,null,960,null,null,550,null,null,500,null,null,712.5,null,null,675,null,null,650,null,null,520]
[null,"(ii) Building Surveyor ",427,null,null,600,null,null,420,null,null,350,null,null,502.5,null,null,525,null,null,575,null,null,320]
[null,"(iii) Party Wall Surveyor",427,null,null,880,null,null,450,null,null,350,null,null,502.5,null,null,675,null,null,650,null,null,600]
[null,"Total",1356,null,null,2440,null,null,1420,null,null,1200,null,null,1717.5,null,null,1875,null,null,1875,null,null,1440]
[]
[null,"Back to top"]
[]
[null,"ICN - Fees for architectural services (West)"]
[null,"C4A WEST"]
[null,null,"AEW Architects",null,null,null,null,null,null,null,null,"Bernard Taylor Partnership",null,null,null,null,null,null,null,null,"Bowker Sadler Partnership",null,null,null,null,null,null,null,null,"Brewster Bye Architects",null,null,null,null,null,null,null,null,"Brock Carmichael Architects",null,null,null,null,null,null,null,null,"Condy & Lofthouse Ltd",null,null,null,null,null,null,null,null,"DK Architects",null,null,null,null,null,null,null,null,"GWP Architecture Ltd",null,null,null,null,null,null,null,null,"John McCall Architects",null,null,null,null,null,null,null,null,"Langtry-Langton Architects",null,null,null,null,null,null,null,null,"Michael Hyde and Associated Ltd",null,null,null,null,null,null,null,null,"MPSL Planning and Design",null,null,null,null,null,null,null,null,"Paddock Johnson Partnership",null,null,null,null,null,null,null,null,"Pozzoni LLP",null,null,null,null,null,null,null,null,"Ridge and Partners LLP",null,null,null,null,null,null,null,null,"TADW Architects",null,null,null,null,null,null,null,null,"Triangle Architects",null,null,null,null,null,null,null,null,"Walker Simpson Architects"]
[null,null,"Stage 1 fee without a planning consultant appointed",null,null,"Stage 1 fee with a planning consultant appointed by Client",null,null,"Stage 2 fee with or without planning consultant",null,null,"Stage 1 fee without a planning consultant appointed",null,null,"Stage 1 fee with a planning consultant appointed by Client",null,null,"Stage 2 fee with or without planning consultant",null,null,"Stage 1 fee without a planning consultant appointed",null,null,"Stage 1 fee with a planning consultant appointed by Client",null,null,"Stage 2 fee with or without planning consultant",null,null,"Stage 1 fee without a planning consultant appointed",null,null,"Stage 1 fee with a planning consultant appointed by Client",null,null,"Stage 2 fee with or without planning consultant",null,null,"Stage 1 fee without a planning consultant appointed",null,null,"Stage 1 fee with a planning consultant appointed by Client",null,null,"Stage 2 fee with or without planning consultant",null,null,"Stage 1 fee without a planning consultant appointed",null,null,"Stage 1 fee with a planning consultant appointed by Client",null,null,"Stage 2 fee with or without planning consultant",null,null,"Stage 1 fee without a planning consultant appointed",null,null,"Stage 1 fee with a planning consultant appointed by Client",null,null,"Stage 2 fee with or without planning consultant",null,null,"Stage 1 fee without a planning consultant appointed",null,null,"Stage 1 fee with a planning consultant appointed by Client",null,null,"Stage 2 fee with or without planning consultant",null,null,"Stage 1 fee without a planning consultant appointed",null,null,"Stage 1 fee with a planning consultant appointed by Client",null,null,"Stage 2 fee with or without planning consultant",null,null,"Stage 1 fee without a planning consultant appointed",null,null,"Stage 1 fee with a planning consultant appointed by Client",null,null,"Stage 2 fee with or without planning consultant",null,null,"Stage 1 fee without a planning consultant appointed",null,null,"Stage 1 fee with a planning consultant appointed by Client",null,null,"Stage 2 fee with or without planning consultant",null,null,"Stage 1 fee without a planning consultant appointed",null,null,"Stage 1 fee with a planning consultant appointed by Client",null,null,"Stage 2 fee with or without planning consultant",null,null,"Stage 1 fee without a planning consultant appointed",null,null,"Stage 1 fee with a planning consultant appointed by Client",null,null,"Stage 2 fee with or without planning consultant",null,null,"Stage 1 fee without a planning consultant appointed",null,null,"Stage 1 fee with a planning consultant appointed by Client",null,null,"Stage 2 fee with or without planning consultant",null,null,"Stage 1 fee without a planning consultant appointed",null,null,"Stage 1 fee with a planning consultant appointed by Client",null,null,"Stage 2 fee with or without planning consultant",null,null,"Stage 1 fee without a planning consultant appointed",null,null,"Stage 1 fee with a planning consultant appointed by Client",null,null,"Stage 2 fee with or without planning consultant",null,null,"Stage 1 fee without a planning consultant appointed",null,null,"Stage 1 fee with a planning consultant appointed by Client",null,null,"Stage 2 fee with or without planning consultant",null,null,"Stage 1 fee without a planning consultant appointed",null,null,"Stage 1 fee with a planning consultant appointed by Client",null,null,"Stage 2 fee with or without planning consultant"]
[null,"Fee based on contract sum (works only)","Stage 1  - % fee of works only value","Stage 1 - Minimum Fee (£)","Stage 1 - Maximum Fee (£)","Stage 1  - % fee of works only value","Stage 1 - Minimum Fee (£)","Stage 1 - Maximum Fee (£)","Stage 2  - % fee of works only value","Stage 2 - Minimum Fee (£)","Stage 2 - Maximum Fee (£)","Stage 1  - % fee of works only value","Stage 1 - Minimum Fee (£)","Stage 1 - Maximum Fee (£)","Stage 1  - % fee of works only value","Stage 1 - Minimum Fee (£)","Stage 1 - Maximum Fee (£)","Stage 2  - % fee of works only value","Stage 2 - Minimum Fee (£)","Stage 2 - Maximum Fee (£)","Stage 1  - % fee of works only value","Stage 1 - Minimum Fee (£)","Stage 1 - Maximum Fee (£)","Stage 1  - % fee of works only value","Stage 1 - Minimum Fee (£)","Stage 1 - Maximum Fee (£)","Stage 2  - % fee of works only value","Stage 2 - Minimum Fee (£)","Stage 2 - Maximum Fee (£)","Stage 1  - % fee of works only value","Stage 1 - Minimum Fee (£)","Stage 1 - Maximum Fee (£)","Stage 1  - % fee of works only value","Stage 1 - Minimum Fee (£)","Stage 1 - Maximum Fee (£)","Stage 2  - % fee of works only value","Stage 2 - Minimum Fee (£)","Stage 2 - Maximum Fee (£)","Stage 1  - % fee of works only value","Stage 1 - Minimum Fee (£)","Stage 1 - Maximum Fee (£)","Stage 1  - % fee of works only value","Stage 1 - Minimum Fee (£)","Stage 1 - Maximum Fee (£)","Stage 2  - % fee of works only value","Stage 2 - Minimum Fee (£)","Stage 2 - Maximum Fee (£)","Stage 1  - % fee of works only value","Stage 1 - Minimum Fee (£)","Stage 1 - Maximum Fee (£)","Stage 1  - % fee of works only value","Stage 1 - Minimum Fee (£)","Stage 1 - Maximum Fee (£)","Stage 2  - % fee of works only value","Stage 2 - Minimum Fee (£)","Stage 2 - Maximum Fee (£)","Stage 1  - % fee of works only value","Stage 1 - Minimum Fee (£)","Stage 1 - Maximum Fee (£)","Stage 1  - % fee of works only value","Stage 1 - Minimum Fee (£)","Stage 1 - Maximum Fee (£)","Stage 2  - % fee of works only value","Stage 2 - Minimum Fee (£)","Stage 2 - Maximum Fee (£)","Stage 1  - % fee of works only value","Stage 1 - Minimum Fee (£)","Stage 1 - Maximum Fee (£)","Stage 1  - % fee of works only value","Stage 1 - Minimum Fee (£)","Stage 1 - Maximum Fee (£)","Stage 2  - % fee of works only value","Stage 2 - Minimum Fee (£)","Stage 2 - Maximum Fee (£)","Stage 1  - % fee of works only value","Stage 1 - Minimum Fee (£)","Stage 1 - Maximum Fee (£)","Stage 1  - % fee of works only value","Stage 1 - Minimum Fee (£)","Stage 1 - Maximum Fee (£)","Stage 2  - % fee of works only value","Stage 2 - Minimum Fee (£)","Stage 2 - Maximum Fee (£)","Stage 1  - % fee of works only value","Stage 1 - Minimum Fee (£)","Stage 1 - Maximum Fee (£)","Stage 1  - % fee of works only value","Stage 1 - Minimum Fee (£)","Stage 1 - Maximum Fee (£)","Stage 2  - % fee of works only value","Stage 2 - Minimum Fee (£)","Stage 2 - Maximum Fee (£)","Stage 1  - % fee of works only value","Stage 1 - Minimum Fee (£)","Stage 1 - Maximum Fee (£)","Stage 1  - % fee of works only value","Stage 1 - Minimum Fee (£)","Stage 1 - Maximum Fee (£)","Stage 2  - % fee of works only value","Stage 2 - Minimum Fee (£)","Stage 2 - Maximum Fee (£)","Stage 1  - % fee of works only value","Stage 1 - Minimum Fee (£)","Stage 1 - Maximum Fee (£)","Stage 1  - % fee of works only value","Stage 1 - Minimum Fee (£)","Stage 1 - Maximum Fee (£)","Stage 2  - % fee of works only value","Stage 2 - Minimum Fee (£)","Stage 2 - Maximum Fee (£)","Stage 1  - % fee of works only value","Stage 1 - Minimum Fee (£)","Stage 1 - Maximum Fee (£)","Stage 1  - % fee of works only value","Stage 1 - Minimum Fee (£)","Stage 1 - Maximum Fee (£)","Stage 2  - % fee of works only value","Stage 2 - Minimum Fee (£)","Stage 2 - Maximum Fee (£)","Stage 1  - % fee of works only value","Stage 1 - Minimum Fee (£)","Stage 1 - Maximum Fee (£)","Stage 1  - % fee of works only value","Stage 1 - Minimum Fee (£)","Stage 1 - Maximum Fee (£)","Stage 2  - % fee of works only value","Stage 2 - Minimum Fee (£)","Stage 2 - Maximum Fee (£)","Stage 1  - % fee of works only value","Stage 1 - Minimum Fee (£)","Stage 1 - Maximum Fee (£)","Stage 1  - % fee of works only value","Stage 1 - Minimum Fee (£)","Stage 1 - Maximum Fee (£)","Stage 2  - % fee of works only value","Stage 2 - Minimum Fee (£)","Stage 2 - Maximum Fee (£)","Stage 1  - % fee of works only value","Stage 1 - Minimum Fee (£)","Stage 1 - Maximum Fee (£)","Stage 1  - % fee of works only value","Stage 1 - Minimum Fee (£)","Stage 1 - Maximum Fee (£)","Stage 2  - % fee of works only value","Stage 2 - Minimum Fee (£)","Stage 2 - Maximum Fee (£)","Stage 1  - % fee of works only value","Stage 1 - Minimum Fee (£)","Stage 1 - Maximum Fee (£)","Stage 1  - % fee of works only value","Stage 1 - Minimum Fee (£)","Stage 1 - Maximum Fee (£)","Stage 2  - % fee of works only value","Stage 2 - Minimum Fee (£)","Stage 2 - Maximum Fee (£)","Stage 1  - % fee of works only value","Stage 1 - Minimum Fee (£)","Stage 1 - Maximum Fee (£)","Stage 1  - % fee of works only value","Stage 1 - Minimum Fee (£)","Stage 1 - Maximum Fee (£)","Stage 2  - % fee of works only value","Stage 2 - Minimum Fee (£)","Stage 2 - Maximum Fee (£)"]
[null,"Band 1  - Up to and including 34 homes",9.4999999999999998E-3,3197,null,8.9999999999999993E-3,3197,null,1.0699999999999999E-2,2470,null,8.0000000000000002E-3,3000,null,7.0000000000000001E-3,3000,null,7.0000000000000001E-3,3000,null,1.12E-2,5600,null,9.9000000000000008E-3,4950,null,1.5100000000000001E-2,7550,null,6.1000000000000004E-3,3050,null,5.4999999999999997E-3,2750,null,1.14E-2,5700,null,9.4999999999999998E-3,20000,null,7.4999999999999997E-3,16500,null,9.4999999999999998E-3,20500,null,8.0000000000000002E-3,3200,null,6.4999999999999997E-3,2600,null,1.0500000000000001E-2,4300,null,6.5100000000000002E-3,975,null,6.1999999999999998E-3,930,null,1.4489999999999999E-2,2200,null,5.4000000000000003E-3,10000,null,4.7999999999999996E-3,10000,null,8.0999999999999996E-3,15000,null,8.9999999999999993E-3,5625,null,8.5000000000000006E-3,5000,null,8.8999999999999999E-3,5625,null,6.0000000000000001E-3,0,null,6.0000000000000001E-3,0,null,9.7999999999999997E-3,0,null,5.7749999999999998E-3,4000,null,5.2500000000000003E-3,4000,null,9.9749999999999995E-3,4000,null,6.2500000000000003E-3,1350,null,5.4999999999999997E-3,1000,null,6.2500000000000003E-3,1000,null,5.7999999999999996E-3,580,null,5.7000000000000002E-3,580,null,1.4500000000000001E-2,1450,null,8.2000000000000007E-3,9500,null,7.6E-3,9000,null,8.9999999999999993E-3,9500,null,6.7999999999999996E-3,5000,null,6.7999999999999996E-3,5000,null,6.0000000000000001E-3,4750,null,7.4999999999999997E-3,9000,null,7.0000000000000001E-3,9000,null,8.0000000000000002E-3,10000,null,9.4000000000000004E-3,5500,null,8.0000000000000002E-3,4700,null,1.37E-2,8000,null,8.0000000000000002E-3,14000,null,6.4000000000000003E-3,12000,null,8.0000000000000002E-3,14000]
[null,"Band 2  - 35+ homes",8.9999999999999993E-3,null,129000,8.6999999999999994E-3,null,122550,9.9000000000000008E-3,null,135000,7.0000000000000001E-3,null,90000,6.0000000000000001E-3,null,90000,6.4999999999999997E-3,null,90000,7.4000000000000003E-3,null,111000,6.7999999999999996E-3,null,102000,1.0200000000000001E-2,null,153000,5.1000000000000004E-3,null,65000,4.5999999999999999E-3,null,60000,9.4999999999999998E-3,null,95000,7.4999999999999997E-3,null,68000,6.7999999999999996E-3,null,65000,8.5000000000000006E-3,null,80000,7.0000000000000001E-3,null,170000,5.4999999999999997E-3,null,133500,9.4999999999999998E-3,null,230000,5.8900000000000003E-3,null,60000,5.5799999999999999E-3,null,55000,1.311E-2,null,140000,2.8999999999999998E-3,null,97500,2.7000000000000001E-3,null,75000,8.6250000000000007E-3,null,150000,7.4999999999999997E-3,null,89900,7.0000000000000001E-3,null,89900,7.4000000000000003E-3,null,89900,5.0000000000000001E-3,null,55000,4.7999999999999996E-3,null,50000,8.9999999999999993E-3,null,115000,6.8250000000000003E-3,null,102375,6.6150000000000002E-3,null,99225,1.0500000000000001E-2,null,157500,5.2500000000000003E-3,null,99000,4.4999999999999997E-3,null,67500,5.2500000000000003E-3,null,67500,4.8999999999999998E-3,null,73500,4.7999999999999996E-3,null,73500,1.32E-2,null,198000,6.7000000000000002E-3,null,95000,6.4999999999999997E-3,null,90000,8.5000000000000006E-3,null,95000,6.1999999999999998E-3,null,93000,6.1999999999999998E-3,null,93000,5.4000000000000003E-3,null,81000,6.7499999999999999E-3,null,80000,6.0000000000000001E-3,null,70000,7.0000000000000001E-3,null,80000,7.9000000000000008E-3,null,103500,6.7999999999999996E-3,null,87000,1.17E-2,null,160500,6.2500000000000003E-3,null,93750,5.0000000000000001E-3,null,75000,6.2500000000000003E-3,null,93750]
[]
[null,"Back to top"]
[]
[null,"ICN - Fees for architectural services (East)"]
[null,"C4A EAST"]
[null,null,"Acanthus WSM Architects",null,null,null,null,null,null,null,null,"AEW Architects",null,null,null,null,null,null,null,null,"Bernard Taylor Partnership",null,null,null,null,null,null,null,null,"Brewster Bye Architects",null,null,null,null,null,null,null,null,"Condy & Lofthouse Ltd",null,null,null,null,null,null,null,null,"DK Architects",null,null,null,null,null,null,null,null,"GWP Architecture Ltd",null,null,null,null,null,null,null,null,"John McCall Architects",null,null,null,null,null,null,null,null,"Langtry-Langton Architects",null,null,null,null,null,null,null,null,"Michael Hyde and Associated Ltd",null,null,null,null,null,null,null,null,"MPSL Planning and Design",null,null,null,null,null,null,null,null,"Paddock Johnson Partnership",null,null,null,null,null,null,null,null,"Pozzoni LLP",null,null,null,null,null,null,null,null,"Ridge and Partners LLP",null,null,null,null,null,null,null,null,"Triangle Architects",null,null,null,null,null,null,null,null,"Walker Simpson Architects"]
[null,null,"Stage 1 fee without a planning consultant appointed",null,null,"Stage 1 fee with a planning consultant appointed by Client",null,null,"Stage 2 fee with or without planning consultant",null,null,"Stage 1 fee without a planning consultant appointed",null,null,"Stage 1 fee with a planning consultant appointed by Client",null,null,"Stage 2 fee with or without planning consultant",null,null,"Stage 1 fee without a planning consultant appointed",null,null,"Stage 1 fee with a planning consultant appointed by Client",null,null,"Stage 2 fee with or without planning consultant",null,null,"Stage 1 fee without a planning consultant appointed",null,null,"Stage 1 fee with a planning consultant appointed by Client",null,null,"Stage 2 fee with or without planning consultant",null,null,"Stage 1 fee without a planning consultant appointed",null,null,"Stage 1 fee with a planning consultant appointed by Client",null,null,"Stage 2 fee with or without planning consultant",null,null,"Stage 1 fee without a planning consultant appointed",null,null,"Stage 1 fee with a planning consultant appointed by Client",null,null,"Stage 2 fee with or without planning consultant",null,null,"Stage 1 fee without a planning consultant appointed",null,null,"Stage 1 fee with a planning consultant appointed by Client",null,null,"Stage 2 fee with or without planning consultant",null,null,"Stage 1 fee without a planning consultant appointed",null,null,"Stage 1 fee with a planning consultant appointed by Client",null,null,"Stage 2 fee with or without planning consultant",null,null,"Stage 1 fee without a planning consultant appointed",null,null,"Stage 1 fee with a planning consultant appointed by Client",null,null,"Stage 2 fee with or without planning consultant",null,null,"Stage 1 fee without a planning consultant appointed",null,null,"Stage 1 fee with a planning consultant appointed by Client",null,null,"Stage 2 fee with or without planning consultant",null,null,"Stage 1 fee without a planning consultant appointed",null,null,"Stage 1 fee with a planning consultant appointed by Client",null,null,"Stage 2 fee with or without planning consultant",null,null,"Stage 1 fee without a planning consultant appointed",null,null,"Stage 1 fee with a planning consultant appointed by Client",null,null,"Stage 2 fee with or without planning consultant",null,null,"Stage 1 fee without a planning consultant appointed",null,null,"Stage 1 fee with a planning consultant appointed by Client",null,null,"Stage 2 fee with or without planning consultant",null,null,"Stage 1 fee without a planning consultant appointed",null,null,"Stage 1 fee with a planning consultant appointed by Client",null,null,"Stage 2 fee with or without planning consultant",null,null,"Stage 1 fee without a planning consultant appointed",null,null,"Stage 1 fee with a planning consultant appointed by Client",null,null,"Stage 2 fee with or without planning consultant",null,null,"Stage 1 fee without a planning consultant appointed",null,null,"Stage 1 fee with a planning consultant appointed by Client",null,null,"Stage 2 fee with or without planning consultant"]
[null,"Fee based on contract sum (works only)","Stage 1  - % fee of works only value","Stage 1 - Minimum Fee (£)","Stage 1 - Maximum Fee (£)","Stage 1  - % fee of works only value","Stage 1 - Minimum Fee (£)","Stage 1 - Maximum Fee (£)","Stage 2  - % fee of works only value","Stage 2 - Minimum Fee (£)","Stage 2 - Maximum Fee (£)","Stage 1  - % fee of works only value","Stage 1 - Minimum Fee (£)","Stage 1 - Maximum Fee (£)","Stage 1  - % fee of works only value","Stage 1 - Minimum Fee (£)","Stage 1 - Maximum Fee (£)","Stage 2  - % fee of works only value","Stage 2 - Minimum Fee (£)","Stage 2 - Maximum Fee (£)","Stage 1  - % fee of works only value","Stage 1 - Minimum Fee (£)","Stage 1 - Maximum Fee (£)","Stage 1  - % fee of works only value","Stage 1 - Minimum Fee (£)","Stage 1 - Maximum Fee (£)","Stage 2  - % fee of works only value","Stage 2 - Minimum Fee (£)","Stage 2 - Maximum Fee (£)","Stage 1  - % fee of works only value","Stage 1 - Minimum Fee (£)","Stage 1 - Maximum Fee (£)","Stage 1  - % fee of works only value","Stage 1 - Minimum Fee (£)","Stage 1 - Maximum Fee (£)","Stage 2  - % fee of works only value","Stage 2 - Minimum Fee (£)","Stage 2 - Maximum Fee (£)","Stage 1  - % fee of works only value","Stage 1 - Minimum Fee (£)","Stage 1 - Maximum Fee (£)","Stage 1  - % fee of works only value","Stage 1 - Minimum Fee (£)","Stage 1 - Maximum Fee (£)","Stage 2  - % fee of works only value","Stage 2 - Minimum Fee (£)","Stage 2 - Maximum Fee (£)","Stage 1  - % fee of works only value","Stage 1 - Minimum Fee (£)","Stage 1 - Maximum Fee (£)","Stage 1  - % fee of works only value","Stage 1 - Minimum Fee (£)","Stage 1 - Maximum Fee (£)","Stage 2  - % fee of works only value","Stage 2 - Minimum Fee (£)","Stage 2 - Maximum Fee (£)","Stage 1  - % fee of works only value","Stage 1 - Minimum Fee (£)","Stage 1 - Maximum Fee (£)","Stage 1  - % fee of works only value","Stage 1 - Minimum Fee (£)","Stage 1 - Maximum Fee (£)","Stage 2  - % fee of works only value","Stage 2 - Minimum Fee (£)","Stage 2 - Maximum Fee (£)","Stage 1  - % fee of works only value","Stage 1 - Minimum Fee (£)","Stage 1 - Maximum Fee (£)","Stage 1  - % fee of works only value","Stage 1 - Minimum Fee (£)","Stage 1 - Maximum Fee (£)","Stage 2  - % fee of works only value","Stage 2 - Minimum Fee (£)","Stage 2 - Maximum Fee (£)","Stage 1  - % fee of works only value","Stage 1 - Minimum Fee (£)","Stage 1 - Maximum Fee (£)","Stage 1  - % fee of works only value","Stage 1 - Minimum Fee (£)","Stage 1 - Maximum Fee (£)","Stage 2  - % fee of works only value","Stage 2 - Minimum Fee (£)","Stage 2 - Maximum Fee (£)","Stage 1  - % fee of works only value","Stage 1 - Minimum Fee (£)","Stage 1 - Maximum Fee (£)","Stage 1  - % fee of works only value","Stage 1 - Minimum Fee (£)","Stage 1 - Maximum Fee (£)","Stage 2  - % fee of works only value","Stage 2 - Minimum Fee (£)","Stage 2 - Maximum Fee (£)","Stage 1  - % fee of works only value","Stage 1 - Minimum Fee (£)","Stage 1 - Maximum Fee (£)","Stage 1  - % fee of works only value","Stage 1 - Minimum Fee (£)","Stage 1 - Maximum Fee (£)","Stage 2  - % fee of works only value","Stage 2 - Minimum Fee (£)","Stage 2 - Maximum Fee (£)","Stage 1  - % fee of works only value","Stage 1 - Minimum Fee (£)","Stage 1 - Maximum Fee (£)","Stage 1  - % fee of works only value","Stage 1 - Minimum Fee (£)","Stage 1 - Maximum Fee (£)","Stage 2  - % fee of works only value","Stage 2 - Minimum Fee (£)","Stage 2 - Maximum Fee (£)","Stage 1  - % fee of works only value","Stage 1 - Minimum Fee (£)","Stage 1 - Maximum Fee (£)","Stage 1  - % fee of works only value","Stage 1 - Minimum Fee (£)","Stage 1 - Maximum Fee (£)","Stage 2  - % fee of works only value","Stage 2 - Minimum Fee (£)","Stage 2 - Maximum Fee (£)","Stage 1  - % fee of works only value","Stage 1 - Minimum Fee (£)","Stage 1 - Maximum Fee (£)","Stage 1  - % fee of works only value","Stage 1 - Minimum Fee (£)","Stage 1 - Maximum Fee (£)","Stage 2  - % fee of works only value","Stage 2 - Minimum Fee (£)","Stage 2 - Maximum Fee (£)","Stage 1  - % fee of works only value","Stage 1 - Minimum Fee (£)","Stage 1 - Maximum Fee (£)","Stage 1  - % fee of works only value","Stage 1 - Minimum Fee (£)","Stage 1 - Maximum Fee (£)","Stage 2  - % fee of works only value","Stage 2 - Minimum Fee (£)","Stage 2 - Maximum Fee (£)","Stage 1  - % fee of works only value","Stage 1 - Minimum Fee (£)","Stage 1 - Maximum Fee (£)","Stage 1  - % fee of works only value","Stage 1 - Minimum Fee (£)","Stage 1 - Maximum Fee (£)","Stage 2  - % fee of works only value","Stage 2 - Minimum Fee (£)","Stage 2 - Maximum Fee (£)"]
[null,"Band 1  - Up to and including 34 homes",8.0999999999999996E-3,4850,null,7.1000000000000004E-3,4850,null,1.5100000000000001E-2,11325,null,9.4999999999999998E-3,3197,null,8.9999999999999993E-3,3197,null,1.0699999999999999E-2,2470,null,8.0000000000000002E-3,3000,null,7.0000000000000001E-3,3000,null,7.0000000000000001E-3,3000,null,6.1000000000000004E-3,3050,null,5.4999999999999997E-3,2750,null,1.14E-2,5700,null,8.0000000000000002E-3,3200,null,6.4999999999999997E-3,2600,null,1.0500000000000001E-2,4300,null,6.5100000000000002E-3,975,null,6.1999999999999998E-3,930,null,1.4489999999999999E-2,2200,null,5.4000000000000003E-3,10000,null,4.7999999999999996E-3,10000,null,8.0999999999999996E-3,15000,null,9.1000000000000004E-3,5625,null,8.6E-3,5000,null,9.1000000000000004E-3,5625,null,6.1999999999999998E-3,0,null,6.0000000000000001E-3,0,null,1.2E-2,0,null,5.7749999999999998E-3,4000,null,5.2500000000000003E-3,4000,null,9.9749999999999995E-3,4000,null,6.2500000000000003E-3,1350,null,5.4999999999999997E-3,1000,null,6.2500000000000003E-3,1000,null,6.4999999999999997E-3,650,null,6.4000000000000003E-3,650,null,1.55E-2,1550,null,8.2000000000000007E-3,9500,null,7.6E-3,9000,null,8.9999999999999993E-3,9500,null,6.7999999999999996E-3,5000,null,6.7999999999999996E-3,5000,null,6.0000000000000001E-3,4750,null,8.6999999999999994E-3,5500,null,7.3000000000000001E-3,4700,null,1.44E-2,8000,null,8.0000000000000002E-3,14000,null,6.4000000000000003E-3,12000,null,8.0000000000000002E-3,14000]
[null,"Band 2  - 35+ homes",7.1999999999999998E-3,null,79000,6.1999999999999998E-3,null,68200,1.34E-2,null,118500,8.9999999999999993E-3,null,129000,8.6999999999999994E-3,null,122550,9.9000000000000008E-3,null,135000,7.0000000000000001E-3,null,90000,6.0000000000000001E-3,null,90000,6.4999999999999997E-3,null,90000,5.1000000000000004E-3,null,65000,4.5999999999999999E-3,null,60000,9.4999999999999998E-3,null,95000,7.0000000000000001E-3,null,170000,5.4999999999999997E-3,null,133500,9.4999999999999998E-3,null,230000,5.8900000000000003E-3,null,60000,5.5799999999999999E-3,null,55000,1.311E-2,null,140000,2.8999999999999998E-3,null,97500,2.7000000000000001E-3,null,75000,8.6250000000000007E-3,null,150000,7.6E-3,null,90000,7.1000000000000004E-3,null,90000,7.4999999999999997E-3,null,90000,5.1999999999999998E-3,null,55000,4.7999999999999996E-3,null,50000,1.0500000000000001E-2,null,122000,6.3E-3,null,94500,6.0899999999999999E-3,null,91350,9.9749999999999995E-3,null,149625,5.2500000000000003E-3,null,99000,4.4999999999999997E-3,null,67500,5.2500000000000003E-3,null,67500,5.1999999999999998E-3,null,78000,5.1000000000000004E-3,null,78000,1.4200000000000001E-2,null,213000,6.7000000000000002E-3,null,95000,6.4999999999999997E-3,null,90000,8.5000000000000006E-3,null,95000,6.1999999999999998E-3,null,93000,6.1999999999999998E-3,null,93000,5.4000000000000003E-3,null,81000,7.4000000000000003E-3,null,92250,6.3E-3,null,75750,1.23E-2,null,165750,6.2500000000000003E-3,null,93750,5.0000000000000001E-3,null,75000,6.2500000000000003E-3,null,93750]
[]
[null,"Back to top"]
[]
[null,"ICN - Fee for combined Architect and Principal Designer Services Combined (West)"]
[null,"C4B WEST"]
[null,null,"Bernard Taylor Partnership",null,null,null,null,null,null,null,null,"Bowker Sadler Partnership",null,null,null,null,null,null,null,null,"Buttress Architects Ltd",null,null,null,null,null,null,null,null,"BYA Architects",null,null,null,null,null,null,null,null,"Langtry-Langton Architects",null,null,null,null,null,null,null,null,"Michael Dyson Associates Limited",null,null,null,null,null,null,null,null,"Michael Hyde and Associated Ltd",null,null,null,null,null,null,null,null,"Paddock Johnson Partnership",null,null,null,null,null,null,null,null,"Ridge & Partners"]
[null,null,"Stage 1 fee without a planning consultant appointed",null,null,"Stage 1 fee with a planning consultant appointed by Client",null,null,"Stage 2 fee with or without planning consultant",null,null,"Stage 1 fee without a planning consultant appointed",null,null,"Stage 1 fee with a planning consultant appointed by Client",null,null,"Stage 2 fee with or without planning consultant",null,null,"Stage 1 fee without a planning consultant appointed",null,null,"Stage 1 fee with a planning consultant appointed by Client",null,null,"Stage 2 fee with or without planning consultant",null,null,"Stage 1 fee without a planning consultant appointed",null,null,"Stage 1 fee with a planning consultant appointed by Client",null,null,"Stage 2 fee with or without planning consultant",null,null,"Stage 1 fee without a planning consultant appointed",null,null,"Stage 1 fee with a planning consultant appointed by Client",null,null,"Stage 2 fee with or without planning consultant",null,null,"Stage 1 fee without a planning consultant appointed",null,null,"Stage 1 fee with a planning consultant appointed by Client",null,null,"Stage 2 fee with or without planning consultant",null,null,"Stage 1 fee without a planning consultant appointed",null,null,"Stage 1 fee with a planning consultant appointed by Client",null,null,"Stage 2 fee with or without planning consultant",null,null,"Stage 1 fee without a planning consultant appointed",null,null,"Stage 1 fee with a planning consultant appointed by Client",null,null,"Stage 2 fee with or without planning consultant",null,null,"Stage 1 fee without a planning consultant appointed",null,null,"Stage 1 fee with a planning consultant appointed by Client",null,null,"Stage 2 fee with or without planning consultant"]
[null,"Fee based on contract sum (works only)","Stage 1  - % fee of works only value","Stage 1 - Minimum Fee (£)","Stage 1 - Maximum Fee (£)","Stage 1  - % fee of works only value","Stage 1 - Minimum Fee (£)","Stage 1 - Maximum Fee (£)","Stage 2  - % fee of works only value","Stage 2 - Minimum Fee (£)","Stage 2 - Maximum Fee (£)","Stage 1  - % fee of works only value","Stage 1 - Minimum Fee (£)","Stage 1 - Maximum Fee (£)","Stage 1  - % fee of works only value","Stage 1 - Minimum Fee (£)","Stage 1 - Maximum Fee (£)","Stage 2  - % fee of works only value","Stage 2 - Minimum Fee (£)","Stage 2 - Maximum Fee (£)","Stage 1  - % fee of works only value","Stage 1 - Minimum Fee (£)","Stage 1 - Maximum Fee (£)","Stage 1  - % fee of works only value","Stage 1 - Minimum Fee (£)","Stage 1 - Maximum Fee (£)","Stage 2  - % fee of works only value","Stage 2 - Minimum Fee (£)","Stage 2 - Maximum Fee (£)","Stage 1  - % fee of works only value","Stage 1 - Minimum Fee (£)","Stage 1 - Maximum Fee (£)","Stage 1  - % fee of works only value","Stage 1 - Minimum Fee (£)","Stage 1 - Maximum Fee (£)","Stage 2  - % fee of works only value","Stage 2 - Minimum Fee (£)","Stage 2 - Maximum Fee (£)","Stage 1  - % fee of works only value","Stage 1 - Minimum Fee (£)","Stage 1 - Maximum Fee (£)","Stage 1  - % fee of works only value","Stage 1 - Minimum Fee (£)","Stage 1 - Maximum Fee (£)","Stage 2  - % fee of works only value","Stage 2 - Minimum Fee (£)","Stage 2 - Maximum Fee (£)","Stage 1  - % fee of works only value","Stage 1 - Minimum Fee (£)","Stage 1 - Maximum Fee (£)","Stage 1  - % fee of works only value","Stage 1 - Minimum Fee (£)","Stage 1 - Maximum Fee (£)","Stage 2  - % fee of works only value","Stage 2 - Minimum Fee (£)","Stage 2 - Maximum Fee (£)","Stage 1  - % fee of works only value","Stage 1 - Minimum Fee (£)","Stage 1 - Maximum Fee (£)","Stage 1  - % fee of works only value","Stage 1 - Minimum Fee (£)","Stage 1 - Maximum Fee (£)","Stage 2  - % fee of works only value","Stage 2 - Minimum Fee (£)","Stage 2 - Maximum Fee (£)","Stage 1  - % fee of works only value","Stage 1 - Minimum Fee (£)","Stage 1 - Maximum Fee (£)","Stage 1  - % fee of works only value","Stage 1 - Minimum Fee (£)","Stage 1 - Maximum Fee (£)","Stage 2  - % fee of works only value","Stage 2 - Minimum Fee (£)","Stage 2 - Maximum Fee (£)","Stage 1  - % fee of works only value","Stage 1 - Minimum Fee (£)","Stage 1 - Maximum Fee (£)","Stage 1  - % fee of works only value","Stage 1 - Minimum Fee (£)","Stage 1 - Maximum Fee (£)","Stage 2  - % fee of works only value","Stage 2 - Minimum Fee (£)","Stage 2 - Maximum Fee (£)"]
[null,"Band 1  - Up to and including 34 homes",8.8999999999999999E-3,{"$f":"700+3000","v":3700},null,{"$f":"0.09%+0.7%","v":7.899999999999999E-3},{"$f":"700+3000","v":3700},null,{"$f":"0.09%+0.7%","v":7.899999999999999E-3},{"$f":"700+3000","v":3700},null,1.1650000000000001E-2,6350,null,1.035E-2,5700,null,1.5800000000000002E-2,9300,null,1.4500000000000001E-2,10000,null,1.4E-2,10000,null,1.2999999999999999E-2,10000,null,9.4999999999999998E-3,3800,null,9.4999999999999998E-3,3800,null,9.4999999999999998E-3,3800,null,6.4999999999999997E-3,0,null,7.0000000000000001E-3,0,null,9.7999999999999997E-3,0,null,8.5000000000000006E-3,7500,null,8.3000000000000001E-3,7500,null,1.24E-2,9000,null,7.8750000000000001E-3,4000,null,0.73499999999999999,4000,null,9.9749999999999995E-3,4000,null,5.7999999999999996E-3,580,null,5.7000000000000002E-3,610,null,1.61E-2,1790,null,6.7999999999999996E-3,5750,null,6.7999999999999996E-3,5000,null,7.1000000000000004E-3,5750]
[null,"Band 2  - 35+ homes",7.7999999999999996E-3,null,{"$f":"10000+90000","v":100000},{"$f":"0.08%+0.6%","v":6.8000000000000005E-3},null,{"$f":"10000+90000","v":100000},{"$f":"0.08%+0.65%","v":7.3000000000000009E-3},null,{"$f":"10000+90000","v":100000},7.7000000000000002E-3,null,115500,7.1000000000000004E-3,null,106500,1.0869999999999999E-2,null,163050,1.2999999999999999E-2,null,180000,1.2500000000000001E-2,null,165000,1.15E-2,null,165000,7.4999999999999997E-3,null,112500,7.4999999999999997E-3,null,112500,7.4999999999999997E-3,null,112500,6.1999999999999998E-3,null,55000,5.7999999999999996E-3,null,50000,8.9999999999999993E-3,null,115000,6.3E-3,null,71000,6.1999999999999998E-3,null,71000,8.6999999999999994E-3,null,92000,8.3999999999999995E-3,null,115500,8.1899999999999994E-3,null,115500,1.0500000000000001E-2,null,157500,4.8999999999999998E-3,null,73500,4.7999999999999996E-3,null,73500,1.44E-2,null,216000,7.9000000000000008E-3,null,118500,7.9000000000000008E-3,null,118500,7.1000000000000004E-3,null,106500]
[]
[null,"Back to top"]
[]
[null,"ICN - Fees for Architectural services and Principal Designer Combined (East)"]
[null,"C4B EAST"]
[null,null,"Ainsley Gommon Architects",null,null,null,null,null,null,null,null,"Bernard Taylor Partnership",null,null,null,null,null,null,null,null,"Bowker Sadler Partnership",null,null,null,null,null,null,null,null,"Buttress Architects Ltd",null,null,null,null,null,null,null,null,"Darnton B3 Architecture",null,null,null,null,null,null,null,null,"Halsall Lloyd Partnership",null,null,null,null,null,null,null,null,"Langtry-Langton Architects",null,null,null,null,null,null,null,null,"Michael Dyson Associates Limited",null,null,null,null,null,null,null,null,"Michael Hyde and Associated Ltd",null,null,null,null,null,null,null,null,"Paddock Johnson Partnership",null,null,null,null,null,null,null,null,"Ridge & Partners"]
[null,null,"Stage 1 fee without a planning consultant appointed",null,null,"Stage 1 fee with a planning consultant appointed by Client",null,null,"Stage 2 fee with or without planning consultant",null,null,"Stage 1 fee without a planning consultant appointed",null,null,"Stage 1 fee with a planning consultant appointed by Client",null,null,"Stage 2 fee with or without planning consultant",null,null,"Stage 1 fee without a planning consultant appointed",null,null,"Stage 1 fee with a planning consultant appointed by Client",null,null,"Stage 2 fee with or without planning consultant",null,null,"Stage 1 fee without a planning consultant appointed",null,null,"Stage 1 fee with a planning consultant appointed by Client",null,null,"Stage 2 fee with or without planning consultant",null,null,"Stage 1 fee without a planning consultant appointed",null,null,"Stage 1 fee with a planning consultant appointed by Client",null,null,"Stage 2 fee with or without planning consultant",null,null,"Stage 1 fee without a planning consultant appointed",null,null,"Stage 1 fee with a planning consultant appointed by Client",null,null,"Stage 2 fee with or without planning consultant",null,null,"Stage 1 fee without a planning consultant appointed",null,null,"Stage 1 fee with a planning consultant appointed by Client",null,null,"Stage 2 fee with or without planning consultant",null,null,"Stage 1 fee without a planning consultant appointed",null,null,"Stage 1 fee with a planning consultant appointed by Client",null,null,"Stage 2 fee with or without planning consultant",null,null,"Stage 1 fee without a planning consultant appointed",null,null,"Stage 1 fee with a planning consultant appointed by Client",null,null,"Stage 2 fee with or without planning consultant",null,null,"Stage 1 fee without a planning consultant appointed",null,null,"Stage 1 fee with a planning consultant appointed by Client",null,null,"Stage 2 fee with or without planning consultant",null,null,"Stage 1 fee without a planning consultant appointed",null,null,"Stage 1 fee with a planning consultant appointed by Client",null,null,"Stage 2 fee with or without planning consultant"]
[null,"Fee based on contract sum (works only)","Stage 1  - % fee of works only value","Stage 1 - Minimum Fee (£)","Stage 1 - Maximum Fee (£)","Stage 1  - % fee of works only value","Stage 1 - Minimum Fee (£)","Stage 1 - Maximum Fee (£)","Stage 2  - % fee of works only value","Stage 2 - Minimum Fee (£)","Stage 2 - Maximum Fee (£)","Stage 1  - % fee of works only value","Stage 1 - Minimum Fee (£)","Stage 1 - Maximum Fee (£)","Stage 1  - % fee of works only value","Stage 1 - Minimum Fee (£)","Stage 1 - Maximum Fee (£)","Stage 2  - % fee of works only value","Stage 2 - Minimum Fee (£)","Stage 2 - Maximum Fee (£)","Stage 1  - % fee of works only value","Stage 1 - Minimum Fee (£)","Stage 1 - Maximum Fee (£)","Stage 1  - % fee of works only value","Stage 1 - Minimum Fee (£)","Stage 1 - Maximum Fee (£)","Stage 2  - % fee of works only value","Stage 2 - Minimum Fee (£)","Stage 2 - Maximum Fee (£)","Stage 1  - % fee of works only value","Stage 1 - Minimum Fee (£)","Stage 1 - Maximum Fee (£)","Stage 1  - % fee of works only value","Stage 1 - Minimum Fee (£)","Stage 1 - Maximum Fee (£)","Stage 2  - % fee of works only value","Stage 2 - Minimum Fee (£)","Stage 2 - Maximum Fee (£)","Stage 1  - % fee of works only value","Stage 1 - Minimum Fee (£)","Stage 1 - Maximum Fee (£)","Stage 1  - % fee of works only value","Stage 1 - Minimum Fee (£)","Stage 1 - Maximum Fee (£)","Stage 2  - % fee of works only value","Stage 2 - Minimum Fee (£)","Stage 2 - Maximum Fee (£)","Stage 1  - % fee of works only value","Stage 1 - Minimum Fee (£)","Stage 1 - Maximum Fee (£)","Stage 1  - % fee of works only value","Stage 1 - Minimum Fee (£)","Stage 1 - Maximum Fee (£)","Stage 2  - % fee of works only value","Stage 2 - Minimum Fee (£)","Stage 2 - Maximum Fee (£)","Stage 1  - % fee of works only value","Stage 1 - Minimum Fee (£)","Stage 1 - Maximum Fee (£)","Stage 1  - % fee of works only value","Stage 1 - Minimum Fee (£)","Stage 1 - Maximum Fee (£)","Stage 2  - % fee of works only value","Stage 2 - Minimum Fee (£)","Stage 2 - Maximum Fee (£)","Stage 1  - % fee of works only value","Stage 1 - Minimum Fee (£)","Stage 1 - Maximum Fee (£)","Stage 1  - % fee of works only value","Stage 1 - Minimum Fee (£)","Stage 1 - Maximum Fee (£)","Stage 2  - % fee of works only value","Stage 2 - Minimum Fee (£)","Stage 2 - Maximum Fee (£)","Stage 1  - % fee of works only value","Stage 1 - Minimum Fee (£)","Stage 1 - Maximum Fee (£)","Stage 1  - % fee of works only value","Stage 1 - Minimum Fee (£)","Stage 1 - Maximum Fee (£)","Stage 2  - % fee of works only value","Stage 2 - Minimum Fee (£)","Stage 2 - Maximum Fee (£)","Stage 1  - % fee of works only value","Stage 1 - Minimum Fee (£)","Stage 1 - Maximum Fee (£)","Stage 1  - % fee of works only value","Stage 1 - Minimum Fee (£)","Stage 1 - Maximum Fee (£)","Stage 2  - % fee of works only value","Stage 2 - Minimum Fee (£)","Stage 2 - Maximum Fee (£)","Stage 1  - % fee of works only value","Stage 1 - Minimum Fee (£)","Stage 1 - Maximum Fee (£)","Stage 1  - % fee of works only value","Stage 1 - Minimum Fee (£)","Stage 1 - Maximum Fee (£)","Stage 2  - % fee of works only value","Stage 2 - Minimum Fee (£)","Stage 2 - Maximum Fee (£)"]
[null,"Band 1  - Up to and including 34 homes",8.6999999999999994E-3,3250,null,7.9000000000000008E-3,3250,null,1.3100000000000001E-2,4250,null,8.8999999999999999E-3,{"$f":"700+3000","v":3700},null,{"$f":"0.09%+0.7%","v":7.899999999999999E-3},{"$f":"700+3000","v":3700},null,{"$f":"0.09%+0.7%","v":7.899999999999999E-3},{"$f":"700+3000","v":3700},null,1.282E-2,6985,null,1.1390000000000001E-2,6270,null,1.738E-2,10230,null,1.4500000000000001E-2,10000,null,1.4E-2,10000,null,1.2999999999999999E-2,10000,null,1.11E-2,11000,null,1.0800000000000001E-2,10500,null,1.6500000000000001E-2,15500,null,1.35E-2,8900,null,1.4200000000000001E-2,8900,null,1.0999999999999999E-2,8900,null,7.1999999999999998E-3,0,null,7.0000000000000001E-3,0,null,1.2999999999999999E-2,0,null,8.5000000000000006E-3,7500,null,8.3000000000000001E-3,7500,null,1.24E-2,9000,null,7.8750000000000001E-3,4000,null,7.3499999999999998E-3,4000,null,9.9749999999999995E-3,4000,null,6.4999999999999997E-3,690,null,6.4000000000000003E-3,690,null,1.7100000000000001E-2,1710,null,6.7999999999999996E-3,5750,null,6.7999999999999996E-3,5000,null,7.1000000000000004E-3,5750]
[null,"Band 2  - 35+ homes",6.8999999999999999E-3,null,69000,6.3E-3,null,63000,1.04E-2,null,103000,7.7999999999999996E-3,null,{"$f":"10000+90000","v":100000},{"$f":"0.08%+0.6%","v":6.8000000000000005E-3},null,{"$f":"10000+90000","v":100000},{"$f":"0.08%+0.65%","v":7.3000000000000009E-3},null,{"$f":"10000+90000","v":100000},8.09E-3,null,121350,7.4599999999999996E-3,null,111900,1.141E-2,null,171150,1.2999999999999999E-2,null,180000,1.2500000000000001E-2,null,165000,1.15E-2,null,165000,4.9500000000000004E-3,null,75000,4.8399999999999997E-3,null,72000,7.3699999999999998E-3,null,100000,1.2E-2,null,147000,1.21E-2,null,147000,0.01,null,127000,6.1999999999999998E-3,null,55000,5.7999999999999996E-3,null,50000,1.15E-2,null,122000,6.3E-3,null,71000,6.1999999999999998E-3,null,71000,8.6999999999999994E-3,null,92000,7.8750000000000001E-3,null,115500,7.7175000000000004E-3,null,115500,9.9749999999999995E-3,null,149625,5.1999999999999998E-3,null,78000,5.1000000000000004E-3,null,78000,1.54E-2,null,231000,7.9000000000000008E-3,null,118500,7.9000000000000008E-3,null,118500,7.1000000000000004E-3,null,106500]
[]
[null,"Back to top"]
[]
[null,"ICN - Fees for clerk of works services (West)"]
[null,"C5 WEST"]
[null,null,"Aegis Services Ltd",null,null,"Amrin Resources Ltd",null,null,"Currie & Brown UK Ltd",null,null,"Hickton Consultants",null,null,"MAC Construction",null,null,"SDA Consulting LLP",null,null,"Waldeck Associates",null,null,"Whiteley Eaves Ltd",null,null,"Wilkinson Cowan"]
[null,"Fee based on contract sum (works only)","% fee of works only value","Minimum Fee (£)","Maximum (£)","% fee of works only value","Minimum Fee (£)","Maximum (£)","% fee of works only value","Minimum Fee (£)","Maximum (£)","% fee of works only value","Minimum Fee (£)","Maximum (£)","% fee of works only value","Minimum Fee (£)","Maximum (£)","% fee of works only value","Minimum Fee (£)","Maximum (£)","% fee of works only value","Minimum Fee (£)","Maximum (£)","% fee of works only value","Minimum Fee (£)","Maximum (£)","% fee of works only value","Minimum Fee (£)","Maximum (£)"]
[null,"Band 1  - Up to and including 34 homes",5.1999999999999998E-3,9999,null,5.8999999999999999E-3,17000,null,4.3E-3,12000,null,4.4999999999999997E-3,3000,null,6.0000000000000001E-3,6000,null,8.3000000000000001E-3,8300,null,4.0000000000000001E-3,5000,null,6.4999999999999997E-3,3250,null,5.4000000000000003E-3,7500]
[null,"Band 2  - 35+ homes",3.5000000000000001E-3,null,35000,4.4000000000000003E-3,null,62000,3.0000000000000001E-3,null,58000,3.0000000000000001E-3,null,45000,4.0000000000000001E-3,null,45000,4.1999999999999997E-3,null,54000,3.7499999999999999E-3,null,48750,2.5000000000000001E-3,null,25000,4.7999999999999996E-3,null,48000]
[]
[null,"Day rate (£)",250,null,null,260,null,null,337.5,null,null,336,null,null,300,null,null,360,null,null,595,null,null,150,null,null,300]
[]
[null,"Back to top"]
[]
[null,"ICN - Fees for clerk of works services (East)"]
[null,"C5 EAST"]
[null,null,"Amrin Resources Ltd",null,null,"Currie & Brown UK Ltd",null,null,"Hickton Consultants",null,null,"MAC Construction Consultants Ltd",null,null,"Waldeck Associates Limited",null,null,"Whiteley Eaves Ltd",null,null,"Wilkinson Cowan Partnership"]
[null,"Fee based on contract sum (works only)","% fee of works only value","Minimum Fee (£)","Maximum (£)","% fee of works only value","Minimum Fee (£)","Maximum (£)","% fee of works only value","Minimum Fee (£)","Maximum (£)","% fee of works only value","Minimum Fee (£)","Maximum (£)","% fee of works only value","Minimum Fee (£)","Maximum (£)","% fee of works only value","Minimum Fee (£)","Maximum (£)","% fee of works only value","Minimum Fee (£)","Maximum (£)"]
[null,"Band 1  - Up to and including 34 homes",5.8999999999999999E-3,17000,null,4.3E-3,12000,null,4.4999999999999997E-3,3000,null,6.0000000000000001E-3,6000,null,4.0000000000000001E-3,5000,null,6.4999999999999997E-3,3250,null,5.4000000000000003E-3,7500]
[null,"Band 2  - 35+ homes",4.4000000000000003E-3,null,62000,3.0000000000000001E-3,null,58000,3.0000000000000001E-3,null,45000,4.0000000000000001E-3,null,45000,3.7499999999999999E-3,null,48750,2.5000000000000001E-3,null,25000,4.7999999999999996E-3,null,48000]
[]
[null,"Day rate (£)",260,null,null,337.5,null,null,336,null,null,300,null,null,595,null,null,150,null,null,300]
[]
[null,"Back to top"]
[]
[null,"ICN - Fees for Purchasers Agent services (West)"]
[null,"C6 WEST"]
[null,null,"AA Projects Ltd",null,null,"Arcus Consulting LLP",null,null,"CPC Project Services LLP",null,null,"Identity Consult",null,null,"Markhams Ltd",null,null,"Poole Dick Associates",null,null,"RPS",null,null,"Simon Fenton Partnership",null,null,"Thornton Firkin & Partners",null,null,"Waldeck Associates",null,null,"Whiteley Eaves Ltd",null,null,"Wilkinson Cowan Partnership"]
[null,"Fee based on acquisition cost","% fee of acquisition value","Minimum Fee (£)","Maximum fee (£)","% fee of acquisition value","Minimum Fee (£)","Maximum fee (£)","% fee of acquisition value","Minimum Fee (£)","Maximum fee (£)","% fee of acquisition value","Minimum Fee (£)","Maximum fee (£)","% fee of acquisition value","Minimum Fee (£)","Maximum fee (£)","% fee of acquisition value","Minimum Fee (£)","Maximum fee (£)","% fee of acquisition value","Minimum Fee (£)","Maximum fee (£)","% fee of acquisition value","Minimum Fee (£)","Maximum fee (£)","% fee of acquisition value","Minimum Fee (£)","Maximum fee (£)","% fee of acquisition value","Minimum Fee (£)","Maximum fee (£)","% fee of acquisition value","Minimum Fee (£)","Maximum fee (£)","% fee of acquisition value","Minimum Fee (£)","Maximum fee (£)"]
[null,"Band 1  - Up to and including 34 homes",7.4999999999999997E-3,14950,null,7.0000000000000001E-3,7500,null,6.3E-3,5000,null,5.0000000000000001E-3,9000,null,6.0000000000000001E-3,8000,null,6.0000000000000001E-3,7500,null,5.1999999999999998E-3,6500,null,6.6E-3,6750,null,6.4999999999999997E-3,5000,null,5.4999999999999997E-3,4500,null,3.5000000000000001E-3,1750,null,4.7000000000000002E-3,8000]
[null,"Band 2  - 35+ homes",5.7000000000000002E-3,null,75000,5.0000000000000001E-3,null,78000,5.0000000000000001E-3,null,40000,3.5000000000000001E-3,null,52500,4.4999999999999997E-3,null,50000,5.0000000000000001E-3,null,37500,4.4000000000000003E-3,null,66000,5.7000000000000002E-3,null,68400,4.4999999999999997E-3,null,42500,4.4999999999999997E-3,null,67500,2.5000000000000001E-3,null,25000,3.5000000000000001E-3,null,45000]
[]
[null,"Back to top"]
[]
[null,"ICN - Fees for Purchasers Agent services (East)"]
[null,"C6 EAST"]
[null,null,"AA Projects Ltd",null,null,"Arcus Consulting LLP",null,null,"CPC Project Services LLP",null,null,"Identity Consult",null,null,"Markhams Ltd",null,null,"Poole Dick Associates",null,null,"RPS",null,null,"Thornton Firkin & Partners",null,null,"Waldeck Associates ",null,null,"Whiteley Eaves Ltd",null,null,"Wilkinson Cowan Partnership"]
[null,"Fee based on acquisition cost","% fee of acquisition value","Minimum Fee (£)","Maximum fee (£)","% fee of acquisition value","Minimum Fee (£)","Maximum fee (£)","% fee of acquisition value","Minimum Fee (£)","Maximum fee (£)","% fee of acquisition value","Minimum Fee (£)","Maximum fee (£)","% fee of acquisition value","Minimum Fee (£)","Maximum fee (£)","% fee of acquisition value","Minimum Fee (£)","Maximum fee (£)","% fee of acquisition value","Minimum Fee (£)","Maximum fee (£)","% fee of acquisition value","Minimum Fee (£)","Maximum fee (£)","% fee of acquisition value","Minimum Fee (£)","Maximum fee (£)","% fee of acquisition value","Minimum Fee (£)","Maximum fee (£)","% fee of acquisition value","Minimum Fee (£)","Maximum fee (£)"]
[null,"Band 1  - Up to and including 34 homes",7.4999999999999997E-3,14950,null,7.0000000000000001E-3,7500,null,6.3E-3,5000,null,5.0000000000000001E-3,9000,null,6.0000000000000001E-3,8000,null,6.0000000000000001E-3,7500,null,5.5999999999999999E-3,7000,null,6.4999999999999997E-3,5000,null,5.4999999999999997E-3,4500,null,3.5000000000000001E-3,1750,null,4.7000000000000002E-3,8000]
[null,"Band 2  - 35+ homes",5.7000000000000002E-3,null,75000,5.0000000000000001E-3,null,78000,5.0000000000000001E-3,null,40000,3.5000000000000001E-3,null,52500,4.4999999999999997E-3,null,50000,5.0000000000000001E-3,null,37500,4.7999999999999996E-3,null,72000,4.4999999999999997E-3,null,42500,4.4999999999999997E-3,null,67500,2.5000000000000001E-3,null,25000,3.5000000000000001E-3,null,45000]
[]
[null,"Back to top"]
[]
[null,"ICN - Fees for Principal Designer services (West)"]
[null,"C7 WEST"]
[null,null,"AA Projects ",null,null,null,null,null,"Aegis Services Ltd",null,null,null,null,null,"Arcus Consulting LLP",null,null,null,null,null,"Curtins Consulting Ltd",null,null,null,null,null,"Faithful & Gould",null,null,null,null,null,"Paddock Johnson Partnership",null,null,null,null,null,"Rider levett Bucknall UK Ltd",null,null,null,null,null,"RJD Associates (North West) Limited (North West) Limited",null,null,null,null,null,"Thornton Firkin",null,null,null,null,null,"Urbn Design & Consult Ltd",null,null,null,null,null,"Vextrix",null,null,null,null,null,"Whiteley Eaves Ltd",null,null,null,null,null,"Wilkinson Cowan Partnership",null,null,null,null,null,"WYG Engineering Limited"]
[null,"Fee based on contract sum (works only)","Principal Designer (PD) & H&SA \n% fee of works only value","Minimum Fee for PD & H&SA(£)","Maximum Fee for PD & H&SA(£)","H&SA only\n% fee of works only value","Minimum Fee for H&SA (£)","Maximum Fee for H&SA (£)","Principal Designer (PD) & H&SA \n% fee of works only value","Minimum Fee for PD & H&SA(£)","Maximum Fee for PD & H&SA(£)","H&SA only\n% fee of works only value","Minimum Fee for H&SA (£)","Maximum Fee for H&SA (£)","Principal Designer (PD) & H&SA \n% fee of works only value","Minimum Fee for PD & H&SA(£)","Maximum Fee for PD & H&SA(£)","H&SA only\n% fee of works only value","Minimum Fee for H&SA (£)","Maximum Fee for H&SA (£)","Principal Designer (PD) & H&SA \n% fee of works only value","Minimum Fee for PD & H&SA(£)","Maximum Fee for PD & H&SA(£)","H&SA only\n% fee of works only value","Minimum Fee for H&SA (£)","Maximum Fee for H&SA (£)","Principal Designer (PD) & H&SA \n% fee of works only value","Minimum Fee for PD & H&SA(£)","Maximum Fee for PD & H&SA(£)","H&SA only\n% fee of works only value","Minimum Fee for H&SA (£)","Maximum Fee for H&SA (£)","Principal Designer (PD) & H&SA \n% fee of works only value","Minimum Fee for PD & H&SA(£)","Maximum Fee for PD & H&SA(£)","H&SA only\n% fee of works only value","Minimum Fee for H&SA (£)","Maximum Fee for H&SA (£)","Principal Designer (PD) & H&SA \n% fee of works only value","Minimum Fee for PD & H&SA(£)","Maximum Fee for PD & H&SA(£)","H&SA only\n% fee of works only value","Minimum Fee for H&SA (£)","Maximum Fee for H&SA (£)","Principal Designer (PD) & H&SA \n% fee of works only value","Minimum Fee for PD & H&SA(£)","Maximum Fee for PD & H&SA(£)","H&SA only\n% fee of works only value","Minimum Fee for H&SA (£)","Maximum Fee for H&SA (£)","Principal Designer (PD) & H&SA \n% fee of works only value","Minimum Fee for PD & H&SA(£)","Maximum Fee for PD & H&SA(£)","H&SA only\n% fee of works only value","Minimum Fee for H&SA (£)","Maximum Fee for H&SA (£)","Principal Designer (PD) & H&SA \n% fee of works only value","Minimum Fee for PD & H&SA(£)","Maximum Fee for PD & H&SA(£)","H&SA only\n% fee of works only value","Minimum Fee for H&SA (£)","Maximum Fee for H&SA (£)","Principal Designer (PD) & H&SA \n% fee of works only value","Minimum Fee for PD & H&SA(£)","Maximum Fee for PD & H&SA(£)","H&SA only\n% fee of works only value","Minimum Fee for H&SA (£)","Maximum Fee for H&SA (£)","Principal Designer (PD) & H&SA \n% fee of works only value","Minimum Fee for PD & H&SA(£)","Maximum Fee for PD & H&SA(£)","H&SA only\n% fee of works only value","Minimum Fee for H&SA (£)","Maximum Fee for H&SA (£)","Principal Designer (PD) & H&SA \n% fee of works only value","Minimum Fee for PD & H&SA(£)","Maximum Fee for PD & H&SA(£)","H&SA only\n% fee of works only value","Minimum Fee for H&SA (£)","Maximum Fee for H&SA (£)","Principal Designer (PD) & H&SA \n% fee of works only value","Minimum Fee for PD & H&SA(£)","Maximum Fee for PD & H&SA(£)","H&SA only\n% fee of works only value","Minimum Fee for H&SA (£)","Maximum Fee for H&SA (£)"]
[null,"Band 1  - Up to and including 34 homes",7.4999999999999997E-3,7500,null,2.5000000000000001E-3,2500,null,2E-3,2000,null,1.5E-3,1200,null,1.6999999999999999E-3,4950,null,1.1999999999999999E-3,3200,null,2.5000000000000001E-3,6500,null,1.1000000000000001E-3,3000,null,3.0999999999999999E-3,2750,null,1.9E-3,1650,null,2E-3,3500,null,1E-3,450,null,2.5000000000000001E-3,975,null,7.5000000000000002E-4,300,null,1.1999999999999999E-3,2500,null,6.9999999999999999E-4,1500,null,1.8E-3,3000,null,1.4499999999999999E-3,2000,null,2E-3,1150,null,1E-3,550,null,2.5000000000000001E-3,10000,null,1.5E-3,6935,null,1.2999999999999999E-3,650,null,1.2999999999999999E-3,650,null,1.8E-3,3500,null,1.1999999999999999E-3,3500,null,2E-3,2000,null,1E-3,1000]
[null,"Band 2  - 35+ homes",1.6999999999999999E-3,null,25500,5.0000000000000001E-4,null,7500,1.4E-3,null,11000,1E-3,null,6000,1.1999999999999999E-3,null,18000,8.9999999999999998E-4,null,12000,1.2999999999999999E-3,null,19500,5.8E-4,null,8700,1.9E-3,null,18000,1.1000000000000001E-3,null,9000,1.5E-3,null,30000,8.0000000000000004E-4,null,12000,8.9999999999999998E-4,null,13500,2.5000000000000001E-4,null,4000,8.0000000000000004E-4,null,9000,4.0000000000000002E-4,null,4750,1.2999999999999999E-3,null,15000,1E-3,null,6000,1E-3,null,20000,5.0000000000000001E-4,null,5000,2E-3,null,17447,1.2999999999999999E-3,null,11680,6.9999999999999999E-4,null,7000,6.9999999999999999E-4,null,7000,8.0000000000000004E-4,null,7500,5.5000000000000003E-4,null,7500,1.5E-3,null,22500,6.9999999999999999E-4,null,10500]
[]
[null,"Back to top"]
[]
[null,"ICN - Fees for Principal Designer services (East)"]
[null,"C7 EAST"]
[null,null,"AA Projects",null,null,null,null,null,"Arcus",null,null,null,null,null,"Curtins Consulting Ltd",null,null,null,null,null,"Faithful & Gould",null,null,null,null,null,"Rider levett Bucknall UK Ltd",null,null,null,null,null,"RJD Associates (North West) Limited (North West) Limited",null,null,null,null,null,"Thornton Firkin",null,null,null,null,null,"Urbn Design & Consult Ltd",null,null,null,null,null,"Vextrix",null,null,null,null,null,"Whiteley Eaves Ltd",null,null,null,null,null,"Wilkinson Cowan Partnership",null,null,null,null,null,"WYG"]
[null,"Fee based on contract sum (works only)","Principal Designer (PD) & H&SA \n% fee of works only value","Minimum Fee for PD & H&SA(£)","Maximum Fee for PD & H&SA(£)","H&SA only\n% fee of works only value","Minimum Fee for H&SA (£)","Maximum Fee for H&SA (£)","Principal Designer (PD) & H&SA \n% fee of works only value","Minimum Fee for PD & H&SA(£)","Maximum Fee for PD & H&SA(£)","H&SA only\n% fee of works only value","Minimum Fee for H&SA (£)","Maximum Fee for H&SA (£)","Principal Designer (PD) & H&SA \n% fee of works only value","Minimum Fee for PD & H&SA(£)","Maximum Fee for PD & H&SA(£)","H&SA only\n% fee of works only value","Minimum Fee for H&SA (£)","Maximum Fee for H&SA (£)","Principal Designer (PD) & H&SA \n% fee of works only value","Minimum Fee for PD & H&SA(£)","Maximum Fee for PD & H&SA(£)","H&SA only\n% fee of works only value","Minimum Fee for H&SA (£)","Maximum Fee for H&SA (£)","Principal Designer (PD) & H&SA \n% fee of works only value","Minimum Fee for PD & H&SA(£)","Maximum Fee for PD & H&SA(£)","H&SA only\n% fee of works only value","Minimum Fee for H&SA (£)","Maximum Fee for H&SA (£)","Principal Designer (PD) & H&SA \n% fee of works only value","Minimum Fee for PD & H&SA(£)","Maximum Fee for PD & H&SA(£)","H&SA only\n% fee of works only value","Minimum Fee for H&SA (£)","Maximum Fee for H&SA (£)","Principal Designer (PD) & H&SA \n% fee of works only value","Minimum Fee for PD & H&SA(£)","Maximum Fee for PD & H&SA(£)","H&SA only\n% fee of works only value","Minimum Fee for H&SA (£)","Maximum Fee for H&SA (£)","Principal Designer (PD) & H&SA \n% fee of works only value","Minimum Fee for PD & H&SA(£)","Maximum Fee for PD & H&SA(£)","H&SA only\n% fee of works only value","Minimum Fee for H&SA (£)","Maximum Fee for H&SA (£)","Principal Designer (PD) & H&SA \n% fee of works only value","Minimum Fee for PD & H&SA(£)","Maximum Fee for PD & H&SA(£)","H&SA only\n% fee of works only value","Minimum Fee for H&SA (£)","Maximum Fee for H&SA (£)","Principal Designer (PD) & H&SA \n% fee of works only value","Minimum Fee for PD & H&SA(£)","Maximum Fee for PD & H&SA(£)","H&SA only\n% fee of works only value","Minimum Fee for H&SA (£)","Maximum Fee for H&SA (£)","Principal Designer (PD) & H&SA \n% fee of works only value","Minimum Fee for PD & H&SA(£)","Maximum Fee for PD & H&SA(£)","H&SA only\n% fee of works only value","Minimum Fee for H&SA (£)","Maximum Fee for H&SA (£)","Principal Designer (PD) & H&SA \n% fee of works only value","Minimum Fee for PD & H&SA(£)","Maximum Fee for PD & H&SA(£)","H&SA only\n% fee of works only value","Minimum Fee for H&SA (£)","Maximum Fee for H&SA (£)"]
[null,"Band 1  - Up to and including 34 homes",3.5000000000000001E-3,6000,null,2.5000000000000001E-3,3500,null,1.6999999999999999E-3,4950,null,1.1999999999999999E-3,3200,null,2.5000000000000001E-3,6500,null,1.1000000000000001E-3,3000,null,3.0999999999999999E-3,2750,null,1.9E-3,1650,null,2.5000000000000001E-3,975,null,7.5000000000000002E-4,300,null,1.1999999999999999E-3,2500,null,6.9999999999999999E-4,1500,null,1.8E-3,3000,null,1.4499999999999999E-3,2000,null,2E-3,1150,null,1E-3,550,null,2.5000000000000001E-3,11169,null,1.5E-3,7738,null,1.2999999999999999E-3,650,null,1.2999999999999999E-3,650,null,1.8E-3,3500,null,1.1999999999999999E-3,3500,null,2E-3,2000,null,1E-3,1000]
[null,"Band 2  - 35+ homes",1.6999999999999999E-3,null,22000,8.9999999999999998E-4,null,13500,1.1999999999999999E-3,null,18000,8.9999999999999998E-4,null,12000,1.2999999999999999E-3,null,19500,5.8E-4,null,8700,1.9E-3,null,18000,1.1000000000000001E-3,null,9000,8.9999999999999998E-4,null,13500,2.5000000000000001E-4,null,4000,8.0000000000000004E-4,null,9000,4.0000000000000002E-4,null,4750,1.2999999999999999E-3,null,15000,1E-3,null,6000,1E-3,null,20000,5.0000000000000001E-4,null,5000,2E-3,null,20659,1.2999999999999999E-3,null,13724,6.9999999999999999E-4,null,7000,6.9999999999999999E-4,null,7000,8.0000000000000004E-4,null,7500,5.5000000000000003E-4,null,7500,1.5E-3,null,22500,6.9999999999999999E-4,null,10500]
[]
[null,"Back to top"]
[]
[null,"ICN - Fees for Planning Consultancy services (West)"]
[null,"C8 WEST"]
[null,null,"Cass Associates","DPP One Ltd","Hive Land & Planning Limited","Mosaic Town Planning","Nexus Planning","NJL Consulting Limited","Paul Butler Associates","SATPLAN LTD"]
[null,null,"Tender fee for ICN based on the example site brief (not a fixed fee for use with call offs) ","Tender fee for ICN based on the example site brief (not a fixed fee for use with call offs) ","Tender fee for ICN based on the example site brief (not a fixed fee for use with call offs) ","Tender fee for ICN based on the example site brief (not a fixed fee for use with call offs) ","Tender fee for ICN based on the example site brief (not a fixed fee for use with call offs) ","Tender fee for ICN based on the example site brief (not a fixed fee for use with call offs) ","Tender fee for ICN based on the example site brief (not a fixed fee for use with call offs) ","Tender fee for ICN based on the example site brief (not a fixed fee for use with call offs) "]
[null,"Full planning application - Up to and including 34 homes (Fee per unit)",198,366,230,300,490,250,240,106.97]
[null,"Full planning application - 35+ homes (Fee per unit)",110,173,106,175,250,225,110,163.41]
[null,"Outline planning application - 35+ homes (Fee per unit)",105,127,90,160,225,200,70,107.63]
[null,"Reserved Matters planning application (Fee per unit)",98,70,75,120,150,200,80,118.78]
[]
[null,"Back to top"]
[]
[null,"ICN - Fees for Planning Consultancy services (East)"]
[null,"C8 EAST"]
[null,null,"Cass Associates","Cushman & Wakefield","DPP One Ltd","Hive Land & Planning Limited","Nathaniel Lichfield & Partners","Nexus Planning","NJL Consulting Limited","Savills UK Limited","Spawforths","WYG Engineering Limited"]
[null,null,"Tender fee for ICN based on the example site brief (not a fixed fee for use with call offs) ","Tender fee for ICN based on the example site brief (not a fixed fee for use with call offs) ","Tender fee for ICN based on the example site brief (not a fixed fee for use with call offs) ","Tender fee for ICN based on the example site brief (not a fixed fee for use with call offs) ","Tender fee for ICN based on the example site brief (not a fixed fee for use with call offs) ","Tender fee for ICN based on the example site brief (not a fixed fee for use with call offs) ","Tender fee for ICN based on the example site brief (not a fixed fee for use with call offs) ","Tender fee for ICN based on the example site brief (not a fixed fee for use with call offs) ","Tender fee for ICN based on the example site brief (not a fixed fee for use with call offs) ","Tender fee for ICN based on the example site brief (not a fixed fee for use with call offs) "]
[null,"Full planning application - Up to and including 34 homes (Fee per unit)",238,365,366,230,662,490,250,355,496,550]
[null,"Full planning application - 35+ homes (Fee per unit)",132,242,173,106,282,250,225,280,298,340]
[null,"Outline planning application - 35+ homes (Fee per unit)",126,210,127,90,232,225,200,225,255,315]
[null,"Reserved Matters planning application (Fee per unit)",118,168,70,75,219,150,200,145,263,275]
[]
[null,"Back to top"]
[]
[null,"ICN - Fees for Site Investigation services (West)"]
[null,"C9 WEST"]
[null,null,"Campbell Reith Hill LLP","Carley Daines & Partners","Curtins Consulting Ltd","Omnia Environmental Consulting","RoC Consulting","RPS","RSK Environment Ltd","Sutcliffe","The LK Group"]
[null,null,"Tender fee for ICN based on the example site brief (not a fixed fee for use with call offs) ","Tender fee for ICN based on the example site brief (not a fixed fee for use with call offs) ","Tender fee for ICN based on the example site brief (not a fixed fee for use with call offs) ","Tender fee for ICN based on the example site brief (not a fixed fee for use with call offs) ","Tender fee for ICN based on the example site brief (not a fixed fee for use with call offs) ","Tender fee for ICN based on the example site brief (not a fixed fee for use with call offs) ","Tender fee for ICN based on the example site brief (not a fixed fee for use with call offs) ","Tender fee for ICN based on the example site brief (not a fixed fee for use with call offs) ","Tender fee for ICN based on the example site brief (not a fixed fee for use with call offs) "]
[null,"Phase 1 Site Investigation: Geo-environmental Desktop Report",1250,1325,1200,1900,1095,1850,1120,1250,650]
[null,"Phase 2 Site Investigation: Intrusive Ground Investigation Report",22550,14775,22000,12400,29500,26440,25360,10100,27898]
[null,"Flood Risk Assessment Services and Report",1750,1275,5600,2000,2000,2750,2400,1500,800]
[]
[null,"Back to top"]
[]
[null,"ICN - Fees for Site Investigation services (East)"]
[null,"C9 EAST"]
[null,null,"Campbell Reith Hill LLP","Carley Daines & Partners","Curtins Consulting Ltd","Omnia Environmental Consulting","RoC Consulting","RPS","RSK Environment Ltd","Sutcliffe","The LK Group"]
[null,null,"Tender fee for ICN based on the example site brief (not a fixed fee for use with call offs) ","Tender fee for ICN based on the example site brief (not a fixed fee for use with call offs) ","Tender fee for ICN based on the example site brief (not a fixed fee for use with call offs) ","Tender fee for ICN based on the example site brief (not a fixed fee for use with call offs) ","Tender fee for ICN based on the example site brief (not a fixed fee for use with call offs) ","Tender fee for ICN based on the example site brief (not a fixed fee for use with call offs) ","Tender fee for ICN based on the example site brief (not a fixed fee for use with call offs) ","Tender fee for ICN based on the example site brief (not a fixed fee for use with call offs) ","Tender fee for ICN based on the example site brief (not a fixed fee for use with call offs) "]
[null,"Phase 1 Site Investigation: Geo-environmental Desktop Report",1250,1325,1200,950,1200,1850,1120,1250,695]
[null,"Phase 2 Site Investigation: Intrusive Ground Investigation Report",22273,14775,22000,12000,30700,27000,25360,10100,28998]
[null,"Flood Risk Assessment Services and Report",1750,1275,5600,2000,2000,2750,2400,1500,850]
[]
[null,"Back to top"]